{"text_format":"1","workbook":"xlsx","n_sheets":4,"sheets":["Latest Health Index","History of Health","V1N","Inf"],"not_rendered":{"charts":14,"images":2,"macros":1,"external_links":0,"defined_names":4,"comments":0,"pivot_tables":0},"unopened":[{"sheet":"Latest Health Index","index":0,"reason":"not_a_worksheet"},{"sheet":"History of Health","index":1,"reason":"not_a_worksheet"}],"bounds":{"document_bytes":16777216,"sheet_cells":100000,"rows_first":2000,"rows_last":500,"rows_between":2000,"halvings":0,"cell_chars":16384,"cell_head_chars":4096},"cells_cut":0,"cells_raw":0,"read":"whole","date_system":"1900"}

{"sheet":"V1N","index":2,"n_rows":28809,"n_cols":171,"rows_kept":562,"cut":true,"hidden":false,"merged":[],"bounds":{"rows_first":250,"rows_last":62,"rows_between":250,"halvings":3}}
["Count 30 mins",null,{"$f":"COUNT(F10:F28809)","v":12000},{"$f":"COUNT(F10:F14409)","v":12000},null,"Control","W","H",null,null,{"$f":"SUM(K10:K14409)","v":76010},null,null,1,2,3,null,null,null,1,1,1,{"$f":"SUMPRODUCT(--($K$10:$K$14409=V1))","v":1160},{"$f":"SUMPRODUCT(--($DF$26:$DF$1411>=$DK1),--($DF$26:$DF$1411<$DK2),$DG$26:$DG$1411)","v":0},null,{"$f":"W1/8/60","v":2.4166666666666665},null,null,null,null,null,"Stopped","Hrs","Mins","Secs",null,null,null,"60mins","30 mins","20 mins","10 mins","1 min","min",null,null,null,"Zones",1,2,3,4,5,6,7,8,9,"totals",null,null,null,null,null,null,null,null,null,null,null,null,null,null,null,null,null,null,null,null,null,null,null,null,null,null,null,null,null,null,null,null,null,null,null,null,null,null,null,null,null,null,null,null,null,null,null,null,null,null,null,null,null,null,null,null,null,null,null,null,null,null,null,null,null,null,null,null,null,null,null,null,null,null,null,null,null,null,null,{"$f":"MIN(EH10:EH12009)","v":2.7237354085603113E-2},{"$f":"MIN(EI10:EI12009)","v":4.9402985074626898E-2},{"$f":"MIN(EJ10:EJ12009)","v":2.4590163934426229E-2},"ChromLoc",9.0999999999999998E-2]
["FPS",null,null,8,null,null,514,268,{"$f":"G2/(G7)","v":2.0381458424203975},{"$f":"H2/(H7)","v":2.103940964044591},{"$f":"SUM(K14410:K28809)","v":0},null,null,4,5,6,null,null,null,1,2,2,{"$f":"SUMPRODUCT(--($K$10:$K$14409=V2))","v":262},null,null,{"$f":"W2/8/60","v":0.54583333333333328},null,{"$f":"AC3*60*60*1/4/20","v":0},null,null,null,"TIME",{"$f":"ROUNDDOWN(C1/(D2*60*60),0)","v":0},{"$f":"ROUNDDOWN((C1/(D2*60*60)-AG2)*60,0)","v":25},{"$f":"ROUNDDOWN(C1/D2-AG2*360-AH2*60,0)","v":0},null,null,null,{"$f":"\"f\"&AM9&\":f\"&AM10","v":"f10:f12009"},{"$f":"\"f\"&AN7&\":f\"&AN8","v":"f10:f12009"},{"$f":"\"f\"&AO7&\":f\"&AO8","v":"f2410:f12009"},{"$f":"\"f\"&AP7&\":f\"&AP8","v":"f7210:f12009"},{"$f":"\"f\"&AQ7&\":f\"&AQ8","v":"f11530:f12009"},null,null,null,null,{"$f":"SUM(AV3:AV32)","v":203},{"$f":"SUM(AW3:AW32)","v":1160},262,681,793,280,778,3572,2227,2247,{"$f":"SUM(AW2:BE2)","v":12000},null,null,null,null,null,null,null,null,null,null,null,null,null,null,null,null,null,null,null,null,null,null,null,null,null,null,null,null,null,null,null,null,null,null,null,null,null,null,null,null,null,null,null,null,null,null,null,null,null,null,null,null,null,null,null,null,null,null,null,null,null,null,null,null,null,null,null,null,null,null,null,null,null,null,null,null,null,null,null,{"$f":"MAX(EH10:EH12009)","v":0.98128404669260705},{"$f":"MAX(EI10:EI12009)","v":0.96983805970149262},{"$f":"MAX(EJ10:EJ12009)","v":0.9865336065573771},"25 mins"]
["Mins",null,null,{"$f":"D1/8/60","v":25},null,null,null,null,372,244,{"$f":"K1+K2","v":76010},null,null,7,8,9,null,0,null,1,3,3,681,null,null,1.41875,null,-1,0,0,null,null,null,null,null,null,null,null,{"$f":"\"o\"&AM7&\":o\"&AM8","v":"o10:o12009"},{"$f":"\"o\"&AN7&\":o\"&AN8","v":"o10:o12009"},{"$f":"\"o\"&AO7&\":o\"&AO8","v":"o2410:o12009"},"o7210:o12009","o11530:o12009",1,10,{"$f":"AS3+480-1","v":489},{"$f":"\"k\"&AS3&\":k\"&AT3","v":"k10:k489"},{"$f":"9-SUMPRODUCT(--(AW3:BE3=0))","v":8},{"$f":"SUMPRODUCT(--(INDIRECT($AU3)=AW$1))","v":47},22,44,28,18,23,239,59,0,{"$f":"SUM(AW3:BE3)","v":480},null,null,null,null,null,null,{"$f":"SUM(BM10:BM69)","v":92303},null,null,null,null,null,null,null,null,null,null,null,null,null,null,null,null,null,null,null,null,null,null,null,null,null,null,null,null,null,null,null,null,null,null,null,null,null,null,null,null,null,null,null,null,null,null,null,null,null,null,null,null,null,null,null,null,null,null,null,null,null,null,null,null,null,null,null,null,null,null,null,null,{"$f":"SUM(EH10:EH12009)","v":5298.7724221789922},{"$f":"SUM(EI10:EI12009)","v":3828.1767410447724},{"$f":"SUM(EJ10:EJ12009)","v":6253.7097040983663},null,null,null,null,null,{"$f":"SUM(EP10:EP12005)","v":3.0000000000000004},{"$f":"SUM(EQ10:EQ12005)","v":4.9999999999999991},{"$f":"SUM(ER10:ER12005)","v":3},null,{"$f":"SUM(ET10:ET12005)","v":2.5},{"$f":"SUM(EU10:EU12005)","v":4},{"$f":"SUM(EV10:EV12005)","v":2.5}]
["Check frame count",null,null,{"$f":"D2*D3*60","v":12000},null,{"$f":"MID(CELL(\"filename\"),FIND(\"]\",CELL(\"filename\"))+1,30)&\" \"&F1","v":"V1N Control"},null,null,null,null,null,null,null,null,null,null,null,{"$f":"R6/3","v":44.666666666666664},null,2,1,4,793,null,null,1.6520833333333333,null,null,null,null,null,"latest","60mins","30 mins","20 mins","10 mins","1 min",null,{"$f":"\"av\"&AM14+2&\":av\"&AM15+2","v":"av3:av27"},{"$f":"\"av\"&AN14+2&\":av\"&AN15+2","v":"av3:av27"},{"$f":"\"av\"&AO14+2&\":av\"&AO15+2","v":"av8:av27"},{"$f":"\"av\"&AP14+2&\":av\"&AP15+2","v":"av18:av27"},{"$f":"\"av\"&AQ14+2&\":av\"&AQ15+2","v":"av27:av27"},2,{"$f":"AT3+1","v":490},{"$f":"AS4+480-1","v":969},{"$f":"\"k\"&AS4&\":k\"&AT4","v":"k490:k969"},9,14,7,24,24,15,31,63,136,166,{"$f":"SUM(AW4:BE4)","v":480},null,null,null,null,null,null,null,null,null,null,null,null,null,null,null,null,null,null,null,null,null,null,null,null,null,null,null,null,null,null,null,null,null,null,null,null,null,null,null,null,null,null,null,null,null,null,null,null,null,null,null,null,null,null,null,null,null,null,null,null,null,null,null,null,null,null,null,null,null,null,null,null,null,null,null,null,null,null,null,null,null,null,null,null,null,null,null,"r","g","b",null,"r","g","b"]
["Count 1 hour",null,null,{"$f":"COUNT(F14410:F28809)","v":0},null,null,"Side",null,"Top",null,"Zone View",null,null,null,{"$f":"O8+O6","v":92199.49714910597},null,null,{"$f":"R4*2","v":89.333333333333329},null,2,2,5,280,null,null,0.58333333333333337,null,null,null,null,"Z","DISTANCE",{"$f":"ROUND(SUM(INDIRECT(AM3)),0)","v":92199},{"$f":"ROUND(SUM(INDIRECT(AN3)),0)","v":92199},{"$f":"ROUND(SUM(INDIRECT(AO3)),0)","v":77334},{"$f":"ROUND(SUM(INDIRECT(AP3)),0)","v":42818},{"$f":"ROUND(SUM(INDIRECT(AQ3)),0)","v":4280},null,null,null,null,null,{"$f":"\"av\"&AQ14+1&\":av\"&AQ15+1","v":"av26:av26"},3,{"$f":"AT4+1","v":970},1449,"k970:k1449",8,26,1,0,31,27,47,82,83,183,480]
["Total Count",null,null,{"$f":"D1+D5","v":12000},null,null,"x","y","x","y",null,null,null,null,{"$f":"SUM(O14410:O28809)","v":0},null,null,{"$f":"H2/2","v":134},null,2,3,6,778,null,null,1.6208333333333333,null,null,null,null,"Y","UTIL",{"$f":"IF(AM25>0,AM24/AM25,0)","v":0.23005219985085756},{"$f":"IF(AN25>0,AN24/AN25,0)","v":0.23005219985085756},{"$f":"IF(AO25>0,AO24/AO25,0)","v":0.23211169284467714},{"$f":"IF(AP25>0,AP24/AP25,0)","v":0.20330679730557258},{"$f":"IF(AQ25>0,AQ24/AQ25,0)","v":0.19884726224783861},null,{"$f":"AM8-AM7+1","v":12000},{"$f":"AN8-AN7+1","v":12000},{"$f":"AO8-AO7+1","v":9600},{"$f":"AP8-AP7+1","v":4800},{"$f":"AQ8-AQ7+1","v":480},4,1450,1929,"k1450:k1929",9,34,15,35,25,22,97,65,38,149,480,null,null,"History"]
["Max",null,null,null,null,null,{"$f":"MAX(G10:G28809)","v":252.19},{"$f":"MAX(H10:H28809)","v":127.38},182.56,119,{"$f":"MAX(K10:INDIRECT(\"k\"&$D$6-1))","v":9},null,null,0,{"$f":"Q7/3","v":85.666666666666671},{"$f":"O7*2","v":171.33333333333334},{"$f":"G2/2","v":257},null,null,3,1,7,3572,null,null,7.4416666666666664,null,null,null,null,"X","ACTIVITY",{"$f":"SUM(INDIRECT(AM4))/AG18","v":8.1199999999999992},{"$f":"SUM(INDIRECT(AN4))/AH18","v":8.1199999999999992},{"$f":"SUM(INDIRECT(AO4))/AI18","v":8.3000000000000007},{"$f":"SUM(INDIRECT(AP4))/AJ18","v":8.4},{"$f":"(SUM(INDIRECT(AQ5))*AK16+SUM(INDIRECT(AQ4))*AK17)/60","v":9},null,{"$f":"AM9","v":10},{"$f":"MAX(AN9,AN8-AN11+1)","v":10},{"$f":"MAX(AO9,AO8-AO11+1)","v":2410},{"$f":"MAX(AP9,AP8-AP11+1)","v":7210},{"$f":"MAX(AQ9,AQ8-AQ11+1)","v":11530},5,1930,2409,"k1930:k2409",3,0,0,0,0,0,0,148,196,136,480,null,null,"DISTANCE","Z",null,null,null,"UTIL","Y",null,null,null,"ACTIVITY","X",null,null,null,null,null,null,null,null,null,null,"Health Index",null,null,"Adj Dist",null,null,null,"Dist.","DISTANCE",null,null,null,null,"UTIL",null,null,null,null,"ACTIVITY",null,null,null,"Act.",null,null,null,null,null,null,null,null,null,null,null,null,null,null,null,null,null,null,null,null,null,null,null,null,null,null,null,null,null,null,null,null,null,null,null,null,null,{"$f":"SUM(EM10:EM20)","v":3828.1767410447783},{"$f":"SUM(EN10:EN20)","v":3828.1767410447765}]
["Min",null,null,null,null,null,{"$f":"MIN(G10:INDIRECT(\"G\"&$D$6-1))","v":7},{"$f":"MIN(H10:INDIRECT(\"h\"&$D$6-1))","v":4.0416999999999996},{"$f":"MIN(I10:INDIRECT(\"i\"&$D$6-1))","v":4},{"$f":"MIN(J10:INDIRECT(\"j\"&$D$6-1))","v":1.6429},{"$f":"MIN(K10:INDIRECT(\"k\"&$D$6-1))","v":1},null,null,null,{"$f":"SUM(O11:O12009)","v":92199.49714910597},{"$f":"MAX(O10:O14409)","v":121.93372527274808},null,null,null,3,2,8,2227,null,null,4.6395833333333334,null,null,null,null,null,null,{"$f":"INDEX($DY11:$DY17,MATCH(AG9,$DW$11:$DW$17,1))","v":"Ok"},{"$f":"INDEX($DY11:$DY17,MATCH(AH9,$DW$11:$DW$17,1))","v":"Ok"},{"$f":"INDEX($DY11:$DY17,MATCH(AI9,$DW$11:$DW$17,1))","v":"Ok"},{"$f":"INDEX($DY11:$DY17,MATCH(AJ9,$DW$11:$DW$17,1))","v":"Ok"},{"$f":"INDEX($DY11:$DY17,MATCH(AK9,$DW$11:$DW$17,1))","v":"Ok"},null,{"$f":"AM10","v":12009},{"$f":"MAX(AM9,$AM$10)","v":12009},{"$f":"MAX(AN9,$AM$10)","v":12009},{"$f":"MAX(AO9,$AM$10)","v":12009},{"$f":"MAX(AP9,$AM$10)","v":12009},6,2410,2889,"k2410:k2889",6,0,0,3,118,12,5,327,15,0,480,null,null,"60 mins","30 mins","20 mins","10 mins","1 min","60 mins","30 mins","20 mins","10 mins","1 min","60 mins","30 mins","20 mins","10 mins","1 min","60 mins","30 mins","20 mins","10 mins","1 min","60 mins","30 mins","20 mins","10 mins","1 min","60 mins","30 mins","20 mins","10 mins","1 min","60 mins","30 mins","20 mins","10 mins","1 min","60 mins","30 mins","20 mins","10 mins","1 min","60 mins","30 mins","20 mins","10 mins","1 min",null,null,null,null,null,null,null,null,null,null,null,null,null,null,null,null,null,null,null,null,null,null,null,null,null,null,null,null,null,null,null,null,null,null,null,null,null,null,null,null,null,null,null,null,null,null,null,null,null,"v1",null,null,null,null,"R3","G3","B3",null,"X","Y","Z",null,null,"H","L","S"]
["VLC","mins","secs","secs",null,"Query here",null,{"$f":"MATCH(H8,H10:H28809,)","v":9479},{"$f":"MATCH(I8,I10:I28809,)","v":7206},null,null,"H","W",null,"Dist",{"$f":"SUM(O490:O969)","v":2734.5847779281103},1,null,null,3,3,9,2247,{"$f":"SUM(W1:W9)","v":12000},null,4.6812500000000004,{"$f":"SUM(Z1:Z9)","v":25},null,null,null,null,"Health Index",{"$f":"INDEX($DP22:$DP25,MATCH(AG14,$DI$22:$DI$25,0))+INDEX($DP11:$DP14,MATCH(AG12,$DI$11:$DI$14,0))","v":4},{"$f":"INDEX($DP22:$DP25,MATCH(AH14,$DI$22:$DI$25,0))+INDEX($DP11:$DP14,MATCH(AH12,$DI$11:$DI$14,0))","v":4},{"$f":"INDEX($DP22:$DP25,MATCH(AI14,$DI$22:$DI$25,0))+INDEX($DP11:$DP14,MATCH(AI12,$DI$11:$DI$14,0))","v":4},{"$f":"INDEX($DP22:$DP25,MATCH(AJ14,$DI$22:$DI$25,0))+INDEX($DP11:$DP14,MATCH(AJ12,$DI$11:$DI$14,0))","v":4},{"$f":"INDEX($DP22:$DP25,MATCH(AK14,$DI$22:$DI$25,0))+INDEX($DP11:$DP14,MATCH(AK12,$DI$11:$DI$14,0))","v":4},"min",10,10,10,10,10,7,2890,3369,"k2890:k3369",9,193,13,37,15,13,5,171,17,16,480,null,null,{"$f":"AG5","v":92199},{"$f":"AH5","v":92199},{"$f":"AI5","v":77334},{"$f":"AJ5","v":42818},{"$f":"AK5","v":4280},null,{"$f":"AH6","v":0.23005219985085756},{"$f":"AI6","v":0.23211169284467714},{"$f":"AJ6","v":0.20330679730557258},{"$f":"AK6","v":0.19884726224783861},{"$f":"AG7","v":8.1199999999999992},{"$f":"AH7","v":8.1199999999999992},{"$f":"AI7","v":8.3000000000000007},{"$f":"AJ7","v":8.4},{"$f":"AK7","v":9},{"$f":"AG8","v":"Ok"},{"$f":"AH8","v":"Ok"},{"$f":"AI8","v":"Ok"},{"$f":"AJ8","v":"Ok"},{"$f":"AK8","v":"Ok"},{"$f":"AG9","v":4},{"$f":"AH9","v":4},{"$f":"AI9","v":4},{"$f":"AJ9","v":4},{"$f":"AK9","v":4},null,null,null,null,null,null,null,null,null,null,null,null,null,null,null,null,null,null,null,null,null,null,null,null,null,"latest",null,null,"60 mins","30 mins","20 mins","10 mins","1 min",null,null,null,{"$f":"COUNT(DR11:DU17)","v":16},null,null,null,null,null,null,null,null,null,null,null,null,null,null,null,"X'","Y'","Y'",null,null,"Y'","Y''"]
[1,{"$f":"ROUNDDOWN(A10/480,0)","v":0},{"$f":"MOD(ROUNDDOWN(A10/8,0),60)","v":0},{"$f":"MOD(A10,8)/8","v":0.125},null,0.21629000000000001,142.11000000000001,108.46,98.39,110.41,{"$f":"SUMPRODUCT(--($T$1:$T$9=L10),--($U$1:$U$9=M10),$V$1:$V$9)*SUMPRODUCT(--((G10+H10)>0))","v":8},{"$f":"MATCH(H10,$R$3:$R$6,1)","v":3},{"$f":"MATCH(G10,$N$7:$Q$7,1)","v":2},null,0,null,null,null,{"$f":"SUM(S11:S51)","v":14400},null,null,null,null,null,null,null,null,null,"Healthy Fish",null,null,null,null,null,null,null,null,"max",{"$f":"D6+10-1","v":12009},{"$f":"IF($AM$10-AN9-AN11<1,$AM$10,$AM$10-AN11)","v":12009},{"$f":"IF($AM$10-AO9-AO11<1,$AM$10,$AM$10-AO11)","v":2409},{"$f":"IF($AM$10-AP9-AP11<1,$AM$10,$AM$10-AP11)","v":7209},{"$f":"IF($AM$10-AQ9-AQ11<1,$AM$10,$AM$10-AQ11)","v":11529},8,3370,3849,"k3370:k3849",9,112,12,32,26,13,71,66,81,67,480,null,1,{"$f":"SUM(BM$10:$BM10)","v":3451},{"$f":"SUM($BM$10:BM10)","v":3451},{"$f":"SUM(BM$10:$BM10)","v":3451},{"$f":"SUM($BM$10:BM10)","v":3451},{"$f":"ROUND(SUM(INDIRECT(\"o\"&AS3&\":o\"&AT3)),0)","v":3451},null,null,null,null,null,{"$f":"SUM($BW$10:BW10)/BH10","v":8},{"$f":"SUM($BW$10:BW10)/BH10","v":8},{"$f":"SUM($BW$10:BW10)/BH10","v":8},{"$f":"SUM($BW$10:BW10)/BH10","v":8},{"$f":"AV3","v":8},{"$f":"INDEX($DY$11:$DY$17,MATCH(CC10,$DW$11:$DW$17,1))","v":"Healthy"},{"$f":"INDEX($DY$11:$DY$17,MATCH(CD10,$DW$11:$DW$17,1))","v":"Healthy"},{"$f":"INDEX($DY$11:$DY$17,MATCH(CE10,$DW$11:$DW$17,1))","v":"Healthy"},{"$f":"INDEX($DY$11:$DY$17,MATCH(CF10,$DW$11:$DW$17,1))","v":"Healthy"},{"$f":"INDEX($DY$11:$DY$17,MATCH(CG10,$DW$11:$DW$17,1))","v":"Healthy"},{"$f":"INDEX($DP$22:$DP$25,MATCH(CM10,$DI$22:$DI$25,0))+INDEX($DP$11:$DP$14,MATCH(CW10,$DI$11:$DI$14,0))","v":6},6,{"$f":"INDEX($DP$22:$DP$25,MATCH(CO10,$DI$22:$DI$25,0))+INDEX($DP$11:$DP$14,MATCH(CY10,$DI$11:$DI$14,0))","v":6},{"$f":"INDEX($DP$22:$DP$25,MATCH(CP10,$DI$22:$DI$25,0))+INDEX($DP$11:$DP$14,MATCH(CZ10,$DI$11:$DI$14,0))","v":6},{"$f":"INDEX($DP$22:$DP$25,MATCH(CQ10,$DI$22:$DI$25,0))+INDEX($DP$11:$DP$14,MATCH(DA10,$DI$11:$DI$14,0))","v":6},{"$f":"BI10/BH10*60","v":207060},{"$f":"BJ10/BH10*30","v":103530},{"$f":"BK10/BH10*20","v":69020},{"$f":"BL10/BH10*10","v":34510},{"$f":"BM10","v":3451},{"$f":"IF(CH10>=$DJ$14,$DI$14,INDEX($DI$10:$DI$13,MATCH(CH10,$DJ$10:$DJ$13,1)+1))","v":"normal"},{"$f":"IF(CI10>=$DK$14,$DI$14,INDEX($DI$10:$DI$13,MATCH(CI10,$DK$10:$DK$13,1)+1))","v":"normal"},{"$f":"IF(CJ10>=$DL$14,$DI$14,INDEX($DI$10:$DI$13,MATCH(CJ10,$DL$10:$DL$13,1)+1))","v":"normal"},{"$f":"IF(CK10>=$DM$14,$DI$14,INDEX($DI$10:$DI$13,MATCH(CK10,$DM$10:$DM$13,1)+1))","v":"normal"},{"$f":"IF(CL10>=$DN$14,$DI$14,INDEX($DI$10:$DI$13,MATCH(CL10,$DN$10:$DN$13,1)+1))","v":"normal"},null,null,null,null,null,{"$f":"IF(BS10>=$DJ$25,$DI$25,INDEX($DI$21:$DI$24,MATCH(BS10,$DJ$21:$DJ$24,1)))","v":"normal"},{"$f":"IF(BT10>=$DK$25,$DI$25,INDEX($DI$21:$DI$24,MATCH(BT10,$DK$21:$DK$24,1)))","v":"normal"},{"$f":"IF(BU10>=$DL$25,$DI$25,INDEX($DI$21:$DI$24,MATCH(BU10,$DL$21:$DL$24,1)))","v":"normal"},{"$f":"IF(BV10>=$DM$25,$DI$25,INDEX($DI$21:$DI$24,MATCH(BV10,$DM$21:$DM$24,1)))","v":"normal"},{"$f":"IF(BW10>=$DN$25,$DI$25,INDEX($DI$21:$DI$24,MATCH(BW10,$DN$21:$DN$24,1)))","v":"normal"},null,null,null,null,null,null,null,"hypo",0,0,0,0,0,null,null,null,null,null,null,null,null,null,null,null,null,null,null,null,null,null,null,null,{"$f":"G10/Q$7","v":0.55295719844357982},{"$f":"(R$6-H10)/R$6","v":0.19059701492537318},{"$f":"(J$3/2-J10)/(J$3/2)","v":9.5000000000000029E-2},0,{"$f":"EK10+EL$1","v":9.0999999999999998E-2},{"$f":"SUMPRODUCT(--(EH$10:EH$12009<EL10),EI$10:EI$12009)","v":776.84686791044658},{"$f":"SUMPRODUCT(--(EJ$10:EJ$12009<EL10),EI$10:EI$12009)","v":113.79741044776127},null,1,{"$f":"1-(EP10+ER10)","v":0},null,null,1,{"$f":"1-(ET10+EV10)","v":0},null,null,"R1R2",{"$f":"SUMPRODUCT(EP$10:EP$20,EM$10:EM$20)/EP$3+SUMPRODUCT(EP$10:EP$20,EN$10:EN$20)/EP$3","v":835.78856009950232},null,null,null,1,{"$f":"SUMPRODUCT($ET$10:$ET$18,$EY$10:$EY$18)/$ET$3","v":843.87709873134315},{"$f":"SUMPRODUCT($EU$10:$EU$18,$EY$10:$EY$18)/$EU$3","v":665.27341572574653},{"$f":"SUMPRODUCT($EV$10:$EV$18,$EY$10:$EY$18)/$EV$3","v":711.33596358209036},null,{"$f":"FD10/SUM($FD10:$FF10)","v":0.38004153912999111},{"$f":"FE10/SUM($FD10:$FF10)","v":0.29960705561838058},{"$f":"FF10/SUM($FD10:$FF10)","v":0.32035140525162836},{"$f":"SUM(FH10:FJ10)","v":1},null,{"$f":"hue(FD10,FE10,FF10)","v":{"$error":"#NAME?"}},{"$f":"lightness(FD10,FE10,FF10)","v":{"$error":"#NAME?"}},{"$f":"Saturation(FD10,FE10,FF10)","v":{"$error":"#NAME?"}}]
[{"$f":"A10+1","v":2},{"$f":"ROUNDDOWN(A11/480,0)","v":0},{"$f":"MOD(ROUNDDOWN(A11/8,0),60)","v":0},{"$f":"MOD(A11,8)/8","v":0.25},null,2.9555999999999999E-2,142.11000000000001,108.46,101,110.15,{"$f":"SUMPRODUCT(--($T$1:$T$9=L11),--($U$1:$U$9=M11),$V$1:$V$9)*SUMPRODUCT(--((G11+H11)>0))","v":8},{"$f":"MATCH(H11,$R$3:$R$6,1)","v":3},{"$f":"MATCH(G11,$N$7:$Q$7,1)","v":2},null,{"$f":"SQRT((G11-G10)^2+(H11-H10)^2+(J11-J10)^2)","v":0.25999999999999091},0,1,{"$f":"P11+Q11","v":1},{"$f":"SUMPRODUCT(--($O$10:$O$14409>=P11),--($O$10:$O$14409<R11))","v":3104},null,null,null,null,null,null,null,null,null,null,null,null,"latest","60mins","30 mins","20 mins","10 mins","1 min",null,{"$f":"60*480","v":28800},{"$f":"30*480","v":14400},{"$f":"20*480","v":9600},{"$f":"10*480","v":4800},{"$f":"1*480","v":480},9,3850,4329,"k3850:k4329",9,1,7,23,20,9,26,264,64,66,480,null,2,{"$f":"SUM(BM$10:$BM11)","v":6186},{"$f":"SUM($BM$10:BM11)","v":6186},{"$f":"SUM(BM$10:$BM11)","v":6186},{"$f":"SUM($BM$10:BM11)","v":6186},{"$f":"ROUND(SUM(INDIRECT(\"o\"&AS4&\":o\"&AT4)),0)","v":2735},null,null,null,null,null,{"$f":"SUM($BW$10:BW11)/BH11","v":8.5},{"$f":"SUM($BW$10:BW11)/BH11","v":8.5},{"$f":"SUM($BW$10:BW11)/BH11","v":8.5},{"$f":"SUM($BW$10:BW11)/BH11","v":8.5},{"$f":"AV4","v":9},{"$f":"INDEX($DY$11:$DY$17,MATCH(CC11,$DW$11:$DW$17,1))","v":"Ok"},{"$f":"INDEX($DY$11:$DY$17,MATCH(CD11,$DW$11:$DW$17,1))","v":"Ok"},{"$f":"INDEX($DY$11:$DY$17,MATCH(CE11,$DW$11:$DW$17,1))","v":"Ok"},{"$f":"INDEX($DY$11:$DY$17,MATCH(CF11,$DW$11:$DW$17,1))","v":"Ok"},{"$f":"INDEX($DY$11:$DY$17,MATCH(CG11,$DW$11:$DW$17,1))","v":"Ok"},4,4,4,4,4,{"$f":"BI11/BH11*60","v":185580},{"$f":"BJ11/BH11*30","v":92790},{"$f":"BK11/BH11*20","v":61860},{"$f":"BL11/BH11*10","v":30930},{"$f":"BM11","v":2735},{"$f":"IF(CH11>=$DJ$14,$DI$14,INDEX($DI$10:$DI$13,MATCH(CH11,$DJ$10:$DJ$13,1)+1))","v":"normal"},{"$f":"IF(CI11>=$DK$14,$DI$14,INDEX($DI$10:$DI$13,MATCH(CI11,$DK$10:$DK$13,1)+1))","v":"normal"},{"$f":"IF(CJ11>=$DL$14,$DI$14,INDEX($DI$10:$DI$13,MATCH(CJ11,$DL$10:$DL$13,1)+1))","v":"normal"},{"$f":"IF(CK11>=$DM$14,$DI$14,INDEX($DI$10:$DI$13,MATCH(CK11,$DM$10:$DM$13,1)+1))","v":"normal"},{"$f":"IF(CL11>=$DN$14,$DI$14,INDEX($DI$10:$DI$13,MATCH(CL11,$DN$10:$DN$13,1)+1))","v":"normal"},null,null,null,null,null,{"$f":"IF(BS11>=$DJ$25,$DI$25,INDEX($DI$21:$DI$24,MATCH(BS11,$DJ$21:$DJ$24,1)))","v":"hyper"},{"$f":"IF(BT11>=$DK$25,$DI$25,INDEX($DI$21:$DI$24,MATCH(BT11,$DK$21:$DK$24,1)))","v":"hyper"},{"$f":"IF(BU11>=$DL$25,$DI$25,INDEX($DI$21:$DI$24,MATCH(BU11,$DL$21:$DL$24,1)))","v":"hyper"},{"$f":"IF(BV11>=$DM$25,$DI$25,INDEX($DI$21:$DI$24,MATCH(BV11,$DM$21:$DM$24,1)))","v":"hyper"},"hyper",null,null,null,null,"Z","DISTANCE","<","hypo",{"$f":"Inf!F8","v":100000},{"$f":"Inf!G8","v":50000},{"$f":"Inf!H8","v":33333.333333333336},{"$f":"Inf!I8","v":16666.666666666668},{"$f":"Inf!J8","v":1666.6666666666667},null,0,null,{"$f":"$DP$11+DP22","v":0},null,null,null,null,0,1,"Abnormal",null,null,null,null,null,null,null,null,{"$f":"G11/Q$7","v":0.55295719844357982},{"$f":"(R$6-H11)/R$6","v":0.19059701492537318},{"$f":"(J$3/2-J11)/(J$3/2)","v":9.7131147540983565E-2},{"$f":"EL10","v":9.0999999999999998E-2},0.182,{"$f":"SUMPRODUCT(--(EH$10:EH$12009>=EK11),--(EH$10:EH$12009<EL11),EI$10:EI$12009)","v":649.01423582089637},{"$f":"SUMPRODUCT(--(EJ$10:EJ$12009>=EK11),--(EJ$10:EJ$12009<EL11),EI$10:EI$12009)","v":442.08888507462632},null,{"$f":"EP10-1/((11-1)/2)","v":0.8},{"$f":"1-(EP11+ER11)","v":0.19999999999999996},null,null,{"$f":"ET10-1/((9-1)/2)","v":0.75},{"$f":"1-(ET11+EV11)","v":0.25},null,null,"R1G2",{"$f":"SUMPRODUCT(EP$10:EP$20,EM$10:EM$20)/EP$3+SUMPRODUCT(EQ$10:EQ$20,EN$10:EN$20)/EQ$3","v":859.63974404975124}]
[3,0,0,0.375,null,4.2747E-2,150.25,111.28,109.5,108,8,3,2,null,8.8788794338024353,{"$f":"R11","v":1},{"$f":"Q11+$Q$9","v":2},{"$f":"P12+Q12","v":3},1049,null,null,null,null,null,null,null,null,null,null,null,"Z","DISTANCE",{"$f":"IF(AG19>=DJ14,$DI14,INDEX($DI10:$DI13,MATCH(AG19,DJ10:DJ13,1)+1))","v":"normal"},{"$f":"IF(AH19>=DK14,$DI14,INDEX($DI10:$DI13,MATCH(AH19,DK10:DK13,1)+1))","v":"normal"},{"$f":"IF(AI19>=DL14,$DI14,INDEX($DI10:$DI13,MATCH(AI19,DL10:DL13,1)+1))","v":"normal"},{"$f":"IF(AJ19>=DM14,$DI14,INDEX($DI10:$DI13,MATCH(AJ19,DM10:DM13,1)+1))","v":"normal"},{"$f":"IF(AK5>=DN14,$DI14,INDEX($DI10:$DI13,MATCH(AK5,DN10:DN13,1)+1))","v":"normal"},null,null,null,null,null,null,10,4330,4809,"k4330:k4809",9,109,3,72,22,11,36,126,19,82,480,null,3,{"$f":"SUM(BM$10:$BM12)","v":9272},{"$f":"SUM($BM$10:BM12)","v":9272},{"$f":"SUM(BM$10:$BM12)","v":9272},{"$f":"SUM($BM$10:BM12)","v":9272},3086,null,null,null,null,null,{"$f":"SUM($BW$10:BW12)/BH12","v":8.3333333333333339},{"$f":"SUM($BW$10:BW12)/BH12","v":8.3333333333333339},{"$f":"SUM($BW$10:BW12)/BH12","v":8.3333333333333339},{"$f":"SUM($BW$10:BW12)/BH12","v":8.3333333333333339},8,"Ok","Ok","Ok","Ok","Healthy",4,4,4,4,6,185440,92720,61813.333333333328,30906.666666666664,3086,"normal","normal","normal","normal","normal",null,null,null,null,null,"hyper","hyper","hyper","hyper","normal",null,null,null,null,null,null,"<","low",{"$f":"Inf!F9","v":160000},{"$f":"Inf!G9","v":80000},{"$f":"Inf!H9","v":53333.333333333336},{"$f":"Inf!I9","v":26666.666666666668},{"$f":"Inf!J9","v":2666.666666666667},null,1.5,null,{"$f":"$DP$11+DP23","v":1.5},{"$f":"$DP$12+DP22","v":1.5},null,null,null,1,2,"Abnormal",null,null,null,null,null,null,null,null,0.58463035019455256,0.16955223880597015,0.11475409836065574,{"$f":"EL11","v":0.182},0.27300000000000002,338.86438432835865,388.91429552238787,null,{"$f":"EP11-1/((11-1)/2)","v":0.60000000000000009},0.39999999999999991,null,null,{"$f":"ET11-1/((9-1)/2)","v":0.5},0.5,null,null,"R1B2",{"$f":"SUMPRODUCT(EP$10:EP$20,EM$10:EM$20)/EP$3+SUMPRODUCT(ER$10:ER$20,EN$10:EN$20)/ER$3","v":993.46755850746297}]
[4,0,0,0.5,null,4.6872999999999998E-2,159.12,112.24,114.57,106.43,8,3,2,null,9.0588851411197417,3,{"$f":"Q12+$Q$9","v":3},6,3494,null,null,null,null,null,null,null,null,null,null,null,"Y","UTIL",null,null,null,null,null,null,60,30,20,10,1,11,4810,5289,"k4810:k5289",7,{"$f":"SUMPRODUCT(--(INDIRECT($AU13)=AW$1))","v":109},16,21,192,4,0,130,8,0,480,null,4,{"$f":"SUM(BM$10:$BM13)","v":12445},{"$f":"SUM($BM$10:BM13)","v":12445},{"$f":"SUM(BM$10:$BM13)","v":12445},{"$f":"SUM($BM$10:BM13)","v":12445},3173,null,null,null,null,null,{"$f":"SUM($BW$10:BW13)/BH13","v":8.5},{"$f":"SUM($BW$10:BW13)/BH13","v":8.5},{"$f":"SUM($BW$10:BW13)/BH13","v":8.5},{"$f":"SUM($BW$10:BW13)/BH13","v":8.5},9,"Ok","Ok","Ok","Ok","Ok",4,4,4,4,4,186675,93337.5,62225,31112.5,3173,"normal","normal","normal","normal","normal",null,null,null,null,null,"hyper","hyper","hyper","hyper","hyper",null,null,null,null,null,null,"<","normal",{"$f":"Inf!F10","v":390000},{"$f":"Inf!G10","v":195000},{"$f":"Inf!H10","v":130000},{"$f":"Inf!I10","v":65000},{"$f":"Inf!J10","v":6500},null,3,null,{"$f":"$DP$11+DP24","v":3},{"$f":"$DP$12+DP23","v":3},{"$f":"$DP$13+DP22","v":3},null,null,2,3,"Unhealthy",null,null,null,null,null,null,null,null,0.6191439688715954,0.16238805970149259,0.12762295081967207,0.27300000000000002,0.36399999999999999,221.82262313432861,308.43521492537349,null,0.40000000000000008,0.59999999999999987,null,null,0.25,0.75,null,null,"G1R2",{"$f":"SUMPRODUCT(EQ$10:EQ$20,EM$10:EM$20)/EQ$3+SUMPRODUCT(EP$10:EP$20,EN$10:EN$20)/EP$3","v":529.76239775124372}]
[5,0,0,0.625,null,4.0701000000000001E-2,159.12,112.24,118,103.27,8,3,2,null,3.1600000000000108,6,4,10,3948,null,null,null,null,null,null,null,null,null,null,null,"X","ACTIVITY",{"$f":"IF(AG7>=DJ25,$DI25,INDEX($DI21:$DI24,MATCH(AG7,DJ21:DJ24,1)))","v":"hyper"},{"$f":"IF(AH7>=DK25,$DI25,INDEX($DI21:$DI24,MATCH(AH7,DK21:DK24,1)))","v":"hyper"},{"$f":"IF(AI7>=DL25,$DI25,INDEX($DI21:$DI24,MATCH(AI7,DL21:DL24,1)))","v":"hyper"},{"$f":"IF(AJ7>=DM25,$DI25,INDEX($DI21:$DI24,MATCH(AJ7,DM21:DM24,1)))","v":"hyper"},{"$f":"IF(AK7>=DN25,$DI25,INDEX($DI21:$DI24,MATCH(AK7,DN21:DN24,1)))","v":"hyper"},"start",{"$f":"IF(AM15<AM13,1,AM15-AM13+1)","v":1},{"$f":"IF(AN15<AN13,1,AN15-AN13+1)","v":1},{"$f":"IF(AO15<AO13,1,AO15-AO13+1)","v":6},{"$f":"IF(AP15<AP13,1,AP15-AP13+1)","v":16},{"$f":"IF(AQ15<AQ13,1,AQ15-AQ13+1)","v":25},12,5290,5769,"k5290:k5769",9,11,11,28,2,13,17,124,180,94,480,null,5,{"$f":"SUM(BM$10:$BM14)","v":14868},{"$f":"SUM($BM$10:BM14)","v":14868},{"$f":"SUM(BM$10:$BM14)","v":14868},{"$f":"SUM($BM$10:BM14)","v":14868},2423,null,null,null,null,null,{"$f":"SUM($BW$10:BW14)/BH14","v":7.4},{"$f":"SUM($BW$10:BW14)/BH14","v":7.4},{"$f":"SUM($BW$10:BW14)/BH14","v":7.4},{"$f":"SUM($BW$10:BW14)/BH14","v":7.4},3,"Healthy","Healthy","Healthy","Healthy","Unhealthy",6,6,6,6,3,178416,89208,59472,29736,2423,"normal","normal","normal","normal","low",null,null,null,null,null,"normal","normal","normal","normal","low",null,null,null,null,null,null,">=","hyper",{"$f":"Inf!F11","v":390002},{"$f":"Inf!G11","v":195001},{"$f":"Inf!H11","v":130001},{"$f":"Inf!I11","v":65001},{"$f":"Inf!J11","v":6500.1},null,1,null,{"$f":"$DP$11+DP25","v":1},{"$f":"$DP$12+DP24","v":4.5},{"$f":"$DP$13+DP23","v":4.5},{"$f":"$DP$14+DP22","v":1},null,3,4,"Unhealthy",null,null,null,null,null,null,null,null,0.6191439688715954,0.16238805970149259,0.15352459016393447,0.36399999999999999,0.45499999999999996,183.72986567164153,291.61294477611915,null,0.20000000000000007,0.79999999999999993,null,null,0,1,0,null,"G1G2",{"$f":"SUMPRODUCT(EQ$10:EQ$20,EM$10:EM$20)/EQ$3+SUMPRODUCT(EQ$10:EQ$20,EN$10:EN$20)/EQ$3","v":553.61358170149276}]
[6,0,0,0.75,null,4.4199000000000002E-2,168.21,110.42,114.85,100.15,8,3,2,null,9.7813547118995725,10,5,15,1842,null,null,null,null,null,null,null,null,null,null,null,null,null,null,null,null,null,null,"end",{"$f":"ROUNDUP(AH2+AI2/60,0)","v":25},{"$f":"AM15","v":25},{"$f":"AN15","v":25},{"$f":"AO15","v":25},{"$f":"AP15","v":25},13,5770,6249,"k5770:k6249",8,0,4,12,12,1,6,139,117,189,480,null,6,{"$f":"SUM(BM$10:$BM15)","v":18270},{"$f":"SUM($BM$10:BM15)","v":18270},{"$f":"SUM(BM$10:$BM15)","v":18270},{"$f":"SUM($BM$10:BM15)","v":18270},3402,null,null,null,null,null,{"$f":"SUM($BW$10:BW15)/BH15","v":7.166666666666667},{"$f":"SUM($BW$10:BW15)/BH15","v":7.166666666666667},{"$f":"SUM($BW$10:BW15)/BH15","v":7.166666666666667},{"$f":"SUM($BW$10:BW15)/BH15","v":7.166666666666667},6,"Healthy","Healthy","Healthy","Healthy","Healthy",6,6,6,6,6,182700,91350,60900,30450,3402,"normal","normal","normal","normal","normal",null,null,null,null,null,"normal","normal","normal","normal","normal",null,null,null,null,null,null,null,null,null,null,null,null,null,null,null,null,null,{"$f":"$DP$12+DP25","v":2.5},{"$f":"$DP$13+DP24","v":6},{"$f":"$DP$14+DP23","v":2.5},null,4,3,"Ok",null,null,null,null,null,null,null,null,0.65451361867704283,0.17597014925373133,0.17909836065573767,0.45499999999999996,0.54599999999999993,163.27137313432834,267.35530298507456,null,0,1,0,null,null,0.75,{"$f":"EV14+1/((9-1)/2)","v":0.25},null,"G1B2",{"$f":"SUMPRODUCT(EQ$10:EQ$20,EM$10:EM$20)/EQ$3+SUMPRODUCT(ER$10:ER$20,EN$10:EN$20)/ER$3","v":687.44139615920437}]
[7,0,0,0.875,null,4.7535000000000001E-2,168.21,110.42,114.85,100.15,8,3,2,null,0,15,6,21,626,null,null,null,null,null,null,null,null,null,null,null,null,null,null,null,null,null,{"$f":"AI2","v":0},"min",1,1,1,1,1,14,6250,6729,"k6250:k6729",7,0,0,48,16,2,12,184,110,108,480,null,7,{"$f":"SUM(BM$10:$BM16)","v":21826},{"$f":"SUM($BM$10:BM16)","v":21826},{"$f":"SUM(BM$10:$BM16)","v":21826},{"$f":"SUM($BM$10:BM16)","v":21826},3556,null,null,null,null,null,{"$f":"SUM($BW$10:BW16)/BH16","v":7.4285714285714288},{"$f":"SUM($BW$10:BW16)/BH16","v":7.4285714285714288},{"$f":"SUM($BW$10:BW16)/BH16","v":7.4285714285714288},{"$f":"SUM($BW$10:BW16)/BH16","v":7.4285714285714288},9,"Healthy","Healthy","Healthy","Healthy","Ok",6,6,6,6,4,187080,93540,62360,31180,3556,"normal","normal","normal","normal","normal",null,null,null,null,null,"normal","normal","normal","normal","hyper",null,null,null,null,"Y","UTIL","<","hypo",null,null,null,null,null,null,null,null,null,null,{"$f":"$DP$13+DP25","v":4},{"$f":"$DP$14+DP24","v":4},null,5,2,"Healthy",null,null,null,null,null,null,null,null,0.65451361867704283,0.17597014925373133,0.17909836065573767,0.54599999999999993,0.6369999999999999,165.1323664179103,286.6595447761195,null,null,0.8,{"$f":"ER15+1/((11-1)/2)","v":0.2},null,null,0.5,{"$f":"EV15+1/((9-1)/2)","v":0.5},null,"B1R2",{"$f":"SUMPRODUCT(ER$10:ER$20,EM$10:EM$20)/ER$3+SUMPRODUCT(EP$10:EP$20,EN$10:EN$20)/EP$3","v":635.96096601990098}]
[8,0,1,0,null,4.0339E-2,166.41,111.37,111.39,94.332999999999998,8,3,2,null,6.1627906827994838,21,7,28,223,null,null,null,null,null,null,null,null,null,null,null,null,null,null,null,null,null,{"$f":"(60-AK16)","v":60},"max",{"$f":"60-60+1","v":1},{"$f":"60-30+1","v":31},{"$f":"60-20+1","v":41},{"$f":"60-10+1","v":51},60,15,6730,7209,"k6730:k7209",9,43,19,25,5,4,111,12,97,164,480,null,8,{"$f":"SUM(BM$10:$BM17)","v":25843},{"$f":"SUM($BM$10:BM17)","v":25843},{"$f":"SUM(BM$10:$BM17)","v":25843},{"$f":"SUM($BM$10:BM17)","v":25843},4017,null,null,null,null,null,{"$f":"SUM($BW$10:BW17)/BH17","v":7.625},{"$f":"SUM($BW$10:BW17)/BH17","v":7.625},{"$f":"SUM($BW$10:BW17)/BH17","v":7.625},{"$f":"SUM($BW$10:BW17)/BH17","v":7.625},9,"Healthy","Healthy","Healthy","Healthy","Ok",6,6,6,6,4,193822.5,96911.25,64607.5,32303.75,4017,"normal","normal","normal","normal","normal",null,null,null,null,null,"normal","normal","normal","normal","hyper",null,null,null,null,null,null,"<","low",null,null,null,null,null,null,null,null,null,null,null,{"$f":"$DP$14+DP25","v":2},null,6,1,"Healthy",null,null,null,null,null,null,null,null,0.64750972762645909,0.16888059701492533,0.22677868852459018,0.6369999999999999,0.72799999999999987,208.43683731343302,289.84755298507525,null,null,0.6,{"$f":"ER16+1/((11-1)/2)","v":0.4},null,null,0.25,{"$f":"EV16+1/((9-1)/2)","v":0.75},null,"B1G2",{"$f":"SUMPRODUCT(ER$10:ER$20,EM$10:EM$20)/ER$3+SUMPRODUCT(EQ$10:EQ$20,EN$10:EN$20)/EQ$3","v":659.81214997015002}]
[9,0,1,0.125,null,4.6698000000000003E-2,166.41,111.37,110.44,87.75,8,3,2,null,6.5829999999999984,28,8,36,59,null,null,null,null,null,null,null,null,null,null,null,null,"Time",{"$f":"IF(AH2>=60,60,MAX((AH2+AI2/60),1))","v":25},{"$f":"IF(AH2>=30,30,MAX((AH2+AI2/60),1))","v":25},{"$f":"IF(AH2>20,20,MAX((AH2+AI2/60),1))","v":20},{"$f":"IF(AH2>10,10,MAX((AH2+AI2/60),1))","v":10},1,null,null,null,null,null,null,16,7210,7689,"k7210:k7689",7,46,0,0,8,16,6,237,124,43,480,null,9,{"$f":"SUM(BM$10:$BM18)","v":29067},{"$f":"SUM($BM$10:BM18)","v":29067},{"$f":"SUM(BM$10:$BM18)","v":29067},{"$f":"SUM($BM$10:BM18)","v":29067},3224,null,null,null,null,null,{"$f":"SUM($BW$10:BW18)/BH18","v":7.7777777777777777},{"$f":"SUM($BW$10:BW18)/BH18","v":7.7777777777777777},{"$f":"SUM($BW$10:BW18)/BH18","v":7.7777777777777777},{"$f":"SUM($BW$10:BW18)/BH18","v":7.7777777777777777},9,"Healthy","Healthy","Healthy","Healthy","Ok",6,6,6,6,4,193780,96890,64593.333333333328,32296.666666666664,3224,"normal","normal","normal","normal","normal",null,null,null,null,null,"normal","normal","normal","normal","hyper",null,null,null,null,null,null,"<","normal",null,null,null,null,null,null,null,null,null,null,null,null,null,null,null,null,null,null,null,null,null,null,null,null,0.64750972762645909,0.16888059701492533,0.28073770491803279,0.72799999999999987,0.81899999999999984,268.23107686567164,379.10103432835797,null,null,0.39999999999999991,0.60000000000000009,null,null,0,{"$f":"EV17+1/((9-1)/2)","v":1},null,"B1B2",{"$f":"SUMPRODUCT(ER$10:ER$20,EM$10:EM$20)/ER$3+SUMPRODUCT(ER$10:ER$20,EN$10:EN$20)/ER$3","v":793.63996442786174}]
[10,0,1,0.25,null,4.5558000000000001E-2,159.36000000000001,111.87,105.44,87.75,8,3,2,null,7.0677082565708496,36,9,45,21,null,null,null,null,null,null,null,null,null,null,null,null,"Adj period dist",{"$f":"AG5/AG18*60","v":221277.6},{"$f":"AH5/AH18*30","v":110638.8},{"$f":"AI5/AI18*20","v":77334},{"$f":"AJ5/AJ18*10","v":42818},{"$f":"AK5/AK18*1","v":4280},null,{"$f":"\"k\"&AM7&\":k\"&AM8","v":"k10:k12009"},{"$f":"\"k\"&AN7&\":k\"&AN8","v":"k10:k12009"},{"$f":"\"k\"&AO7&\":k\"&AO8","v":"k2410:k12009"},{"$f":"\"k\"&AP7&\":k\"&AP8","v":"k7210:k12009"},{"$f":"\"k\"&AQ7&\":k\"&AQ8","v":"k11530:k12009"},17,7690,8169,"k7690:k8169",9,95,15,34,26,17,54,15,89,135,480,null,10,{"$f":"SUM(BM$10:$BM19)","v":32711},{"$f":"SUM($BM$10:BM19)","v":32711},{"$f":"SUM(BM$10:$BM19)","v":32711},{"$f":"SUM(BM10:BM19)","v":32711},3644,null,null,null,null,null,{"$f":"SUM($BW$10:BW19)/BH19","v":7.9},{"$f":"SUM($BW$10:BW19)/BH19","v":7.9},{"$f":"SUM($BW$10:BW19)/BH19","v":7.9},{"$f":"SUM($BW$10:BW19)/BH19","v":7.9},9,"Healthy","Healthy","Healthy","Healthy","Ok",6,6,6,6,4,196266,98133,65422,32711,3644,"normal","normal","normal","normal","normal",null,null,null,null,null,"normal","normal","normal","normal","hyper",null,null,null,null,null,null,">=","hyper",null,null,null,null,null,null,null,null,null,null,null,null,null,null,null,null,null,null,null,null,null,null,null,null,0.62007782101167319,0.16514925373134326,0.28073770491803279,0.81899999999999984,0.90999999999999981,523.98918731343372,527.72670000000051,null,null,0.19999999999999996,0.8]
[11,0,1,0.375,null,4.4669E-2,156.56,114.85,109,83.713999999999999,8,3,2,null,5.745406513032826,45,10,55,15,null,null,null,null,null,null,null,null,null,null,null,null,"Avg. Distance/min",{"$f":"AG5/AG18","v":3687.96},{"$f":"AH5/AH18","v":3687.96},{"$f":"AI5/AI18","v":3866.7},{"$f":"AJ5/AJ18","v":4281.8},{"$f":"AK5/AK18","v":4280},null,null,null,null,null,null,18,8170,8649,"k8170:k8649",9,56,32,78,30,19,59,120,60,26,480,null,11,{"$f":"SUM(BM$10:$BM20)","v":36590},{"$f":"SUM($BM$10:BM20)","v":36590},{"$f":"SUM(BM$10:$BM20)","v":36590},33139,3879,null,null,null,null,null,{"$f":"SUM($BW$10:BW20)/BH20","v":7.8181818181818183},{"$f":"SUM($BW$10:BW20)/BH20","v":7.8181818181818183},{"$f":"SUM($BW$10:BW20)/BH20","v":7.8181818181818183},{"$f":"SUM(BW11:BW20)/10","v":7.8},7,"Healthy","Healthy","Healthy","Healthy","Healthy",6,6,6,6,6,199581.81818181818,99790.909090909088,66527.272727272735,{"$f":"BL20","v":33139},3879,"normal","normal","normal","normal","normal",null,null,null,null,null,"normal","normal","normal","normal","normal",null,null,null,null,null,null,null,null,null,null,null,null,null,null,null,null,null,null,null,null,null,null,null,null,null,null,null,null,null,null,null,null,0.60918287937743187,0.14291044776119408,0.31381967213114753,0.90999999999999981,1.0009999999999999,328.83792313432946,{"$f":"SUMPRODUCT(--(EJ$6:EJ$12005>=EK20),--(EJ$6:EJ$12005<EL20),EI$6:EI$12005)","v":532.63785522388082},null,null,0,1]
[12,0,1,0.5,null,4.0930000000000001E-2,156.56,114.85,108.19,79.313000000000002,8,3,2,null,4.4009999999999962,55,11,66,4,null,null,null,null,null,null,null,null,null,null,null,null,null,null,null,null,null,null,null,null,null,null,null,null,19,8650,9129,"k8650:k9129",9,24,25,55,115,25,14,184,33,5,480,null,12,{"$f":"SUM(BM$10:$BM21)","v":39729},{"$f":"SUM($BM$10:BM21)","v":39729},{"$f":"SUM(BM$10:$BM21)","v":39729},33543,3139,null,null,null,null,null,{"$f":"SUM($BW$10:BW21)/BH21","v":7.916666666666667},{"$f":"SUM($BW$10:BW21)/BH21","v":7.916666666666667},{"$f":"SUM($BW$10:BW21)/BH21","v":7.916666666666667},{"$f":"SUM(BW12:BW21)/10","v":7.8},9,"Healthy","Healthy","Healthy","Healthy","Ok",6,6,6,6,4,198645,99322.5,66215,{"$f":"BL21","v":33543},3139,"normal","normal","normal","normal","normal",null,null,null,null,null,"normal","normal","normal","normal","hyper",null,null,null,null,null,null,null,"hypo",0,0,0,0,0,null,null,null,null,null,null,null,null,null,null,null,null,null,null,null,null,null,null,null,0.60918287937743187,0.14291044776119408,0.3498934426229508]
[13,0,1,0.625,null,4.4554000000000003E-2,155.93,116.24,107.6,75.266999999999996,8,3,2,null,4.3242474489788449,66,12,78,6,null,null,null,null,null,null,null,null,null,null,null,null,"Scores",null,null,null,null,null,null,{"$f":"SUM(AM23:AM25)","v":12000},{"$f":"SUM(AN23:AN25)","v":12000},{"$f":"SUM(AO23:AO25)","v":9600},{"$f":"SUM(AP23:AP25)","v":4800},{"$f":"SUM(AQ23:AQ25)","v":480},20,9130,9609,"k9130:k9609",9,50,13,46,44,13,7,140,97,70,480,null,13,{"$f":"SUM(BM$10:$BM22)","v":42581},{"$f":"SUM($BM$10:BM22)","v":42581},{"$f":"SUM(BM$10:$BM22)","v":42581},33309,2852,null,null,null,null,null,{"$f":"SUM($BW$10:BW22)/BH22","v":7.9230769230769234},{"$f":"SUM($BW$10:BW22)/BH22","v":7.9230769230769234},{"$f":"SUM($BW$10:BW22)/BH22","v":7.9230769230769234},7.8,8,"Healthy","Healthy","Healthy","Healthy","Healthy",6,{"$f":"INDEX($DP$22:$DP$25,MATCH(CN22,$DI$22:$DI$25,0))+INDEX($DP$11:$DP$14,MATCH(CX22,$DI$11:$DI$14,0))","v":6},{"$f":"INDEX($DP$22:$DP$25,MATCH(CO22,$DI$22:$DI$25,0))+INDEX($DP$11:$DP$14,MATCH(CY22,$DI$11:$DI$14,0))","v":6},{"$f":"INDEX($DP$22:$DP$25,MATCH(CP22,$DI$22:$DI$25,0))+INDEX($DP$11:$DP$14,MATCH(CZ22,$DI$11:$DI$14,0))","v":6},{"$f":"INDEX($DP$22:$DP$25,MATCH(CQ22,$DI$22:$DI$25,0))+INDEX($DP$11:$DP$14,MATCH(DA22,$DI$11:$DI$14,0))","v":6},196527.69230769231,98263.846153846156,65509.230769230773,33309,2852,"normal","normal","normal","normal","normal",null,null,null,null,null,"normal","normal","normal","normal","normal",null,null,null,null,"X","ACTIVITY","<","hypo",{"$f":"Inf!F18","v":2},{"$f":"Inf!G18","v":2},{"$f":"Inf!H18","v":2},{"$f":"Inf!I18","v":2},{"$f":"Inf!J18","v":2},null,0,null,null,null,null,null,null,null,null,null,null,null,null,null,null,null,null,null,0.60673151750972765,0.13253731343283587,0.38305737704918036]
[14,0,1,0.75,null,5.0901000000000002E-2,155.19,119.47,106.73,72.454999999999998,8,3,2,null,4.3460147261600515,78,13,91,4,null,null,null,null,null,null,null,null,null,null,null,null,"DISTANCE",{"$f":"IF(AG19>=DJ14,$DP$14,INDEX($DP10:$DP13,MATCH(AG19,DJ10:DJ13,1)+1))","v":3},{"$f":"IF(AH19>=DK14,$DP$14,INDEX($DP10:$DP13,MATCH(AH19,DK10:DK13,1)+1))","v":3},{"$f":"IF(AI19>=DL14,$DP$14,INDEX($DP10:$DP13,MATCH(AI19,DL10:DL13,1)+1))","v":3},{"$f":"IF(AJ19>=DM14,$DP$14,INDEX($DP10:$DP13,MATCH(AJ19,DM10:DM13,1)+1))","v":3},{"$f":"IF(AK19>=DN14,$DP$14,INDEX($DP10:$DP13,MATCH(AK19,DN10:DN13,1)+1))","v":3},"T",{"$f":"SUMPRODUCT(--(INDIRECT(AM$19)=$AL27))+SUMPRODUCT(--(INDIRECT(AM$19)=$AL28))+SUMPRODUCT(--(INDIRECT(AM$19)=$AL29))","v":2103},{"$f":"SUMPRODUCT(--(INDIRECT(AN$19)=$AL27))+SUMPRODUCT(--(INDIRECT(AN$19)=$AL28))+SUMPRODUCT(--(INDIRECT(AN$19)=$AL29))","v":2103},{"$f":"SUMPRODUCT(--(INDIRECT(AO$19)=$AL27))+SUMPRODUCT(--(INDIRECT(AO$19)=$AL28))+SUMPRODUCT(--(INDIRECT(AO$19)=$AL29))","v":1834},{"$f":"SUMPRODUCT(--(INDIRECT(AP$19)=$AL27))+SUMPRODUCT(--(INDIRECT(AP$19)=$AL28))+SUMPRODUCT(--(INDIRECT(AP$19)=$AL29))","v":870},{"$f":"SUMPRODUCT(--(INDIRECT(AQ$19)=$AL27))+SUMPRODUCT(--(INDIRECT(AQ$19)=$AL28))+SUMPRODUCT(--(INDIRECT(AQ$19)=$AL29))","v":64},21,9610,10089,"k9610:k10089",7,{"$f":"SUMPRODUCT(--(INDIRECT($AU23)=AW$1))","v":5},6,5,0,0,2,195,173,94,480,null,14,{"$f":"SUM(BM$10:$BM23)","v":45652},{"$f":"SUM($BM$10:BM23)","v":45652},{"$f":"SUM(BM$10:$BM23)","v":45652},33207,3071,null,null,null,null,null,{"$f":"SUM($BW$10:BW23)/BH23","v":7.8571428571428568},{"$f":"SUM($BW$10:BW23)/BH23","v":7.8571428571428568},{"$f":"SUM($BW$10:BW23)/BH23","v":7.8571428571428568},7.6,7,"Healthy","Healthy","Healthy","Healthy","Healthy",6,6,6,6,6,195651.42857142855,97825.714285714275,65217.142857142855,33207,3071,"normal","normal","normal","normal","normal",null,null,null,null,null,"normal","normal","normal","normal","normal",null,null,null,null,null,null,"<","low",{"$f":"Inf!F19","v":3},{"$f":"Inf!G19","v":3},{"$f":"Inf!H19","v":3},{"$f":"Inf!I19","v":3},{"$f":"Inf!J19","v":3},null,1.5,null,null,null,null,null,null,null,null,null,null,null,null,null,null,null,null,null,0.60385214007782095,0.10843283582089554,0.4061065573770492]
[15,0,1,0.875,null,3.6950999999999998E-2,155.19,119.47,107.6,68.2,8,3,2,null,4.2549999999999955,91,14,105,2,null,null,null,null,null,null,null,null,null,null,null,null,"UTIL",null,null,null,null,null,"M",{"$f":"SUMPRODUCT(--(INDIRECT(AM$19)=$AL30))+SUMPRODUCT(--(INDIRECT(AM$19)=$AL31))+SUMPRODUCT(--(INDIRECT(AM$19)=$AL32))","v":1851},{"$f":"SUMPRODUCT(--(INDIRECT(AN$19)=$AL30))+SUMPRODUCT(--(INDIRECT(AN$19)=$AL31))+SUMPRODUCT(--(INDIRECT(AN$19)=$AL32))","v":1851},{"$f":"SUMPRODUCT(--(INDIRECT(AO$19)=$AL30))+SUMPRODUCT(--(INDIRECT(AO$19)=$AL31))+SUMPRODUCT(--(INDIRECT(AO$19)=$AL32))","v":1463},{"$f":"SUMPRODUCT(--(INDIRECT(AP$19)=$AL30))+SUMPRODUCT(--(INDIRECT(AP$19)=$AL31))+SUMPRODUCT(--(INDIRECT(AP$19)=$AL32))","v":664},{"$f":"SUMPRODUCT(--(INDIRECT(AQ$19)=$AL30))+SUMPRODUCT(--(INDIRECT(AQ$19)=$AL31))+SUMPRODUCT(--(INDIRECT(AQ$19)=$AL32))","v":69},22,10090,10569,"k10090:k10569",9,65,9,15,12,6,22,109,134,108,480,null,15,{"$f":"SUM(BM$10:$BM24)","v":49382},{"$f":"SUM($BM$10:BM24)","v":49382},{"$f":"SUM(BM$10:$BM24)","v":49382},34514,3730,null,null,null,null,null,{"$f":"SUM($BW$10:BW24)/BH24","v":7.9333333333333336},{"$f":"SUM($BW$10:BW24)/BH24","v":7.9333333333333336},{"$f":"SUM($BW$10:BW24)/BH24","v":7.9333333333333336},8.1999999999999993,9,"Healthy","Healthy","Healthy","Ok","Ok",6,6,6,4,4,197528,98764,65842.666666666657,34514,3730,"normal","normal","normal","normal","normal",null,null,null,null,null,"normal","normal","normal","hyper","hyper",null,null,null,null,null,null,"<","normal",{"$f":"Inf!F20","v":4},{"$f":"Inf!G20","v":4},{"$f":"Inf!H20","v":4},{"$f":"Inf!I20","v":4},{"$f":"Inf!J20","v":4},null,3,null,null,null,null,null,null,null,null,null,null,null,null,null,null,null,null,null,0.60385214007782095,0.10843283582089554,0.44098360655737701]
[16,0,2,0,null,4.0004999999999999E-2,153.44999999999999,120.88,106.35,67.900000000000006,8,3,2,null,2.25957960691807,105,15,120,2,null,null,null,null,null,null,null,null,null,null,null,null,"ACTIVITY",{"$f":"INDEX($DP21:$DP24,MATCH(AG7,DJ21:DJ24,1))","v":3},{"$f":"INDEX($DP21:$DP24,MATCH(AH7,DK21:DK24,1))","v":3},{"$f":"INDEX($DP21:$DP24,MATCH(AI7,DL21:DL24,1))","v":3},{"$f":"INDEX($DP21:$DP24,MATCH(AJ7,DM21:DM24,1))","v":3},{"$f":"INDEX($DP21:$DP24,MATCH(AK7,DN21:DN24,1))","v":3},"B",{"$f":"SUMPRODUCT(--(INDIRECT(AM$19)=$AL33))+SUMPRODUCT(--(INDIRECT(AM$19)=$AL34))+SUMPRODUCT(--(INDIRECT(AM$19)=$AL35))","v":8046},{"$f":"SUMPRODUCT(--(INDIRECT(AN$19)=$AL33))+SUMPRODUCT(--(INDIRECT(AN$19)=$AL34))+SUMPRODUCT(--(INDIRECT(AN$19)=$AL35))","v":8046},{"$f":"SUMPRODUCT(--(INDIRECT(AO$19)=$AL33))+SUMPRODUCT(--(INDIRECT(AO$19)=$AL34))+SUMPRODUCT(--(INDIRECT(AO$19)=$AL35))","v":6303},{"$f":"SUMPRODUCT(--(INDIRECT(AP$19)=$AL33))+SUMPRODUCT(--(INDIRECT(AP$19)=$AL34))+SUMPRODUCT(--(INDIRECT(AP$19)=$AL35))","v":3266},{"$f":"SUMPRODUCT(--(INDIRECT(AQ$19)=$AL33))+SUMPRODUCT(--(INDIRECT(AQ$19)=$AL34))+SUMPRODUCT(--(INDIRECT(AQ$19)=$AL35))","v":347},23,10570,11049,"k10570:k11049",7,17,6,8,0,0,36,146,98,169,480,null,16,{"$f":"SUM(BM$10:$BM25)","v":52624},{"$f":"SUM($BM$10:BM25)","v":52624},{"$f":"SUM(BM$10:$BM25)","v":52624},34354,3242,null,null,null,null,null,{"$f":"SUM($BW$10:BW25)/BH25","v":7.875},{"$f":"SUM($BW$10:BW25)/BH25","v":7.875},{"$f":"SUM($BW$10:BW25)/BH25","v":7.875},8.3000000000000007,7,"Healthy","Healthy","Healthy","Ok","Healthy",6,6,6,4,6,197340,98670,65780,34354,3242,"normal","normal","normal","normal","normal",null,null,null,null,null,"normal","normal","normal","hyper","normal",null,null,null,null,null,null,">=","hyper",{"$f":"Inf!F21","v":8.01},{"$f":"Inf!G21","v":8.01},{"$f":"Inf!H21","v":8.01},{"$f":"Inf!I21","v":8.01},{"$f":"Inf!J21","v":8.01},null,1,null,null,null,null,null,null,null,null,null,null,null,null,null,null,null,null,null,0.5970817120622568,9.7910447761194064E-2,0.4434426229508196]
[17,0,2,0.125,null,4.3931999999999999E-2,153.4,121.31,110.45,68.817999999999998,8,3,2,null,1.0149502450859302,120,16,136,1,null,null,null,null,null,null,null,null,null,null,null,null,null,null,null,null,null,null,null,null,null,null,null,null,24,11050,11529,"k11050:k11529",9,67,13,21,7,10,47,157,97,61,480,null,17,{"$f":"SUM(BM$10:$BM26)","v":56874},{"$f":"SUM($BM$10:BM26)","v":56874},{"$f":"SUM(BM$10:$BM26)","v":56874},35048,4250,null,null,null,null,null,{"$f":"SUM($BW$10:BW26)/BH26","v":7.9411764705882355},{"$f":"SUM($BW$10:BW26)/BH26","v":7.9411764705882355},{"$f":"SUM($BW$10:BW26)/BH26","v":7.9411764705882355},8.3000000000000007,9,"Healthy","Healthy","Healthy","Ok","Ok",{"$f":"INDEX($DP$22:$DP$25,MATCH(CM26,$DI$22:$DI$25,0))+INDEX($DP$11:$DP$14,MATCH(CW26,$DI$11:$DI$14,0))","v":6},6,6,4,4,200731.76470588235,100365.88235294117,66910.588235294112,35048,4250,"normal","normal","normal","normal","normal",null,null,null,null,null,"normal","normal","normal","hyper","hyper",null,null,null,null,null,null,null,null,null,null,null,null,null,null,null,null,null,null,null,null,null,null,null,null,null,null,null,null,null,null,null,null,0.59688715953307392,9.4701492537313414E-2,0.43591803278688529]
[18,0,2,0.25,null,4.2293999999999998E-2,153.4,121.31,110.8,70.599999999999994,8,3,2,null,1.7819999999999965,136,17,153,0,null,null,null,null,null,null,null,null,null,null,null,null,"Z",{"$f":"AG23/SUM(AG23:AG25)","v":0.5},{"$f":"AH23/SUM(AH23:AH25)","v":0.5},{"$f":"AI23/SUM(AI23:AI25)","v":0.5},0.5,0.5,1,null,null,null,null,null,25,11530,12009,"k11530:k12009",9,36,13,15,15,10,44,129,102,116,480,null,18,{"$f":"SUM(BM$10:$BM27)","v":62138},{"$f":"SUM($BM$10:BM27)","v":62138},{"$f":"SUM(BM$10:$BM27)","v":62138},36295,5264,null,null,null,null,null,{"$f":"SUM($BW$10:BW27)/BH27","v":8},{"$f":"SUM($BW$10:BW27)/BH27","v":8},{"$f":"SUM($BW$10:BW27)/BH27","v":8},8.3000000000000007,9,"Healthy","Healthy","Healthy","Ok","Ok",6,6,6,4,4,207126.66666666669,103563.33333333334,69042.222222222219,36295,5264,"normal","normal","normal","normal","normal",null,null,null,null,null,"normal","normal","normal","hyper","hyper",null,null,null,null,null,null,null,null,null,null,null,null,null,null,null,null,null,null,null,null,null,null,null,null,null,null,null,null,null,null,null,null,0.59688715953307392,9.4701492537313414E-2,0.4213114754098361]
[19,0,2,0.375,null,3.5911999999999999E-2,152.9,121.18,99.5,70.5,8,3,2,null,0.52621288467691252,153,18,171,0,null,null,null,null,null,null,null,null,null,null,null,null,"Y",{"$f":"AG24/SUM(AG23:AG25)","v":0},{"$f":"AH24/SUM(AH23:AH25)","v":0},{"$f":"AI24/SUM(AI23:AI25)","v":0},0,0,2,null,null,null,null,null,26,12010,12489,"k12010:k12489",0,0,0,0,0,0,0,0,0,0,0,null,19,{"$f":"SUM(BM$10:$BM28)","v":67817},{"$f":"SUM($BM$10:BM28)","v":67817},{"$f":"SUM(BM$10:$BM28)","v":67817},38750,5679,null,null,null,null,null,{"$f":"SUM($BW$10:BW28)/BH28","v":8.0526315789473681},{"$f":"SUM($BW$10:BW28)/BH28","v":8.0526315789473681},{"$f":"SUM($BW$10:BW28)/BH28","v":8.0526315789473681},8.3000000000000007,9,"Ok","Ok","Ok","Ok","Ok",4,4,4,4,4,214158.94736842104,107079.47368421052,71386.31578947368,38750,5679,"normal","normal","normal","normal","normal",null,null,null,null,null,"hyper","hyper","hyper","hyper","hyper",null,null,null,null,null,null,null,null,null,null,null,null,null,null,null,null,null,null,null,null,null,null,null,null,null,null,null,null,null,null,null,null,0.59494163424124513,9.5671641791044731E-2,0.42213114754098363]
[20,0,2,0.5,null,4.4040999999999997E-2,152.9,121.18,113.3,68.8,8,3,2,null,1.7000000000000028,171,19,190,0,null,null,null,null,null,null,null,null,null,null,null,null,"X",{"$f":"AG25/SUM(AG23:AG25)","v":0.5},{"$f":"AH25/SUM(AH23:AH25)","v":0.5},{"$f":"AI25/SUM(AI23:AI25)","v":0.5},0.5,0.5,3,null,null,null,null,null,27,12490,12969,"k12490:k12969",{"$f":"9-SUMPRODUCT(--(AW29:BE29=0))","v":0},0,0,0,0,0,0,0,0,0,0,null,20,{"$f":"SUM(BM$10:$BM29)","v":71919},{"$f":"SUM($BM$10:BM29)","v":71919},{"$f":"SUM(BM10:BM29)","v":71919},39208,4102,null,null,null,null,null,{"$f":"SUM($BW$10:BW29)/BH29","v":8.1},{"$f":"SUM($BW$10:BW29)/BH29","v":8.1},{"$f":"SUM(BW10:BW29)/BH29","v":8.1},8.3000000000000007,9,"Ok","Ok","Ok","Ok","Ok",4,4,4,4,4,215757,107878.5,71919,39208,4102,"normal","normal","normal","normal",{"$f":"IF(CL29>=$DN$14,$DI$14,INDEX($DI$10:$DI$13,MATCH(CL29,$DN$10:$DN$13,1)+1))","v":"normal"},null,null,null,null,null,"hyper","hyper","hyper","hyper","hyper",null,null,null,null,null,null,null,null,null,null,null,null,null,null,null,null,null,null,null,null,null,null,null,null,null,null,null,null,null,null,null,null,0.59494163424124513,9.5671641791044731E-2,0.43606557377049182]
[21,0,2,0.625,null,4.2153000000000003E-2,164.57,121.28,114.27,68.727000000000004,8,3,2,null,11.670656751014473,190,20,210,0,null,null,null,null,null,null,null,null,null,null,null,null,null,null,null,null,null,null,4,null,null,null,null,null,28,12970,13449,"k12970:k13449",0,0,0,0,0,0,0,0,0,0,0,null,21,{"$f":"SUM(BM$10:$BM30)","v":75254},{"$f":"SUM($BM$10:BM30)","v":75254},{"$f":"SUM(BM11:BM30)","v":71803},38664,3335,null,null,null,null,null,{"$f":"SUM($BW$10:BW30)/BH30","v":8.0476190476190474},{"$f":"SUM($BW$10:BW30)/BH30","v":8.0476190476190474},{"$f":"SUM(BW11:BW30)/20","v":8.0500000000000007},8.3000000000000007,7,"Ok","Ok","Ok","Ok","Healthy",4,4,4,4,6,215011.42857142858,107505.71428571429,{"$f":"BK30","v":71803},38664,3335,"normal","normal","normal","normal","normal",null,null,null,null,null,"hyper","hyper","hyper","hyper","normal",null,null,null,null,null,null,null,null,null,null,null,null,null,null,null,null,null,null,null,null,null,null,null,null,null,null,null,null,null,null,null,null,0.64035019455252917,9.4925373134328347E-2,0.43666393442622947]
[22,0,2,0.75,null,4.2025E-2,164.57,121.28,116.71,67.570999999999998,8,3,2,null,1.1560000000000059,210,90,300,0,null,null,null,null,null,null,null,null,null,null,null,null,null,null,null,null,null,null,5,null,null,null,null,null,29,13450,13929,"k13450:k13929",0,0,0,0,0,0,0,0,0,0,0,null,22,{"$f":"SUM(BM$10:$BM31)","v":79236},{"$f":"SUM($BM$10:BM31)","v":79236},{"$f":"SUM(BM12:BM31)","v":73050},39507,3982,null,null,null,null,null,{"$f":"SUM($BW$10:BW31)/BH31","v":8.0909090909090917},{"$f":"SUM($BW$10:BW31)/BH31","v":8.0909090909090917},{"$f":"SUM(BW12:BW31)/20","v":8.0500000000000007},8.3000000000000007,9,"Ok","Ok","Ok","Ok","Ok",4,4,4,4,4,216098.18181818182,108049.09090909091,{"$f":"BK31","v":73050},39507,3982,"normal","normal","normal","normal","normal",null,null,null,null,null,"hyper","hyper","hyper","hyper","hyper",null,null,null,null,null,null,null,null,null,null,null,null,null,null,null,null,null,null,null,null,null,null,null,null,null,null,null,null,null,null,null,null,0.64035019455252917,9.4925373134328347E-2,0.44613934426229512]
[23,0,2,0.875,null,3.9407999999999999E-2,166.48,120.66,116.09,65.090999999999994,8,3,2,null,3.1910656527248094,null,null,null,null,null,null,null,null,null,null,null,null,null,null,null,null,null,null,null,null,null,null,6,null,null,null,null,null,30,13930,14409,"k13930:k14409",0,0,0,0,0,0,0,0,0,0,0,null,23,{"$f":"SUM(BM$10:$BM32)","v":83426},{"$f":"SUM($BM$10:BM32)","v":83426},{"$f":"SUM(BM13:BM32)","v":74154},40845,4190,null,null,null,null,null,{"$f":"SUM($BW$10:BW32)/BH32","v":8.0434782608695645},{"$f":"SUM($BW$10:BW32)/BH32","v":8.0434782608695645},8,8.1999999999999993,7,"Ok","Ok","Healthy","Ok","Healthy",{"$f":"INDEX($DP$22:$DP$25,MATCH(CM32,$DI$22:$DI$25,0))+INDEX($DP$11:$DP$14,MATCH(CW32,$DI$11:$DI$14,0))","v":4},4,6,4,6,217633.04347826086,108816.52173913043,74154,40845,4190,"normal","normal","normal","normal","normal",null,null,null,null,null,"hyper","hyper","normal","hyper","normal",null,null,null,null,null,null,null,null,null,null,null,null,null,null,null,null,null,null,null,null,null,null,null,null,null,null,null,null,null,null,null,null,0.64778210116731516,9.9552238805970181E-2,0.46646721311475414]
[24,0,3,0,null,3.8806E-2,170.61,121.54,117.85,62.462000000000003,8,3,2,null,4.9742276787457333,null,null,null,null,null,null,null,null,null,null,null,null,null,null,null,null,null,null,null,null,null,null,7,null,null,null,null,null,31,{"$f":"AT32+1","v":14410},{"$f":"AS33+480-1","v":14889},{"$f":"\"k\"&AS33&\":k\"&AT33","v":"k14410:k14889"},0,0,0,0,0,0,0,0,0,0,{"$f":"SUM(AW33:BE33)","v":0},null,24,{"$f":"SUM(BM$10:$BM33)","v":87920},{"$f":"SUM($BM$10:BM33)","v":87920},{"$f":"SUM(BM14:BM33)","v":75475},42268,4494,null,null,null,null,null,{"$f":"SUM($BW$10:BW33)/BH33","v":8.0833333333333339},{"$f":"SUM($BW$10:BW33)/BH33","v":8.0833333333333339},8,8.4,9,"Ok","Ok","Healthy","Ok","Ok",{"$f":"INDEX($DP$22:$DP$25,MATCH(CM33,$DI$22:$DI$25,0))+INDEX($DP$11:$DP$14,MATCH(CW33,$DI$11:$DI$14,0))","v":4},4,6,4,4,219800,109900,75475,42268,4494,"normal","normal","normal","normal","normal",null,null,null,null,null,"hyper","hyper","normal","hyper","hyper",null,null,null,null,null,null,null,null,null,null,null,null,null,null,null,null,null,null,null,null,null,null,null,null,null,null,null,null,null,null,null,null,0.66385214007782112,9.298507462686563E-2,0.48801639344262293]
[25,0,3,0.125,null,3.8623999999999999E-2,170.61,121.54,118.13,59.375,8,3,2,null,3.0870000000000033,null,null,null,null,null,null,null,null,null,null,null,null,null,null,null,null,null,null,null,null,null,null,8,null,null,null,null,null,32,14890,15369,"k14890:k15369",0,0,0,0,0,0,0,0,0,0,0,null,25,{"$f":"SUM(BM$10:$BM34)","v":92200},{"$f":"SUM($BM$10:BM34)","v":92200},{"$f":"SUM(BM15:BM34)","v":77332},42818,4280,null,null,null,null,null,{"$f":"SUM($BW$10:BW34)/BH34","v":8.1199999999999992},{"$f":"SUM($BW$10:BW34)/BH34","v":8.1199999999999992},8.3000000000000007,8.4,9,"Ok","Ok","Ok","Ok","Ok",{"$f":"INDEX($DP$22:$DP$25,MATCH(CM34,$DI$22:$DI$25,0))+INDEX($DP$11:$DP$14,MATCH(CW34,$DI$11:$DI$14,0))","v":4},4,4,4,4,221280,110640,77332,42818,4280,"normal","normal","normal","normal","normal",null,null,null,null,null,"hyper","hyper","hyper","hyper","hyper",null,null,null,null,null,null,null,null,null,null,null,null,null,null,null,null,null,null,null,null,null,null,null,null,null,null,null,null,null,null,null,null,0.66385214007782112,9.298507462686563E-2,0.51331967213114749]
[26,0,3,0.25,null,4.4158000000000003E-2,170.61,121.54,117.35,55,8,3,2,null,4.375,null,null,null,null,null,null,null,null,null,null,null,null,null,null,null,null,null,null,null,null,null,null,9,null,null,null,null,null,33,15370,15849,"k15370:k15849",0,0,0,0,0,0,0,0,0,0,0,null,26,{"$f":"SUM(BM$10:$BM35)","v":92303},{"$f":"SUM($BM$10:BM35)","v":92303},74033,39679,103,null,null,null,null,null,{"$f":"SUM($BW$10:BW35)/BH35","v":7.8076923076923075},{"$f":"SUM($BW$10:BW35)/BH35","v":7.8076923076923075},8,7.7,0,"Healthy","Healthy","Healthy","Healthy","Abnormal",6,6,6,6,0,213006.92307692309,106503.46153846155,74033,39679,103,"normal","normal","normal","normal","hypo",null,null,null,null,null,"normal","normal","normal","normal","hypo",null,null,null,null,null,null,null,null,null,null,null,null,null,null,null,null,null,null,null,null,null,null,null,null,null,null,null,null,null,null,null,null,0.66385214007782112,9.298507462686563E-2,0.54918032786885251]
[27,0,3,0.375,null,4.265E-2,170.61,121.54,117.11,51.052999999999997,8,3,2,null,3.9470000000000027,null,null,null,null,null,null,null,null,null,null,null,null,null,null,null,null,null,null,null,null,null,null,null,null,null,null,null,null,34,15850,16329,"k15850:k16329",0,0,0,0,0,0,0,0,0,0,0,null,27,{"$f":"SUM(BM$10:$BM36)","v":92303},{"$f":"SUM($BM$10:BM36)","v":92303},70477,35429,0,null,null,null,null,null,{"$f":"SUM($BW$10:BW36)/BH36","v":7.5185185185185182},{"$f":"SUM($BW$10:BW36)/BH36","v":7.5185185185185182},7.55,6.8,0,"Healthy","Healthy","Healthy","Healthy","Abnormal",6,6,6,6,0,205117.77777777778,102558.88888888889,70477,35429,0,"normal","normal","normal","normal","hypo",null,null,null,null,null,"normal","normal","normal","normal","hypo",null,null,null,null,null,null,null,null,null,null,null,null,null,null,null,null,null,null,null,null,null,null,null,null,null,null,null,null,null,null,null,null,0.66385214007782112,9.298507462686563E-2,0.5815327868852459]
[28,0,3,0.5,null,3.2481000000000003E-2,170.61,121.54,117.23,47.384999999999998,8,3,2,null,3.6679999999999993,null,null,null,null,null,null,null,null,null,null,null,null,null,null,null,null,null,null,null,null,null,null,null,null,null,null,null,null,35,16330,16809,"k16330:k16809",0,0,0,0,0,0,0,0,0,0,0,null,28,{"$f":"SUM(BM$10:$BM37)","v":92303},{"$f":"SUM($BM$10:BM37)","v":92303},66460,30165,0,null,null,null,null,null,{"$f":"SUM($BW$10:BW37)/BH37","v":7.25},{"$f":"SUM($BW$10:BW37)/BH37","v":7.25},7.1,5.9,0,"Healthy","Healthy","Healthy","Healthy","Abnormal",6,6,6,6,0,197792.14285714284,98896.07142857142,66460,30165,0,"normal","normal","normal","normal","hypo",null,null,null,null,null,"normal","normal","normal","normal","hypo",null,null,null,null,null,null,null,null,null,null,null,null,null,null,null,null,null,null,null,null,null,null,null,null,null,null,null,null,null,null,null,null,0.66385214007782112,9.298507462686563E-2,0.6115983606557378]
[29,0,3,0.625,null,4.3328999999999999E-2,170.61,121.54,115.21,45.25,8,3,2,null,2.134999999999998,null,null,null,null,null,null,null,null,null,null,null,null,null,null,null,null,null,null,null,null,null,null,null,null,null,null,null,null,36,16810,17289,"k16810:k17289",0,0,0,0,0,0,0,0,0,0,0,null,29,{"$f":"SUM(BM$10:$BM38)","v":92303},{"$f":"SUM($BM$10:BM38)","v":92303},63236,24486,0,null,null,null,null,null,{"$f":"SUM($BW$10:BW38)/BH38","v":7},{"$f":"SUM($BW$10:BW38)/BH38","v":7},6.65,5,0,"Healthy","Healthy","Healthy","Ok","Abnormal",6,6,6,4.5,0,190971.72413793104,95485.862068965522,63236,24486,0,"normal","normal","normal","low","hypo",null,null,null,null,null,"normal","normal","normal","normal","hypo",null,null,null,null,null,null,null,null,null,null,null,null,null,null,null,null,null,null,null,null,null,null,null,null,null,null,null,null,null,null,null,null,0.66385214007782112,9.298507462686563E-2,0.62909836065573765]
[30,0,3,0.75,null,3.9261999999999998E-2,170.61,121.54,113.88,40.6,8,3,2,null,4.6499999999999986,null,null,null,null,null,null,null,null,null,null,null,null,null,null,null,null,null,null,null,null,null,null,null,null,null,null,null,null,37,17290,17769,"k17290:k17769",0,{"$f":"SUMPRODUCT(--(INDIRECT($AU39)=AW$1))","v":0},0,0,0,0,0,0,0,0,0,null,30,{"$f":"SUM(BM$10:$BM39)","v":92303},{"$f":"SUM(BM10:BM39)","v":92303},{"$f":"SUM(BM20:BM39)","v":59592},20384,0,null,null,null,null,null,{"$f":"SUM($BW$10:BW39)/BH39","v":6.7666666666666666},{"$f":"SUM($BW$10:BW39)/BH39","v":6.7666666666666666},6.2,4.0999999999999996,0,"Healthy","Healthy","Healthy","Ok","Abnormal",6,6,6,4.5,0,184606,92303,59592,20384,0,"normal","normal","normal","low","hypo",null,null,null,null,null,"normal","normal","normal","normal","hypo",null,null,null,null,null,null,null,null,null,null,null,null,null,null,null,null,null,null,null,null,null,null,null,null,null,null,null,null,null,null,null,null,0.66385214007782112,9.298507462686563E-2,0.66721311475409839]
[31,0,3,0.875,null,3.85E-2,170.61,121.54,113.42,36.582999999999998,8,3,2,null,4.017000000000003,null,null,null,null,null,null,null,null,null,null,null,null,null,null,null,null,null,null,null,null,null,null,null,null,null,null,null,null,38,17770,18249,"k17770:k18249",0,0,0,0,0,0,0,0,0,0,0,null,31,{"$f":"SUM(BM$10:$BM40)","v":92303},{"$f":"SUM(BM11:BM40)","v":88852},{"$f":"SUM(BM21:BM40)","v":55713},{"$f":"SUM(BM31:BM40)","v":17049},{"$f":"ROUND(SUM(INDIRECT(\"o\"&AS33&\":o\"&AT33)),0)","v":0},null,null,null,null,null,{"$f":"SUM($BW$10:BW40)/BH40","v":6.5483870967741939},{"$f":"SUM($BW11:BW40)/30","v":6.5},{"$f":"SUM(BW21:BW40)/20","v":5.85},{"$f":"SUM(BW31:BW40)/10","v":3.4},{"$f":"AV33","v":0},"Healthy",{"$f":"INDEX($DY$11:$DY$17,MATCH(CD40,$DW$11:$DW$17,1))","v":"Healthy"},{"$f":"INDEX($DY$11:$DY$17,MATCH(CE40,$DW$11:$DW$17,1))","v":"Healthy"},{"$f":"INDEX($DY$11:$DY$17,MATCH(CF40,$DW$11:$DW$17,1))","v":"Unhealthy"},{"$f":"INDEX($DY$11:$DY$17,MATCH(CG40,$DW$11:$DW$17,1))","v":"Abnormal"},6,{"$f":"INDEX($DP$22:$DP$25,MATCH(CN40,$DI$22:$DI$25,0))+INDEX($DP$11:$DP$14,MATCH(CX40,$DI$11:$DI$14,0))","v":6},{"$f":"INDEX($DP$22:$DP$25,MATCH(CO40,$DI$22:$DI$25,0))+INDEX($DP$11:$DP$14,MATCH(CY40,$DI$11:$DI$14,0))","v":6},{"$f":"INDEX($DP$22:$DP$25,MATCH(CP40,$DI$22:$DI$25,0))+INDEX($DP$11:$DP$14,MATCH(CZ40,$DI$11:$DI$14,0))","v":3},{"$f":"INDEX($DP$22:$DP$25,MATCH(CQ40,$DI$22:$DI$25,0))+INDEX($DP$11:$DP$14,MATCH(DA40,$DI$11:$DI$14,0))","v":0},178650.96774193548,88852,55713,17049,0,"normal",{"$f":"IF(CI40>=$DK$14,$DI$14,INDEX($DI$10:$DI$13,MATCH(CI40,$DK$10:$DK$13,1)+1))","v":"normal"},{"$f":"IF(CJ40>=$DL$14,$DI$14,INDEX($DI$10:$DI$13,MATCH(CJ40,$DL$10:$DL$13,1)+1))","v":"normal"},{"$f":"IF(CK40>=$DM$14,$DI$14,INDEX($DI$10:$DI$13,MATCH(CK40,$DM$10:$DM$13,1)+1))","v":"low"},{"$f":"IF(CL40>=$DN$14,$DI$14,INDEX($DI$10:$DI$13,MATCH(CL40,$DN$10:$DN$13,1)+1))","v":"hypo"},null,null,null,null,null,"normal","normal",{"$f":"IF(BU40>=$DL$25,$DI$25,INDEX($DI$21:$DI$24,MATCH(BU40,$DL$21:$DL$24,1)))","v":"normal"},{"$f":"IF(BV40>=$DM$25,$DI$25,INDEX($DI$21:$DI$24,MATCH(BV40,$DM$21:$DM$24,1)))","v":"low"},"hypo",null,null,null,null,null,null,null,null,null,null,null,null,null,null,null,null,null,null,null,null,null,null,null,null,null,null,null,null,null,null,null,null,0.66385214007782112,9.298507462686563E-2,0.70013934426229507]
[32,0,4,0,null,3.5270000000000003E-2,170.61,121.54,111.76,33.293999999999997,8,3,2,null,3.2890000000000015,null,null,null,null,null,null,null,null,null,null,null,null,null,null,null,null,null,null,null,null,null,null,null,null,null,null,null,null,39,18250,18729,"k18250:k18729",0,0,0,0,0,0,0,0,0,0,0,null,32,{"$f":"SUM(BM$10:$BM41)","v":92303},{"$f":"SUM(BM12:BM41)","v":86117},{"$f":"SUM(BM22:BM41)","v":52574},13067,0,null,null,null,null,null,{"$f":"SUM($BW$10:BW41)/BH41","v":6.34375},{"$f":"SUM($BW12:BW41)/30","v":6.2},5.4,2.5,0,"Healthy","Healthy","Ok","Abnormal","Abnormal",6,6,4.5,0,0,173068.125,86117,52574,13067,0,"normal","normal","low","hypo","hypo",null,null,null,null,null,"normal","normal","normal","hypo","hypo",null,null,null,null,null,null,null,null,null,null,null,null,null,null,null,null,null,null,null,null,null,null,null,null,null,null,null,null,null,null,null,null,0.66385214007782112,9.298507462686563E-2,0.72709836065573774]
[33,0,4,0.125,null,4.2758999999999998E-2,170.61,121.54,109.91,32.273000000000003,8,3,2,null,1.0209999999999937,null,null,null,null,null,null,null,null,null,null,null,null,null,null,null,null,null,null,null,null,null,null,null,null,null,null,null,null,40,18730,19209,"k18730:k19209",0,0,0,0,0,0,0,0,0,0,0,null,33,{"$f":"SUM(BM$10:$BM42)","v":92303},{"$f":"SUM(BM13:BM42)","v":83031},{"$f":"SUM(BM23:BM42)","v":49722},8877,0,null,null,null,null,null,{"$f":"SUM($BW$10:BW42)/BH42","v":6.1515151515151514},{"$f":"SUM($BW13:BW42)/30","v":5.9333333333333336},5,1.8,0,"Healthy","Healthy","Ok","Abnormal","Abnormal",6,6,4.5,0,0,167823.63636363635,83031,49722,8877,0,"normal","normal","low","hypo","hypo",null,null,null,null,null,"normal","normal","normal","hypo","hypo",null,null,null,null,null,null,null,null,null,null,null,null,null,null,null,null,null,null,null,null,null,null,null,null,null,null,null,null,null,null,null,null,0.66385214007782112,9.298507462686563E-2,0.73546721311475416]
[34,0,4,0.25,null,3.4464000000000002E-2,155.19999999999999,121.57,103.15,27.65,8,3,2,null,16.088540300474772,null,null,null,null,null,null,null,null,null,null,null,null,null,null,null,null,null,null,null,null,null,null,null,null,null,null,null,null,41,19210,19689,"k19210:k19689",{"$f":"9-SUMPRODUCT(--(AW43:BE43=0))","v":0},0,0,0,0,0,0,0,0,0,0,null,34,{"$f":"SUM(BM$10:$BM43)","v":92303},{"$f":"SUM(BM14:BM43)","v":79858},{"$f":"SUM(BM24:BM43)","v":46651},4383,0,null,null,null,null,null,{"$f":"SUM($BW$10:BW43)/BH43","v":5.9705882352941178},{"$f":"SUM($BW14:BW43)/30","v":5.6333333333333337},4.6500000000000004,0.9,0,"Healthy","Ok","Ok","Abnormal","Abnormal",6,4.5,4.5,0,0,162887.64705882355,79858,46651,4383,0,"normal","low","low","hypo","hypo",null,null,null,null,null,"normal","normal","normal","hypo","hypo",null,null,null,null,null,null,null,null,null,null,null,null,null,null,null,null,null,null,null,null,null,null,null,null,null,null,null,null,null,null,null,null,0.60389105058365755,9.2761194029850794E-2,0.77336065573770485]
[35,0,4,0.375,null,4.3351000000000001E-2,155.19999999999999,121.57,100.27,25.635999999999999,8,3,2,null,2.0139999999999993,null,null,null,null,null,null,null,null,null,null,null,null,null,null,null,null,null,null,null,null,null,null,null,null,null,null,null,null,42,19690,20169,"k19690:k20169",0,0,0,0,0,0,0,0,0,0,0,null,35,{"$f":"SUM(BM$10:$BM44)","v":92303},77435,42921,103,0,null,null,null,null,null,{"$f":"SUM($BW$10:BW44)/BH44","v":5.8},{"$f":"SUM($BW15:BW44)/30","v":5.5333333333333332},4.2,0,0,"Ok","Ok","Ok","Abnormal","Abnormal",4.5,4.5,4.5,0,0,158233.71428571429,77435,42921,103,0,"low","low","low","hypo","hypo",null,null,null,null,null,"normal","normal","normal","hypo","hypo",null,null,null,null,null,null,null,null,null,null,null,null,null,null,null,null,null,null,null,null,null,null,null,null,null,null,null,null,null,null,null,null,0.60389105058365755,9.2761194029850794E-2,0.78986885245901639]
[36,0,4,0.5,null,3.2964E-2,149.16,121.39,97.3,23.9,8,3,2,null,6.2871055343456659,null,null,null,null,null,null,null,null,null,null,null,null,null,null,null,null,null,null,null,null,null,null,null,null,null,null,null,null,43,20170,20649,"k20170:k20649",0,0,0,0,0,0,0,0,0,0,0,null,36,{"$f":"SUM(BM$10:$BM45)","v":92303},74033,39679,0,0,null,null,null,null,null,{"$f":"SUM($BW$10:BW45)/BH45","v":5.6388888888888893},{"$f":"SUM($BW16:BW45)/30","v":5.333333333333333},3.85,0,0,"Ok","Ok","Unhealthy","Abnormal","Abnormal",4.5,4.5,3,0,0,153838.33333333334,74033,39679,0,0,"low","low","low","hypo","hypo",null,null,null,null,null,"normal","normal","low","hypo","hypo",null,null,null,null,null,null,null,null,null,null,null,null,null,null,null,null,null,null,null,null,null,null,null,null,null,null,null,null,null,null,null,null,0.58038910505836572,9.4104477611940296E-2,0.8040983606557377]
[37,0,4,0.625,null,4.3048999999999997E-2,142.16,121.18,93.786000000000001,22.428999999999998,8,3,2,null,7.1559724007293379,null,null,null,null,null,null,null,null,null,null,null,null,null,null,null,null,null,null,null,null,null,null,null,null,null,null,null,null,44,20650,21129,"k20650:k21129",0,0,0,0,0,0,0,0,0,0,0,null,37,{"$f":"SUM(BM$10:$BM46)","v":92303},70477,35429,0,0,null,null,null,null,null,{"$f":"SUM($BW$10:BW46)/BH46","v":5.4864864864864868},{"$f":"SUM($BW17:BW46)/30","v":5.0333333333333332},3.4,0,0,"Ok","Ok","Unhealthy","Abnormal","Abnormal",4.5,4.5,3,0,0,149680.54054054056,70477,35429,0,0,"low","low","low","hypo","hypo",null,null,null,null,null,"normal","normal","low","hypo","hypo",null,null,null,null,null,null,null,null,null,null,null,null,null,null,null,null,null,null,null,null,null,null,null,null,null,null,null,null,null,null,null,null,0.55315175097276259,9.5671641791044731E-2,0.81615573770491801]
[38,0,4,0.75,null,3.6850000000000001E-2,135.53,121.38,91.16,24.56,8,3,2,null,6.9669262232350313,null,null,null,null,null,null,null,null,null,null,null,null,null,null,null,null,null,null,null,null,null,null,null,null,null,null,null,null,45,21130,21609,"k21130:k21609",0,0,0,0,0,0,0,0,0,0,0,null,38,{"$f":"SUM(BM$10:$BM47)","v":92303},66460,30165,0,0,null,null,null,null,null,{"$f":"SUM($BW$10:BW47)/BH47","v":5.3421052631578947},{"$f":"SUM($BW18:BW47)/30","v":4.7333333333333334},2.95,0,0,"Ok","Ok","Abnormal","Abnormal","Abnormal",4.5,4.5,0,0,0,145741.57894736843,66460,30165,0,0,"low","low","hypo","hypo","hypo",null,null,null,null,null,"normal","normal","hypo","hypo","hypo",null,null,null,null,null,null,null,null,null,null,null,null,null,null,null,null,null,null,null,null,null,null,null,null,null,null,null,null,null,null,null,null,0.52735408560311281,9.4179104477611977E-2,0.79868852459016393]
[39,0,4,0.875,null,4.2937999999999997E-2,135.53,121.38,86.713999999999999,24.619,8,3,2,null,5.9000000000001052E-2,null,null,null,null,null,null,null,null,null,null,null,null,null,null,null,null,null,null,null,null,null,null,null,null,null,null,null,null,46,21610,22089,"k21610:k22089",0,0,0,0,0,0,0,0,0,0,0,null,39,{"$f":"SUM(BM$10:$BM48)","v":92303},63236,24486,0,0,null,null,null,null,null,{"$f":"SUM($BW$10:BW48)/BH48","v":5.2051282051282053},{"$f":"SUM($BW19:BW48)/30","v":4.4333333333333336},2.5,0,{"$f":"AV41","v":0},"Ok","Ok","Abnormal","Abnormal","Abnormal",4.5,4.5,0,0,0,142004.61538461538,63236,24486,0,0,"low","low","hypo","hypo","hypo",null,null,null,null,null,"normal","normal","hypo","hypo","hypo",null,null,null,null,null,null,null,null,null,null,null,null,null,null,null,null,null,null,null,null,null,null,null,null,null,null,null,null,null,null,null,null,0.52735408560311281,9.4179104477611977E-2,0.79820491803278693]
[40,0,5,0,null,3.6357E-2,129.54,120.93,82.713999999999999,24.619,8,3,2,null,6.0068793895000168,null,null,null,null,null,null,null,null,null,null,null,null,null,null,null,null,null,null,null,null,null,null,null,null,null,null,null,null,47,22090,22569,"k22090:k22569",0,0,0,0,0,0,0,0,0,0,0,null,40,{"$f":"SUM(BM$10:$BM49)","v":92303},59592,20384,0,0,null,null,null,null,null,{"$f":"SUM($BW$10:BW49)/BH49","v":5.0750000000000002},{"$f":"SUM($BW20:BW49)/30","v":4.1333333333333337},2.0499999999999998,0,{"$f":"AV42","v":0},"Ok","Ok","Abnormal","Abnormal",{"$f":"INDEX($DY$11:$DY$17,MATCH(CG49,$DW$11:$DW$17,1))","v":"Abnormal"},4.5,4.5,0,0,{"$f":"INDEX($DP$22:$DP$25,MATCH(CQ49,$DI$22:$DI$25,0))+INDEX($DP$11:$DP$14,MATCH(DA49,$DI$11:$DI$14,0))","v":0},138454.5,59592,20384,0,0,"low","low","hypo","hypo","hypo",null,null,null,null,null,"normal","normal","hypo","hypo","hypo",null,null,null,null,null,null,null,null,null,null,null,null,null,null,null,null,null,null,null,null,null,null,null,null,null,null,null,null,null,null,null,null,0.50404669260700385,9.7537313432835768E-2,0.79820491803278693]
[41,0,5,0.125,null,3.8185999999999998E-2,120.1,121.37,82.52,24.44,8,3,2,null,9.4519437683473324,null,null,null,null,null,null,null,null,null,null,null,null,null,null,null,null,null,null,null,null,null,null,null,null,null,null,null,null,48,22570,23049,"k22570:k23049",0,0,0,0,0,0,0,0,0,0,0,null,41,{"$f":"SUM(BM$10:$BM50)","v":92303},55713,17049,0,0,null,null,null,null,null,{"$f":"SUM($BW$10:BW50)/BH50","v":4.9512195121951219},{"$f":"SUM($BW21:BW50)/30","v":3.9},1.7,0,0,"Ok","Unhealthy","Abnormal","Abnormal","Abnormal",4.5,3,0,0,{"$f":"INDEX($DP$22:$DP$25,MATCH(CQ50,$DI$22:$DI$25,0))+INDEX($DP$11:$DP$14,MATCH(DA50,$DI$11:$DI$14,0))","v":0},135077.56097560975,55713,17049,0,0,"low","low","hypo","hypo","hypo",null,null,null,null,null,"normal","low","hypo","hypo",{"$f":"IF(BW50>=$DN$25,$DI$25,INDEX($DI$21:$DI$24,MATCH(BW50,$DN$21:$DN$24,1)))","v":"hypo"},null,null,null,null,null,null,null,null,null,null,null,null,null,null,null,null,null,null,null,null,null,null,null,null,null,null,null,null,null,null,null,null,0.46731517509727627,9.4253731343283548E-2,0.79967213114754099]
[42,0,5,0.25,null,4.2875999999999997E-2,120.1,121.37,78.765000000000001,23.882000000000001,8,3,2,null,0.55799999999999983,null,null,null,null,null,null,null,null,null,null,null,null,null,null,null,null,null,null,null,null,null,null,null,null,null,null,null,null,49,23050,23529,"k23050:k23529",0,0,0,0,0,0,0,0,0,0,0,null,42,{"$f":"SUM(BM$10:$BM51)","v":92303},52574,13067,0,0,null,null,null,null,null,{"$f":"SUM($BW$10:BW51)/BH51","v":4.833333333333333},{"$f":"SUM($BW22:BW51)/30","v":3.6},1.25,0,0,"Ok","Unhealthy","Abnormal","Abnormal","Abnormal",4.5,3,0,0,{"$f":"INDEX($DP$22:$DP$25,MATCH(CQ51,$DI$22:$DI$25,0))+INDEX($DP$11:$DP$14,MATCH(DA51,$DI$11:$DI$14,0))","v":0},131861.42857142858,52574,13067,0,0,"low","low","hypo","hypo","hypo",null,null,null,null,null,"normal","low","hypo","hypo","hypo",null,null,null,null,null,null,null,null,null,null,null,null,null,null,null,null,null,null,null,null,null,null,null,null,null,null,null,null,null,null,null,null,0.46731517509727627,9.4253731343283548E-2,0.80424590163934417]
[43,0,5,0.375,null,3.7509000000000001E-2,116.21,120.95,81.832999999999998,25.832999999999998,8,3,2,null,4.3720591258582031,null,null,null,null,null,null,null,null,null,null,null,null,null,null,null,null,null,null,null,null,null,null,null,null,null,null,null,null,50,23530,24009,"k23530:k24009",0,0,0,0,0,0,0,0,0,0,0,null,43,{"$f":"SUM(BM$10:$BM52)","v":92303},49722,8877,0,0,null,null,null,null,null,{"$f":"SUM($BW$10:BW52)/BH52","v":4.7209302325581399},{"$f":"SUM($BW23:BW52)/30","v":3.3333333333333335},0.9,0,0,"Ok","Abnormal","Abnormal","Abnormal","Abnormal",4.5,1.5,0,0,0,128794.88372093024,49722,8877,0,0,"low","hypo","hypo","hypo","hypo",null,null,null,null,null,"normal","low","hypo","hypo","hypo",null,null,null,null,null,null,null,null,null,null,null,null,null,null,null,null,null,null,null,null,null,null,null,null,null,null,null,null,null,null,null,null,0.45217898832684822,9.7388059701492516E-2,0.78825409836065574]
[44,0,5,0.5,null,3.9571000000000002E-2,107.57,121.72,73.150000000000006,24.2,8,3,2,null,8.8266182085779601,null,null,null,null,null,null,null,null,null,null,null,null,null,null,null,null,null,null,null,null,null,null,null,null,null,null,null,null,51,24010,24489,"k24010:k24489",0,0,0,0,0,0,0,0,0,0,0,null,44,{"$f":"SUM(BM$10:$BM53)","v":92303},46651,4383,0,0,null,null,null,null,null,{"$f":"SUM($BW$10:BW53)/BH53","v":4.6136363636363633},{"$f":"SUM($BW24:BW53)/30","v":3.1},0.45,0,0,"Ok","Abnormal","Abnormal","Abnormal","Abnormal",4.5,1.5,0,0,0,125867.72727272726,46651,4383,0,0,"low","hypo","hypo","hypo","hypo",null,null,null,null,null,"normal","low","hypo","hypo","hypo",null,null,null,null,null,null,null,null,null,null,null,null,null,null,null,null,null,null,null,null,null,null,null,null,null,null,null,null,null,null,null,null,0.41856031128404669,9.1641791044776127E-2,0.80163934426229511]
[45,0,5,0.625,null,3.9247999999999998E-2,107.57,121.72,69.5,25.917000000000002,8,3,2,null,1.7170000000000023,null,null,null,null,null,null,null,null,null,null,null,null,null,null,null,null,null,null,null,null,null,null,null,null,null,null,null,null,52,24490,24969,"k24490:k24969",0,0,0,0,0,0,0,0,0,0,0,null,45,{"$f":"SUM(BM$10:$BM54)","v":92303},42921,103,0,0,null,null,null,null,null,{"$f":"SUM($BW$10:BW54)/BH54","v":4.5111111111111111},{"$f":"SUM($BW25:BW54)/30","v":2.8},0,0,0,"Ok","Abnormal","Abnormal","Abnormal","Abnormal",4.5,0,0,0,0,123070.66666666667,42921,103,0,0,"low","hypo","hypo","hypo","hypo",null,null,null,null,null,"normal","hypo","hypo","hypo","hypo",null,null,null,null,null,null,null,null,null,null,null,null,null,null,null,null,null,null,null,null,null,null,null,null,null,null,null,null,null,null,null,null,0.41856031128404669,9.1641791044776127E-2,0.78756557377049174]
[46,0,5,0.75,null,3.9580999999999998E-2,100.63,120.13,64.105000000000004,27.158000000000001,8,3,2,null,7.2271558029421215,null,null,null,null,null,null,null,null,null,null,null,null,null,null,null,null,null,null,null,null,null,null,null,null,null,null,null,null,53,24970,25449,"k24970:k25449",0,0,0,0,0,0,0,0,0,0,0,null,46,{"$f":"SUM(BM$10:$BM55)","v":92303},39679,0,0,0,null,null,null,null,null,{"$f":"SUM($BW$10:BW55)/BH55","v":4.4130434782608692},{"$f":"SUM($BW26:BW55)/30","v":2.5666666666666669},0,0,0,"Ok","Abnormal","Abnormal","Abnormal","Abnormal",4.5,0,0,0,0,120395.21739130435,39679,0,0,0,"low","hypo","hypo","hypo","hypo",null,null,null,null,null,"normal","hypo","hypo","hypo","hypo",null,null,null,null,null,null,null,null,null,null,null,null,null,null,null,null,null,null,null,null,null,null,null,null,null,null,null,null,null,null,null,null,0.39155642023346304,0.1035074626865672,0.77739344262295085]
[47,0,5,0.875,null,4.1753999999999999E-2,89.91,120.3,60,28.332999999999998,8,3,2,null,10.785542406388284,null,null,null,null,null,null,null,null,null,null,null,null,null,null,null,null,null,null,null,null,null,null,null,null,null,null,null,null,54,25450,25929,"k25450:k25929",0,0,0,0,0,0,0,0,0,0,0,null,47,{"$f":"SUM(BM$10:$BM56)","v":92303},35429,0,0,0,null,null,null,null,null,{"$f":"SUM($BW$10:BW56)/BH56","v":4.3191489361702127},{"$f":"SUM($BW27:BW56)/30","v":2.2666666666666666},0,0,0,"Ok","Abnormal","Abnormal","Abnormal","Abnormal",4.5,0,0,0,0,117833.6170212766,35429,0,0,0,"low","hypo","hypo","hypo","hypo",null,null,null,null,null,"normal","hypo","hypo","hypo","hypo",null,null,null,null,null,null,null,null,null,null,null,null,null,null,null,null,null,null,null,null,null,null,null,null,null,null,null,null,null,null,null,null,0.3498443579766537,0.10223880597014927,0.76776229508196725]
[48,0,6,0,null,4.1100999999999999E-2,89.91,120.3,57.823999999999998,29.175999999999998,8,3,2,null,0.84299999999999997,null,null,null,null,null,null,null,null,null,null,null,null,null,null,null,null,null,null,null,null,null,null,null,null,null,null,null,null,55,25930,26409,"k25930:k26409",0,0,0,0,0,0,0,0,0,0,0,null,48,{"$f":"SUM(BM$10:$BM57)","v":92303},30165,0,0,0,null,null,null,null,null,{"$f":"SUM($BW$10:BW57)/BH57","v":4.229166666666667},{"$f":"SUM($BW28:BW57)/30","v":1.9666666666666666},0,0,0,"Ok","Abnormal","Abnormal","Abnormal","Abnormal",4.5,0,0,0,0,115378.75,30165,0,0,0,"low","hypo","hypo","hypo","hypo",null,null,null,null,null,"normal","hypo","hypo","hypo","hypo",null,null,null,null,null,null,null,null,null,null,null,null,null,null,null,null,null,null,null,null,null,null,null,null,null,null,null,null,null,null,null,null,0.3498443579766537,0.10223880597014927,0.76085245901639342]
[49,0,6,0.125,null,3.5604999999999998E-2,87.986999999999995,120.92,62.167000000000002,31.5,8,3,2,null,3.0794975239477007,null,null,null,null,null,null,null,null,null,null,null,null,null,null,null,null,null,null,null,null,null,null,null,null,null,null,null,null,56,26410,26889,"k26410:k26889",0,0,0,0,0,0,0,0,0,0,0,null,49,{"$f":"SUM(BM$10:$BM58)","v":92303},24486,0,0,0,null,null,null,null,null,{"$f":"SUM($BW$10:BW58)/BH58","v":4.1428571428571432},{"$f":"SUM($BW29:BW58)/30","v":1.6666666666666667},0,0,0,"Ok","Abnormal","Abnormal","Abnormal","Abnormal",4.5,0,0,0,0,113024.08163265306,24486,0,0,0,"low","hypo","hypo","hypo","hypo",null,null,null,null,null,"normal","hypo","hypo","hypo","hypo",null,null,null,null,null,null,null,null,null,null,null,null,null,null,null,null,null,null,null,null,null,null,null,null,null,null,null,null,null,null,null,null,0.34236186770428012,9.7611940298507449E-2,0.74180327868852458]
[50,0,6,0.25,null,4.2195999999999997E-2,80.578999999999994,114.46,53,24.231000000000002,7,3,1,null,12.224910020118761,null,null,null,null,null,null,null,null,null,null,null,null,null,null,null,null,null,null,null,null,null,null,null,null,null,null,null,null,57,26890,27369,"k26890:k27369",0,0,0,0,0,0,0,0,0,0,0,null,50,{"$f":"SUM(BM$10:$BM59)","v":92303},20384,0,0,0,null,null,null,null,null,{"$f":"SUM($BW$10:BW59)/BH59","v":4.0599999999999996},{"$f":"SUM($BW30:BW59)/30","v":1.3666666666666667},0,0,0,"Ok","Abnormal","Abnormal","Abnormal","Abnormal",4.5,0,0,0,0,110763.59999999999,20384,0,0,0,"low","hypo","hypo","hypo","hypo",null,null,null,null,null,"normal","hypo","hypo","hypo","hypo",null,null,null,null,null,null,null,null,null,null,null,null,null,null,null,null,null,null,null,null,null,null,null,null,null,null,null,null,null,null,null,null,0.31353696498054473,0.14582089552238811,0.8013852459016394]
[51,0,6,0.375,null,4.0962999999999999E-2,75.849999999999994,113.13,50.5,22.167000000000002,7,3,1,null,5.3284554047115744,null,null,null,null,null,null,null,null,null,null,null,null,null,null,null,null,null,null,null,null,null,null,null,null,null,null,null,null,58,27370,27849,"k27370:k27849",0,0,0,0,0,0,0,0,0,0,0,null,51,{"$f":"SUM(BM$10:$BM60)","v":92303},17049,0,0,0,null,null,null,null,null,{"$f":"SUM($BW$10:BW60)/BH60","v":3.9803921568627452},{"$f":"SUM($BW31:BW60)/30","v":1.1333333333333333},0,0,0,"Unhealthy","Abnormal","Abnormal","Abnormal","Abnormal",3,0,0,0,0,108591.76470588235,17049,0,0,0,"low","hypo","hypo","hypo","hypo",null,null,null,null,null,"low","hypo","hypo","hypo","hypo",null,null,null,null,null,null,null,null,null,null,null,null,null,null,null,null,null,null,null,null,null,null,null,null,null,null,null,null,null,null,null,null,0.29513618677042797,0.15574626865671645,0.81830327868852459]
[52,0,6,0.5,null,3.7469000000000002E-2,75.849999999999994,113.13,49.5,18.2,7,3,1,null,3.9670000000000023,null,null,null,null,null,null,null,null,null,null,null,null,null,null,null,null,null,null,null,null,null,null,null,null,null,null,null,null,59,27850,28329,"k27850:k28329",0,0,0,0,0,0,0,0,0,0,0,null,52,{"$f":"SUM(BM$10:$BM61)","v":92303},13067,0,0,0,null,null,null,null,null,{"$f":"SUM($BW$10:BW61)/BH61","v":3.9038461538461537},{"$f":"SUM($BW32:BW61)/30","v":0.83333333333333337},0,0,0,"Unhealthy","Abnormal","Abnormal","Abnormal","Abnormal",3,0,0,0,0,106503.46153846155,13067,0,0,0,"low","hypo","hypo","hypo","hypo",null,null,null,null,null,"low","hypo","hypo","hypo","hypo",null,null,null,null,null,null,null,null,null,null,null,null,null,null,null,null,null,null,null,null,null,null,null,null,null,null,null,null,null,null,null,null,0.29513618677042797,0.15574626865671645,0.85081967213114751]
[53,0,6,0.625,null,3.6551E-2,74.286000000000001,110.18,46.777999999999999,16.277999999999999,7,3,1,null,3.8526198878165898,null,null,null,null,null,null,null,null,null,null,null,null,null,null,null,null,null,null,null,null,null,null,null,null,null,null,null,null,60,28330,28809,"k28330:k28809",0,0,0,0,0,0,0,0,0,0,0,null,53,{"$f":"SUM(BM$10:$BM62)","v":92303},8877,0,0,0,null,null,null,null,null,{"$f":"SUM($BW$10:BW62)/BH62","v":3.8301886792452828},{"$f":"SUM($BW33:BW62)/30","v":0.6},0,0,0,"Unhealthy","Abnormal","Abnormal","Abnormal","Abnormal",3,0,0,0,0,104493.96226415093,8877,0,0,0,"low","hypo","hypo","hypo","hypo",null,null,null,null,null,"low","hypo","hypo","hypo","hypo",null,null,null,null,null,null,null,null,null,null,null,null,null,null,null,null,null,null,null,null,null,null,null,null,null,null,null,null,null,null,null,null,0.28905058365758757,0.17776119402985069,0.8665737704918034]
[54,0,6,0.75,null,4.3078999999999999E-2,68.451999999999998,107.55,44.356999999999999,13.571,7,3,1,null,6.9484030539398098,null,null,null,null,null,null,null,null,null,null,null,null,null,null,null,null,null,null,null,null,null,null,null,null,null,null,null,null,null,null,null,null,null,null,null,null,null,null,null,null,null,null,null,null,54,{"$f":"SUM(BM$10:$BM63)","v":92303},4383,0,0,0,null,null,null,null,null,{"$f":"SUM($BW$10:BW63)/BH63","v":3.7592592592592591},{"$f":"SUM($BW34:BW63)/30","v":0.3},0,0,0,"Unhealthy","Abnormal","Abnormal","Abnormal","Abnormal",3,0,0,0,0,102558.88888888889,4383,0,0,0,"low","hypo","hypo","hypo","hypo",null,null,null,null,null,"low","hypo","hypo","hypo","hypo",null,null,null,null,null,null,null,null,null,null,null,null,null,null,null,null,null,null,null,null,null,null,null,null,null,null,null,null,null,null,null,null,0.26635019455252917,0.19738805970149256,0.88876229508196725]
[55,0,6,0.875,null,3.5041000000000003E-2,68.451999999999998,107.55,40.5,13.5,7,3,1,null,7.099999999999973E-2,null,null,null,null,null,null,null,null,null,null,null,null,null,null,null,null,null,null,null,null,null,null,null,null,null,null,null,null,null,null,null,null,null,null,null,null,null,null,null,null,null,null,null,null,55,{"$f":"SUM(BM$10:$BM64)","v":92303},103,0,0,0,null,null,null,null,null,{"$f":"SUM($BW$10:BW64)/BH64","v":3.6909090909090909},{"$f":"SUM($BW35:BW64)/30","v":0},0,0,0,"Unhealthy","Abnormal","Abnormal","Abnormal","Abnormal",3,0,0,0,0,100694.18181818182,103,0,0,0,"low","hypo","hypo","hypo","hypo",null,null,null,null,null,"low","hypo","hypo","hypo","hypo",null,null,null,null,null,null,null,null,null,null,null,null,null,null,null,null,null,null,null,null,null,null,null,null,null,null,null,null,null,null,null,null,0.26635019455252917,0.19738805970149256,0.88934426229508201]
[56,0,7,0,null,3.0925999999999999E-2,63.543999999999997,105.05,35,12.125,7,3,1,null,5.6770669363677593,null,null,null,null,null,null,null,null,null,null,null,null,null,null,null,null,null,null,null,null,null,null,null,null,null,null,null,null,null,null,null,null,null,null,null,null,null,null,null,null,null,null,null,null,56,{"$f":"SUM(BM$10:$BM65)","v":92303},0,0,0,0,null,null,null,null,null,{"$f":"SUM($BW$10:BW65)/BH65","v":3.625},{"$f":"SUM($BW36:BW65)/30","v":0},0,0,0,"Abnormal","Abnormal","Abnormal","Abnormal","Abnormal",1.5,0,0,0,0,98896.07142857142,0,0,0,0,"hypo","hypo","hypo","hypo","hypo",null,null,null,null,null,"low","hypo","hypo","hypo","hypo",null,null,null,null,null,null,null,null,null,null,null,null,null,null,null,null,null,null,null,null,null,null,null,null,null,null,null,null,null,null,null,null,0.24725291828793772,0.21604477611940301,0.90061475409836067]
[57,0,7,0.125,null,3.8567999999999998E-2,51.933,101.92,30.417000000000002,11.333,7,3,1,null,12.051534549591596,null,null,null,null,null,null,null,null,null,null,null,null,null,null,null,null,null,null,null,null,null,null,null,null,null,null,null,null,null,null,null,null,null,null,null,null,null,null,null,null,null,null,null,null,57,{"$f":"SUM(BM$10:$BM66)","v":92303},0,0,0,0,null,null,null,null,null,{"$f":"SUM($BW$10:BW66)/BH66","v":3.5614035087719298},{"$f":"SUM($BW37:BW66)/30","v":0},0,0,0,"Abnormal","Abnormal","Abnormal","Abnormal","Abnormal",1.5,0,0,0,0,97161.052631578947,0,0,0,0,"hypo","hypo","hypo","hypo","hypo",null,null,null,null,null,"low","hypo","hypo","hypo","hypo",null,null,null,null,null,null,null,null,null,null,null,null,null,null,null,null,null,null,null,null,null,null,null,null,null,null,null,null,null,null,null,null,0.2020739299610895,0.23940298507462685,0.90710655737704915]
[58,0,7,0.25,null,4.5243999999999999E-2,51.933,101.92,30.417000000000002,11.333,7,3,1,null,0,null,null,null,null,null,null,null,null,null,null,null,null,null,null,null,null,null,null,null,null,null,null,null,null,null,null,null,null,null,null,null,null,null,null,null,null,null,null,null,null,null,null,null,null,58,{"$f":"SUM(BM$10:$BM67)","v":92303},0,0,0,0,null,null,null,null,null,{"$f":"SUM($BW$10:BW67)/BH67","v":3.5},{"$f":"SUM($BW38:BW67)/30","v":0},0,0,0,"Abnormal","Abnormal","Abnormal","Abnormal","Abnormal",1.5,0,0,0,0,95485.862068965522,0,0,0,0,"hypo","hypo","hypo","hypo","hypo",null,null,null,null,null,"low","hypo","hypo","hypo","hypo",null,null,null,null,null,null,null,null,null,null,null,null,null,null,null,null,null,null,null,null,null,null,null,null,null,null,null,null,null,null,null,null,0.2020739299610895,0.23940298507462685,0.90710655737704915]
[59,0,7,0.375,null,3.8233999999999997E-2,47.716999999999999,101.58,25.706,11.176,7,3,1,null,4.2326002646127598,null,null,null,null,null,null,null,null,null,null,null,null,null,null,null,null,null,null,null,null,null,null,null,null,null,null,null,null,null,null,null,null,null,null,null,null,null,null,null,null,null,null,null,null,59,{"$f":"SUM(BM$10:$BM68)","v":92303},0,0,0,0,null,null,null,null,null,{"$f":"SUM($BW$10:BW68)/BH68","v":3.4406779661016951},{"$f":"SUM($BW39:BW68)/30","v":0},0,0,0,"Abnormal","Abnormal","Abnormal","Abnormal","Abnormal",1.5,0,0,0,0,93867.457627118638,0,0,0,0,"hypo","hypo","hypo","hypo","hypo",null,null,null,null,null,"low","hypo","hypo","hypo","hypo",null,null,null,null,null,null,null,null,null,null,null,null,null,null,null,null,null,null,null,null,null,null,null,null,null,null,null,null,null,null,null,null,0.18566926070038911,0.24194029850746271,0.90839344262295085]
[60,0,7,0.5,null,3.8162000000000001E-2,39.729999999999997,99.745999999999995,21.529,13.353,7,3,1,null,8.4790951168152393,null,null,null,null,null,null,null,null,null,null,null,null,null,null,null,null,null,null,null,null,null,null,null,null,null,null,null,null,null,null,null,null,null,null,null,null,null,null,null,null,null,null,null,null,60,{"$f":"SUM(BM$10:$BM69)","v":92303},0,0,0,0,null,null,null,null,null,{"$f":"SUM($BW$10:BW69)/BH69","v":3.3833333333333333},{"$f":"SUM($BW40:BW69)/30","v":0},0,0,0,"Abnormal","Abnormal","Abnormal","Abnormal","Abnormal",1.5,0,0,0,0,92303,0,0,0,0,"hypo","hypo","hypo","hypo","hypo",null,null,null,null,null,"low","hypo","hypo","hypo","hypo",null,null,null,null,null,null,null,null,null,null,null,null,null,null,null,null,null,null,null,null,null,null,null,null,null,null,null,null,null,null,null,null,0.15459143968871594,0.25562686567164183,0.89054918032786889]
[61,0,7,0.625,null,4.1971000000000001E-2,32.561,98.227000000000004,16.856999999999999,15,7,3,1,null,7.5109607241683758,null,null,null,null,null,null,null,null,null,null,null,null,null,null,null,null,null,null,null,null,null,null,null,null,null,null,null,null,null,null,null,null,null,null,null,null,null,null,null,null,null,null,null,null,null,null,null,null,null,null,null,null,null,null,null,null,null,null,null,null,null,null,null,null,null,null,null,null,null,null,null,null,null,null,null,null,null,null,null,null,null,null,null,null,null,null,null,null,null,null,null,null,null,null,null,null,null,null,null,null,null,null,null,null,null,null,null,null,null,null,null,null,null,null,null,null,null,null,null,null,null,null,0.12669649805447472,0.26696268656716415,0.87704918032786883]
[62,0,7,0.75,null,3.9627999999999997E-2,32.561,98.227000000000004,14.5,16.5,7,3,1,null,1.5,null,null,null,null,null,null,null,null,null,null,null,null,null,null,null,null,null,null,null,null,null,null,null,null,null,null,null,null,null,null,null,null,null,null,null,null,null,null,null,null,null,null,null,null,null,null,null,null,null,null,null,null,null,null,null,null,null,null,null,null,null,null,null,null,null,null,null,null,null,null,null,null,null,null,null,null,null,null,null,null,null,null,null,null,null,null,null,null,null,null,null,null,null,null,null,null,null,null,null,null,null,null,null,null,null,null,null,null,null,null,null,null,null,null,null,null,null,null,null,null,null,null,0.12669649805447472,0.26696268656716415,0.86475409836065575]
[63,0,7,0.875,null,3.3093999999999998E-2,28.2,97.56,11.420999999999999,20.263000000000002,7,3,1,null,5.7985669781421016,null,null,null,null,null,null,null,null,null,null,null,null,null,null,null,null,null,null,null,null,null,null,null,null,null,null,null,null,null,null,null,null,null,null,null,null,null,null,null,null,null,null,null,null,null,null,null,null,null,null,null,null,null,null,null,null,null,null,null,null,null,null,null,null,null,null,null,null,null,null,null,null,null,null,null,null,null,null,null,null,null,null,null,null,null,null,null,null,null,null,null,null,null,null,null,null,null,null,null,null,null,null,null,null,null,null,null,null,null,null,null,null,null,null,null,null,null,null,null,null,null,null,0.10972762645914397,0.27194029850746265,0.83390983606557367]
[64,0,8,0,null,4.3067000000000001E-2,10.8,94.825000000000003,10.188000000000001,26.187999999999999,7,3,1,null,18.583483257990142,null,null,null,null,null,null,null,null,null,null,null,null,null,null,null,null,null,null,null,null,null,null,null,null,null,null,null,null,null,null,null,null,null,null,null,null,null,null,null,null,null,null,null,null,null,null,null,null,null,null,null,null,null,null,null,null,null,null,null,null,null,null,null,null,null,null,null,null,null,null,null,null,null,null,null,null,null,null,null,null,null,null,null,null,null,null,null,null,null,null,null,null,null,null,null,null,null,null,null,null,null,null,null,null,null,null,null,null,null,null,null,null,null,null,null,null,null,null,null,null,null,null,4.2023346303501949E-2,0.2923507462686567,0.78534426229508192]
[65,0,8,0.125,null,4.1327999999999997E-2,10.8,94.825000000000003,9.8332999999999995,31.332999999999998,7,3,1,null,5.1449999999999996,null,null,null,null,null,null,null,null,null,null,null,null,null,null,null,null,null,null,null,null,null,null,null,null,null,null,null,null,null,null,null,null,null,null,null,null,null,null,null,null,null,null,null,null,null,null,null,null,null,null,null,null,null,null,null,null,null,null,null,null,null,null,null,null,null,null,null,null,null,null,null,null,null,null,null,null,null,null,null,null,null,null,null,null,null,null,null,null,null,null,null,null,null,null,null,null,null,null,null,null,null,null,null,null,null,null,null,null,null,null,null,null,null,null,null,null,null,null,null,null,null,null,4.2023346303501949E-2,0.2923507462686567,0.74317213114754099]
[{"$f":"A74+1","v":66},{"$f":"ROUNDDOWN(A75/480,0)","v":0},{"$f":"MOD(ROUNDDOWN(A75/8,0),60)","v":8},{"$f":"MOD(A75,8)/8","v":0.25},null,3.1718000000000003E-2,10.510999999999999,94.191000000000003,10.182,34.545000000000002,{"$f":"SUMPRODUCT(--($T$1:$T$9=L75),--($U$1:$U$9=M75),$V$1:$V$9)*SUMPRODUCT(--((G75+H75)>0))","v":7},{"$f":"MATCH(H75,$R$3:$R$6,1)","v":3},{"$f":"MATCH(G75,$N$7:$Q$7,1)","v":1},null,{"$f":"SQRT((G75-G74)^2+(H75-H74)^2+(J75-J74)^2)","v":3.2867036678106563},null,null,null,null,null,null,null,null,null,null,null,null,null,null,null,null,null,null,null,null,null,null,null,null,null,null,null,null,null,null,null,null,null,null,null,null,null,null,null,null,null,null,null,null,null,null,null,null,null,null,null,null,null,null,null,null,null,null,null,null,null,null,null,null,null,null,null,null,null,null,null,null,null,null,null,null,null,null,null,null,null,null,null,null,null,null,null,null,null,null,null,null,null,null,null,null,null,null,null,null,null,null,null,null,null,null,null,null,null,null,null,null,null,null,null,null,null,null,null,null,null,null,{"$f":"G75/Q$7","v":4.0898832684824901E-2},{"$f":"(R$6-H75)/R$6","v":0.2970820895522388},{"$f":"(J$3/2-J75)/(J$3/2)","v":0.71684426229508191}]
[67,0,8,0.375,null,4.403E-2,10.510999999999999,94.191000000000003,6.4545000000000003,42.182000000000002,7,3,1,null,7.6370000000000005,null,null,null,null,null,null,null,null,null,null,null,null,null,null,null,null,null,null,null,null,null,null,null,null,null,null,null,null,null,null,null,null,null,null,null,null,null,null,null,null,null,null,null,null,null,null,null,null,null,null,null,null,null,null,null,null,null,null,null,null,null,null,null,null,null,null,null,null,null,null,null,null,null,null,null,null,null,null,null,null,null,null,null,null,null,null,null,null,null,null,null,null,null,null,null,null,null,null,null,null,null,null,null,null,null,null,null,null,null,null,null,null,null,null,null,null,null,null,null,null,null,null,4.0898832684824901E-2,0.2970820895522388,0.65424590163934426]
[68,0,8,0.5,null,4.2771999999999998E-2,15.289,92.552999999999997,6.3,48.4,7,3,1,null,8.0109832105678507,null,null,null,null,null,null,null,null,null,null,null,null,null,null,null,null,null,null,null,null,null,null,null,null,null,null,null,null,null,null,null,null,null,null,null,null,null,null,null,null,null,null,null,null,null,null,null,null,null,null,null,null,null,null,null,null,null,null,null,null,null,null,null,null,null,null,null,null,null,null,null,null,null,null,null,null,null,null,null,null,null,null,null,null,null,null,null,null,null,null,null,null,null,null,null,null,null,null,null,null,null,null,null,null,null,null,null,null,null,null,null,null,null,null,null,null,null,null,null,null,null,null,5.9490272373540855E-2,0.30930597014925376,0.6032786885245901]
[69,0,8,0.625,null,3.9432000000000002E-2,15.289,92.552999999999997,6.3,48.4,7,3,1,null,0,null,null,null,null,null,null,null,null,null,null,null,null,null,null,null,null,null,null,null,null,null,null,null,null,null,null,null,null,null,null,null,null,null,null,null,null,null,null,null,null,null,null,null,null,null,null,null,null,null,null,null,null,null,null,null,null,null,null,null,null,null,null,null,null,null,null,null,null,null,null,null,null,null,null,null,null,null,null,null,null,null,null,null,null,null,null,null,null,null,null,null,null,null,null,null,null,null,null,null,null,null,null,null,null,null,null,null,null,null,null,null,null,null,null,null,null,null,null,null,null,null,null,5.9490272373540855E-2,0.30930597014925376,0.6032786885245901]
[70,0,8,0.75,null,3.5131000000000003E-2,17.667000000000002,90.944000000000003,11.053000000000001,55.368000000000002,7,3,1,null,7.5363644418247215,null,null,null,null,null,null,null,null,null,null,null,null,null,null,null,null,null,null,null,null,null,null,null,null,null,null,null,null,null,null,null,null,null,null,null,null,null,null,null,null,null,null,null,null,null,null,null,null,null,null,null,null,null,null,null,null,null,null,null,null,null,null,null,null,null,null,null,null,null,null,null,null,null,null,null,null,null,null,null,null,null,null,null,null,null,null,null,null,null,null,null,null,null,null,null,null,null,null,null,null,null,null,null,null,null,null,null,null,null,null,null,null,null,null,null,null,null,null,null,null,null,null,6.8743190661478604E-2,0.32131343283582087,0.54616393442622957]
[71,0,8,0.875,null,3.6360000000000003E-2,18.52,88.76,12.055999999999999,61.5,4,2,1,null,6.564974409698789,null,null,null,null,null,null,null,null,null,null,null,null,null,null,null,null,null,null,null,null,null,null,null,null,null,null,null,null,null,null,null,null,null,null,null,null,null,null,null,null,null,null,null,null,null,null,null,null,null,null,null,null,null,null,null,null,null,null,null,null,null,null,null,null,null,null,null,null,null,null,null,null,null,null,null,null,null,null,null,null,null,null,null,null,null,null,null,null,null,null,null,null,null,null,null,null,null,null,null,null,null,null,null,null,null,null,null,null,null,null,null,null,null,null,null,null,null,null,null,null,null,null,7.2062256809338518E-2,0.33761194029850744,0.49590163934426229]
[72,0,9,0,null,4.1923000000000002E-2,18.52,88.76,10.273,65.727000000000004,4,2,1,null,4.2270000000000039,null,null,null,null,null,null,null,null,null,null,null,null,null,null,null,null,null,null,null,null,null,null,null,null,null,null,null,null,null,null,null,null,null,null,null,null,null,null,null,null,null,null,null,null,null,null,null,null,null,null,null,null,null,null,null,null,null,null,null,null,null,null,null,null,null,null,null,null,null,null,null,null,null,null,null,null,null,null,null,null,null,null,null,null,null,null,null,null,null,null,null,null,null,null,null,null,null,null,null,null,null,null,null,null,null,null,null,null,null,null,null,null,null,null,null,null,null,null,null,null,null,null,7.2062256809338518E-2,0.33761194029850744,0.46125409836065573]
[73,0,9,0.125,null,4.2390999999999998E-2,14.744,86.418999999999997,10.85,71.05,4,2,1,null,6.9334541175376625,null,null,null,null,null,null,null,null,null,null,null,null,null,null,null,null,null,null,null,null,null,null,null,null,null,null,null,null,null,null,null,null,null,null,null,null,null,null,null,null,null,null,null,null,null,null,null,null,null,null,null,null,null,null,null,null,null,null,null,null,null,null,null,null,null,null,null,null,null,null,null,null,null,null,null,null,null,null,null,null,null,null,null,null,null,null,null,null,null,null,null,null,null,null,null,null,null,null,null,null,null,null,null,null,null,null,null,null,null,null,null,null,null,null,null,null,null,null,null,null,null,null,5.7369649805447467E-2,0.35508208955223886,0.41762295081967216]
[74,0,9,0.25,null,3.3423000000000001E-2,14.744,86.418999999999997,11.353,77.176000000000002,4,2,1,null,6.1260000000000048,null,null,null,null,null,null,null,null,null,null,null,null,null,null,null,null,null,null,null,null,null,null,null,null,null,null,null,null,null,null,null,null,null,null,null,null,null,null,null,null,null,null,null,null,null,null,null,null,null,null,null,null,null,null,null,null,null,null,null,null,null,null,null,null,null,null,null,null,null,null,null,null,null,null,null,null,null,null,null,null,null,null,null,null,null,null,null,null,null,null,null,null,null,null,null,null,null,null,null,null,null,null,null,null,null,null,null,null,null,null,null,null,null,null,null,null,null,null,null,null,null,null,5.7369649805447467E-2,0.35508208955223886,0.36740983606557376]
[75,0,9,0.375,null,4.2396000000000003E-2,14.744,86.418999999999997,12.563000000000001,82.75,4,2,1,null,5.5739999999999981,null,null,null,null,null,null,null,null,null,null,null,null,null,null,null,null,null,null,null,null,null,null,null,null,null,null,null,null,null,null,null,null,null,null,null,null,null,null,null,null,null,null,null,null,null,null,null,null,null,null,null,null,null,null,null,null,null,null,null,null,null,null,null,null,null,null,null,null,null,null,null,null,null,null,null,null,null,null,null,null,null,null,null,null,null,null,null,null,null,null,null,null,null,null,null,null,null,null,null,null,null,null,null,null,null,null,null,null,null,null,null,null,null,null,null,null,null,null,null,null,null,null,5.7369649805447467E-2,0.35508208955223886,0.32172131147540983]
[76,0,9,0.5,null,4.3566000000000001E-2,14.744,86.418999999999997,13.188000000000001,88.25,4,2,1,null,5.5,null,null,null,null,null,null,null,null,null,null,null,null,null,null,null,null,null,null,null,null,null,null,null,null,null,null,null,null,null,null,null,null,null,null,null,null,null,null,null,null,null,null,null,null,null,null,null,null,null,null,null,null,null,null,null,null,null,null,null,null,null,null,null,null,null,null,null,null,null,null,null,null,null,null,null,null,null,null,null,null,null,null,null,null,null,null,null,null,null,null,null,null,null,null,null,null,null,null,null,null,null,null,null,null,null,null,null,null,null,null,null,null,null,null,null,null,null,null,null,null,null,null,5.7369649805447467E-2,0.35508208955223886,0.27663934426229508]
[77,0,9,0.625,null,3.7338999999999997E-2,15.25,86.188000000000002,10.429,91.786000000000001,4,2,1,null,3.5794822251269816,null,null,null,null,null,null,null,null,null,null,null,null,null,null,null,null,null,null,null,null,null,null,null,null,null,null,null,null,null,null,null,null,null,null,null,null,null,null,null,null,null,null,null,null,null,null,null,null,null,null,null,null,null,null,null,null,null,null,null,null,null,null,null,null,null,null,null,null,null,null,null,null,null,null,null,null,null,null,null,null,null,null,null,null,null,null,null,null,null,null,null,null,null,null,null,null,null,null,null,null,null,null,null,null,null,null,null,null,null,null,null,null,null,null,null,null,null,null,null,null,null,null,5.9338521400778207E-2,0.35680597014925369,0.24765573770491803]
[78,0,9,0.75,null,3.5274E-2,15.25,86.188000000000002,8.8947000000000003,95.578999999999994,4,2,1,null,3.7929999999999922,null,null,null,null,null,null,null,null,null,null,null,null,null,null,null,null,null,null,null,null,null,null,null,null,null,null,null,null,null,null,null,null,null,null,null,null,null,null,null,null,null,null,null,null,null,null,null,null,null,null,null,null,null,null,null,null,null,null,null,null,null,null,null,null,null,null,null,null,null,null,null,null,null,null,null,null,null,null,null,null,null,null,null,null,null,null,null,null,null,null,null,null,null,null,null,null,null,null,null,null,null,null,null,null,null,null,null,null,null,null,null,null,null,null,null,null,null,null,null,null,null,null,5.9338521400778207E-2,0.35680597014925369,0.21656557377049185]
[79,0,9,0.875,null,4.1287999999999998E-2,10.694000000000001,88.548000000000002,10.532999999999999,99.466999999999999,4,2,1,null,6.437645532335563,null,null,null,null,null,null,null,null,null,null,null,null,null,null,null,null,null,null,null,null,null,null,null,null,null,null,null,null,null,null,null,null,null,null,null,null,null,null,null,null,null,null,null,null,null,null,null,null,null,null,null,null,null,null,null,null,null,null,null,null,null,null,null,null,null,null,null,null,null,null,null,null,null,null,null,null,null,null,null,null,null,null,null,null,null,null,null,null,null,null,null,null,null,null,null,null,null,null,null,null,null,null,null,null,null,null,null,null,null,null,null,null,null,null,null,null,null,null,null,null,null,null,4.1610894941634245E-2,0.33919402985074626,0.18469672131147541]
[80,0,10,0,null,3.2104000000000001E-2,13,93.5,13.6,102.93,7,3,1,null,6.4677901171884074,null,null,null,null,null,null,null,null,null,null,null,null,null,null,null,null,null,null,null,null,null,null,null,null,null,null,null,null,null,null,null,null,null,null,null,null,null,null,null,null,null,null,null,null,null,null,null,null,null,null,null,null,null,null,null,null,null,null,null,null,null,null,null,null,null,null,null,null,null,null,null,null,null,null,null,null,null,null,null,null,null,null,null,null,null,null,null,null,null,null,null,null,null,null,null,null,null,null,null,null,null,null,null,null,null,null,null,null,null,null,null,null,null,null,null,null,null,null,null,null,null,null,5.0583657587548639E-2,0.30223880597014924,0.156311475409836]
[81,0,10,0.125,null,4.1452000000000003E-2,13,93.5,15.938000000000001,106.5,7,3,1,null,3.5699999999999932,null,null,null,null,null,null,null,null,null,null,null,null,null,null,null,null,null,null,null,null,null,null,null,null,null,null,null,null,null,null,null,null,null,null,null,null,null,null,null,null,null,null,null,null,null,null,null,null,null,null,null,null,null,null,null,null,null,null,null,null,null,null,null,null,null,null,null,null,null,null,null,null,null,null,null,null,null,null,null,null,null,null,null,null,null,null,null,null,null,null,null,null,null,null,null,null,null,null,null,null,null,null,null,null,null,null,null,null,null,null,null,null,null,null,null,null,null,null,null,null,null,null,5.0583657587548639E-2,0.30223880597014924,0.12704918032786885]
[82,0,10,0.25,null,3.9971E-2,14.768000000000001,94.963999999999999,17.875,108.63,7,3,1,null,3.1314565301150163,null,null,null,null,null,null,null,null,null,null,null,null,null,null,null,null,null,null,null,null,null,null,null,null,null,null,null,null,null,null,null,null,null,null,null,null,null,null,null,null,null,null,null,null,null,null,null,null,null,null,null,null,null,null,null,null,null,null,null,null,null,null,null,null,null,null,null,null,null,null,null,null,null,null,null,null,null,null,null,null,null,null,null,null,null,null,null,null,null,null,null,null,null,null,null,null,null,null,null,null,null,null,null,null,null,null,null,null,null,null,null,null,null,null,null,null,null,null,null,null,null,null,5.7463035019455252E-2,0.2913134328358209,0.10959016393442626]
[83,0,10,0.375,null,3.8025000000000003E-2,21.896000000000001,100.31,20.443999999999999,109.89,7,3,1,null,8.9986498987348114,null,null,null,null,null,null,null,null,null,null,null,null,null,null,null,null,null,null,null,null,null,null,null,null,null,null,null,null,null,null,null,null,null,null,null,null,null,null,null,null,null,null,null,null,null,null,null,null,null,null,null,null,null,null,null,null,null,null,null,null,null,null,null,null,null,null,null,null,null,null,null,null,null,null,null,null,null,null,null,null,null,null,null,null,null,null,null,null,null,null,null,null,null,null,null,null,null,null,null,null,null,null,null,null,null,null,null,null,null,null,null,null,null,null,null,null,null,null,null,null,null,null,8.5198443579766539E-2,0.25141791044776118,9.9262295081967211E-2]
[84,0,10,0.5,null,4.2341999999999998E-2,27.18,103.2,23.082999999999998,110.17,7,3,1,null,6.0291919856644132,null,null,null,null,null,null,null,null,null,null,null,null,null,null,null,null,null,null,null,null,null,null,null,null,null,null,null,null,null,null,null,null,null,null,null,null,null,null,null,null,null,null,null,null,null,null,null,null,null,null,null,null,null,null,null,null,null,null,null,null,null,null,null,null,null,null,null,null,null,null,null,null,null,null,null,null,null,null,null,null,null,null,null,null,null,null,null,null,null,null,null,null,null,null,null,null,null,null,null,null,null,null,null,null,null,null,null,null,null,null,null,null,null,null,null,null,null,null,null,null,null,null,0.10575875486381323,0.2298507462686567,9.6967213114754078E-2]
[85,0,10,0.625,null,4.1685E-2,27.18,103.2,26.937999999999999,110.06,7,3,1,null,0.10999999999999943,null,null,null,null,null,null,null,null,null,null,null,null,null,null,null,null,null,null,null,null,null,null,null,null,null,null,null,null,null,null,null,null,null,null,null,null,null,null,null,null,null,null,null,null,null,null,null,null,null,null,null,null,null,null,null,null,null,null,null,null,null,null,null,null,null,null,null,null,null,null,null,null,null,null,null,null,null,null,null,null,null,null,null,null,null,null,null,null,null,null,null,null,null,null,null,null,null,null,null,null,null,null,null,null,null,null,null,null,null,null,null,null,null,null,null,null,null,null,null,null,null,null,0.10575875486381323,0.2298507462686567,9.7868852459016373E-2]
[86,0,10,0.75,null,4.2370999999999999E-2,32.567999999999998,107.11,31.582999999999998,109.83,7,3,1,null,6.6611968894486191,null,null,null,null,null,null,null,null,null,null,null,null,null,null,null,null,null,null,null,null,null,null,null,null,null,null,null,null,null,null,null,null,null,null,null,null,null,null,null,null,null,null,null,null,null,null,null,null,null,null,null,null,null,null,null,null,null,null,null,null,null,null,null,null,null,null,null,null,null,null,null,null,null,null,null,null,null,null,null,null,null,null,null,null,null,null,null,null,null,null,null,null,null,null,null,null,null,null,null,null,null,null,null,null,null,null,null,null,null,null,null,null,null,null,null,null,null,null,null,null,null,null,0.1267237354085603,0.20067164179104477,9.9754098360655755E-2]
[87,0,10,0.875,null,4.0162000000000003E-2,41.890999999999998,109.75,35.082999999999998,109.58,7,3,1,null,9.6928029485799421,null,null,null,null,null,null,null,null,null,null,null,null,null,null,null,null,null,null,null,null,null,null,null,null,null,null,null,null,null,null,null,null,null,null,null,null,null,null,null,null,null,null,null,null,null,null,null,null,null,null,null,null,null,null,null,null,null,null,null,null,null,null,null,null,null,null,null,null,null,null,null,null,null,null,null,null,null,null,null,null,null,null,null,null,null,null,null,null,null,null,null,null,null,null,null,null,null,null,null,null,null,null,null,null,null,null,null,null,null,null,null,null,null,null,null,null,null,null,null,null,null,null,0.16300000000000001,0.18097014925373134,0.10180327868852461]
[88,0,11,0,null,4.1294999999999998E-2,41.890999999999998,109.75,37.923000000000002,109.46,7,3,1,null,0.12000000000000455,null,null,null,null,null,null,null,null,null,null,null,null,null,null,null,null,null,null,null,null,null,null,null,null,null,null,null,null,null,null,null,null,null,null,null,null,null,null,null,null,null,null,null,null,null,null,null,null,null,null,null,null,null,null,null,null,null,null,null,null,null,null,null,null,null,null,null,null,null,null,null,null,null,null,null,null,null,null,null,null,null,null,null,null,null,null,null,null,null,null,null,null,null,null,null,null,null,null,null,null,null,null,null,null,null,null,null,null,null,null,null,null,null,null,null,null,null,null,null,null,null,null,0.16300000000000001,0.18097014925373134,0.1027868852459017]
[89,0,11,0.125,null,3.9054999999999999E-2,43.548000000000002,111.3,42,110,7,3,1,null,2.3323269496363519,null,null,null,null,null,null,null,null,null,null,null,null,null,null,null,null,null,null,null,null,null,null,null,null,null,null,null,null,null,null,null,null,null,null,null,null,null,null,null,null,null,null,null,null,null,null,null,null,null,null,null,null,null,null,null,null,null,null,null,null,null,null,null,null,null,null,null,null,null,null,null,null,null,null,null,null,null,null,null,null,null,null,null,null,null,null,null,null,null,null,null,null,null,null,null,null,null,null,null,null,null,null,null,null,null,null,null,null,null,null,null,null,null,null,null,null,null,null,null,null,null,null,0.16944747081712064,0.16940298507462689,9.8360655737704916E-2]
[90,0,11,0.25,null,3.8697000000000002E-2,53.610999999999997,115.75,43.222000000000001,108.56,7,3,1,null,11.096849507855818,null,null,null,null,null,null,null,null,null,null,null,null,null,null,null,null,null,null,null,null,null,null,null,null,null,null,null,null,null,null,null,null,null,null,null,null,null,null,null,null,null,null,null,null,null,null,null,null,null,null,null,null,null,null,null,null,null,null,null,null,null,null,null,null,null,null,null,null,null,null,null,null,null,null,null,null,null,null,null,null,null,null,null,null,null,null,null,null,null,null,null,null,null,null,null,null,null,null,null,null,null,null,null,null,null,null,null,null,null,null,null,null,null,null,null,null,null,null,null,null,null,null,0.20860311284046693,0.13619402985074627,0.11016393442622949]
[91,0,11,0.375,null,4.3411999999999999E-2,58.085000000000001,119.31,43.5,106,7,3,1,null,6.264493275597002,null,null,null,null,null,null,null,null,null,null,null,null,null,null,null,null,null,null,null,null,null,null,null,null,null,null,null,null,null,null,null,null,null,null,null,null,null,null,null,null,null,null,null,null,null,null,null,null,null,null,null,null,null,null,null,null,null,null,null,null,null,null,null,null,null,null,null,null,null,null,null,null,null,null,null,null,null,null,null,null,null,null,null,null,null,null,null,null,null,null,null,null,null,null,null,null,null,null,null,null,null,null,null,null,null,null,null,null,null,null,null,null,null,null,null,null,null,null,null,null,null,null,0.22601167315175097,0.10962686567164177,0.13114754098360656]
[92,0,11,0.5,null,4.1500000000000002E-2,58.085000000000001,119.31,46.667000000000002,102.89,7,3,1,null,3.1099999999999994,null,null,null,null,null,null,null,null,null,null,null,null,null,null,null,null,null,null,null,null,null,null,null,null,null,null,null,null,null,null,null,null,null,null,null,null,null,null,null,null,null,null,null,null,null,null,null,null,null,null,null,null,null,null,null,null,null,null,null,null,null,null,null,null,null,null,null,null,null,null,null,null,null,null,null,null,null,null,null,null,null,null,null,null,null,null,null,null,null,null,null,null,null,null,null,null,null,null,null,null,null,null,null,null,null,null,null,null,null,null,null,null,null,null,null,null,null,null,null,null,null,null,0.22601167315175097,0.10962686567164177,0.15663934426229509]
[93,0,11,0.625,null,3.7245E-2,60.529000000000003,120.21,45.75,100.63,7,3,1,null,3.4482946509832972,null,null,null,null,null,null,null,null,null,null,null,null,null,null,null,null,null,null,null,null,null,null,null,null,null,null,null,null,null,null,null,null,null,null,null,null,null,null,null,null,null,null,null,null,null,null,null,null,null,null,null,null,null,null,null,null,null,null,null,null,null,null,null,null,null,null,null,null,null,null,null,null,null,null,null,null,null,null,null,null,null,null,null,null,null,null,null,null,null,null,null,null,null,null,null,null,null,null,null,null,null,null,null,null,null,null,null,null,null,null,null,null,null,null,null,null,null,null,null,null,null,null,0.23552140077821013,0.10291044776119408,0.17516393442622955]
[94,0,11,0.75,null,3.5721999999999997E-2,62.106000000000002,116.23,46.75,100.63,7,3,1,null,4.2810429803962391,null,null,null,null,null,null,null,null,null,null,null,null,null,null,null,null,null,null,null,null,null,null,null,null,null,null,null,null,null,null,null,null,null,null,null,null,null,null,null,null,null,null,null,null,null,null,null,null,null,null,null,null,null,null,null,null,null,null,null,null,null,null,null,null,null,null,null,null,null,null,null,null,null,null,null,null,null,null,null,null,null,null,null,null,null,null,null,null,null,null,null,null,null,null,null,null,null,null,null,null,null,null,null,null,null,null,null,null,null,null,null,null,null,null,null,null,null,null,null,null,null,null,0.24165758754863814,0.13261194029850742,0.17516393442622955]
[95,0,11,0.875,null,4.2755000000000001E-2,62.106000000000002,116.23,45.75,99,7,3,1,null,1.6299999999999955,null,null,null,null,null,null,null,null,null,null,null,null,null,null,null,null,null,null,null,null,null,null,null,null,null,null,null,null,null,null,null,null,null,null,null,null,null,null,null,null,null,null,null,null,null,null,null,null,null,null,null,null,null,null,null,null,null,null,null,null,null,null,null,null,null,null,null,null,null,null,null,null,null,null,null,null,null,null,null,null,null,null,null,null,null,null,null,null,null,null,null,null,null,null,null,null,null,null,null,null,null,null,null,null,null,null,null,null,null,null,null,null,null,null,null,null,null,null,null,null,null,null,0.24165758754863814,0.13261194029850742,0.18852459016393441]
[96,0,12,0,null,3.9491999999999999E-2,63.814,115.9,46.2,97.4,7,3,1,null,2.3635067167241086,null,null,null,null,null,null,null,null,null,null,null,null,null,null,null,null,null,null,null,null,null,null,null,null,null,null,null,null,null,null,null,null,null,null,null,null,null,null,null,null,null,null,null,null,null,null,null,null,null,null,null,null,null,null,null,null,null,null,null,null,null,null,null,null,null,null,null,null,null,null,null,null,null,null,null,null,null,null,null,null,null,null,null,null,null,null,null,null,null,null,null,null,null,null,null,null,null,null,null,null,null,null,null,null,null,null,null,null,null,null,null,null,null,null,null,null,null,null,null,null,null,null,0.24830350194552528,0.13507462686567159,0.20163934426229504]
[97,0,12,0.125,null,3.6054999999999997E-2,64.641999999999996,119.15,47.167000000000002,96.667000000000002,7,3,1,null,3.4329831051142676,null,null,null,null,null,null,null,null,null,null,null,null,null,null,null,null,null,null,null,null,null,null,null,null,null,null,null,null,null,null,null,null,null,null,null,null,null,null,null,null,null,null,null,null,null,null,null,null,null,null,null,null,null,null,null,null,null,null,null,null,null,null,null,null,null,null,null,null,null,null,null,null,null,null,null,null,null,null,null,null,null,null,null,null,null,null,null,null,null,null,null,null,null,null,null,null,null,null,null,null,null,null,null,null,null,null,null,null,null,null,null,null,null,null,null,null,null,null,null,null,null,null,0.25152529182879374,0.11082089552238801,0.20764754098360655]
[98,0,12,0.25,null,4.2937999999999997E-2,64.641999999999996,119.15,48.332999999999998,97,7,3,1,null,0.33299999999999841,null,null,null,null,null,null,null,null,null,null,null,null,null,null,null,null,null,null,null,null,null,null,null,null,null,null,null,null,null,null,null,null,null,null,null,null,null,null,null,null,null,null,null,null,null,null,null,null,null,null,null,null,null,null,null,null,null,null,null,null,null,null,null,null,null,null,null,null,null,null,null,null,null,null,null,null,null,null,null,null,null,null,null,null,null,null,null,null,null,null,null,null,null,null,null,null,null,null,null,null,null,null,null,null,null,null,null,null,null,null,null,null,null,null,null,null,null,null,null,null,null,null,0.25152529182879374,0.11082089552238801,0.20491803278688525]
[99,0,12,0.375,null,3.5348999999999998E-2,66.697999999999993,119.79,46.429000000000002,95.286000000000001,7,3,1,null,2.75218676691826,null,null,null,null,null,null,null,null,null,null,null,null,null,null,null,null,null,null,null,null,null,null,null,null,null,null,null,null,null,null,null,null,null,null,null,null,null,null,null,null,null,null,null,null,null,null,null,null,null,null,null,null,null,null,null,null,null,null,null,null,null,null,null,null,null,null,null,null,null,null,null,null,null,null,null,null,null,null,null,null,null,null,null,null,null,null,null,null,null,null,null,null,null,null,null,null,null,null,null,null,null,null,null,null,null,null,null,null,null,null,null,null,null,null,null,null,null,null,null,null,null,null,0.25952529182879375,0.10604477611940294,0.21896721311475409]
[100,0,12,0.5,null,4.0808999999999998E-2,63.973999999999997,125.61,44.429000000000002,95.286000000000001,7,3,1,null,6.4259299716072151,null,null,null,null,null,null,null,null,null,null,null,null,null,null,null,null,null,null,null,null,null,null,null,null,null,null,null,null,null,null,null,null,null,null,null,null,null,null,null,null,null,null,null,null,null,null,null,null,null,null,null,null,null,null,null,null,null,null,null,null,null,null,null,null,null,null,null,null,null,null,null,null,null,null,null,null,null,null,null,null,null,null,null,null,null,null,null,null,null,null,null,null,null,null,null,null,null,null,null,null,null,null,null,null,null,null,null,null,null,null,null,null,null,null,null,null,null,null,null,null,null,null,0.24892607003891049,6.2611940298507474E-2,0.21896721311475409]
[101,0,12,0.625,null,4.0603E-2,63.805,118.24,45.889000000000003,92.332999999999998,7,3,1,null,7.9413896768764651,null,null,null,null,null,null,null,null,null,null,null,null,null,null,null,null,null,null,null,null,null,null,null,null,null,null,null,null,null,null,null,null,null,null,null,null,null,null,null,null,null,null,null,null,null,null,null,null,null,null,null,null,null,null,null,null,null,null,null,null,null,null,null,null,null,null,null,null,null,null,null,null,null,null,null,null,null,null,null,null,null,null,null,null,null,null,null,null,null,null,null,null,null,null,null,null,null,null,null,null,null,null,null,null,null,null,null,null,null,null,null,null,null,null,null,null,null,null,null,null,null,null,0.24826848249027236,0.11761194029850749,0.24317213114754099]
[102,0,12,0.75,null,3.6720999999999997E-2,63.805,118.24,43.222000000000001,91.111000000000004,7,3,1,null,1.2219999999999942,null,null,null,null,null,null,null,null,null,null,null,null,null,null,null,null,null,null,null,null,null,null,null,null,null,null,null,null,null,null,null,null,null,null,null,null,null,null,null,null,null,null,null,null,null,null,null,null,null,null,null,null,null,null,null,null,null,null,null,null,null,null,null,null,null,null,null,null,null,null,null,null,null,null,null,null,null,null,null,null,null,null,null,null,null,null,null,null,null,null,null,null,null,null,null,null,null,null,null,null,null,null,null,null,null,null,null,null,null,null,null,null,null,null,null,null,null,null,null,null,null,null,0.24826848249027236,0.11761194029850749,0.25318852459016389]
[103,0,12,0.875,null,4.0675000000000003E-2,60.545000000000002,118.12,41.454999999999998,90.364000000000004,7,3,1,null,3.3466414507682152,null,null,null,null,null,null,null,null,null,null,null,null,null,null,null,null,null,null,null,null,null,null,null,null,null,null,null,null,null,null,null,null,null,null,null,null,null,null,null,null,null,null,null,null,null,null,null,null,null,null,null,null,null,null,null,null,null,null,null,null,null,null,null,null,null,null,null,null,null,null,null,null,null,null,null,null,null,null,null,null,null,null,null,null,null,null,null,null,null,null,null,null,null,null,null,null,null,null,null,null,null,null,null,null,null,null,null,null,null,null,null,null,null,null,null,null,null,null,null,null,null,null,0.23558365758754865,0.11850746268656713,0.25931147540983601]
[104,0,13,0,null,3.2612000000000002E-2,52.45,118.63,37.889000000000003,91.611000000000004,7,3,1,null,8.206347177642435,null,null,null,null,null,null,null,null,null,null,null,null,null,null,null,null,null,null,null,null,null,null,null,null,null,null,null,null,null,null,null,null,null,null,null,null,null,null,null,null,null,null,null,null,null,null,null,null,null,null,null,null,null,null,null,null,null,null,null,null,null,null,null,null,null,null,null,null,null,null,null,null,null,null,null,null,null,null,null,null,null,null,null,null,null,null,null,null,null,null,null,null,null,null,null,null,null,null,null,null,null,null,null,null,null,null,null,null,null,null,null,null,null,null,null,null,null,null,null,null,null,null,0.20408560311284049,0.11470149253731347,0.24909016393442621]
[105,0,13,0.125,null,4.3379000000000001E-2,52.45,118.63,31.95,90.75,7,3,1,null,0.86100000000000421,null,null,null,null,null,null,null,null,null,null,null,null,null,null,null,null,null,null,null,null,null,null,null,null,null,null,null,null,null,null,null,null,null,null,null,null,null,null,null,null,null,null,null,null,null,null,null,null,null,null,null,null,null,null,null,null,null,null,null,null,null,null,null,null,null,null,null,null,null,null,null,null,null,null,null,null,null,null,null,null,null,null,null,null,null,null,null,null,null,null,null,null,null,null,null,null,null,null,null,null,null,null,null,null,null,null,null,null,null,null,null,null,null,null,null,null,null,null,null,null,null,null,0.20408560311284049,0.11470149253731347,0.25614754098360654]
[106,0,13,0.25,null,3.8873999999999999E-2,44.844999999999999,115.78,26.614999999999998,91,7,3,1,null,8.1253323008969947,null,null,null,null,null,null,null,null,null,null,null,null,null,null,null,null,null,null,null,null,null,null,null,null,null,null,null,null,null,null,null,null,null,null,null,null,null,null,null,null,null,null,null,null,null,null,null,null,null,null,null,null,null,null,null,null,null,null,null,null,null,null,null,null,null,null,null,null,null,null,null,null,null,null,null,null,null,null,null,null,null,null,null,null,null,null,null,null,null,null,null,null,null,null,null,null,null,null,null,null,null,null,null,null,null,null,null,null,null,null,null,null,null,null,null,null,null,null,null,null,null,null,0.17449416342412452,0.13597014925373133,0.25409836065573771]
[107,0,13,0.375,null,4.3242999999999997E-2,33.087000000000003,115.78,23.25,90.5,7,3,1,null,11.768626257979301,null,null,null,null,null,null,null,null,null,null,null,null,null,null,null,null,null,null,null,null,null,null,null,null,null,null,null,null,null,null,null,null,null,null,null,null,null,null,null,null,null,null,null,null,null,null,null,null,null,null,null,null,null,null,null,null,null,null,null,null,null,null,null,null,null,null,null,null,null,null,null,null,null,null,null,null,null,null,null,null,null,null,null,null,null,null,null,null,null,null,null,null,null,null,null,null,null,null,null,null,null,null,null,null,null,null,null,null,null,null,null,null,null,null,null,null,null,null,null,null,null,null,0.1287431906614786,0.13597014925373133,0.25819672131147542]
[108,0,13,0.5,null,4.0909000000000001E-2,26.454999999999998,115.36,20,85.778000000000006,7,3,1,null,8.152122913695548,null,null,null,null,null,null,null,null,null,null,null,null,null,null,null,null,null,null,null,null,null,null,null,null,null,null,null,null,null,null,null,null,null,null,null,null,null,null,null,null,null,null,null,null,null,null,null,null,null,null,null,null,null,null,null,null,null,null,null,null,null,null,null,null,null,null,null,null,null,null,null,null,null,null,null,null,null,null,null,null,null,null,null,null,null,null,null,null,null,null,null,null,null,null,null,null,null,null,null,null,null,null,null,null,null,null,null,null,null,null,null,null,null,null,null,null,null,null,null,null,null,null,0.10293774319066147,0.13910447761194031,0.29690163934426222]
[109,0,13,0.625,null,3.3140999999999997E-2,26.454999999999998,115.36,15.688000000000001,81.75,7,3,1,null,4.0280000000000058,null,null,null,null,null,null,null,null,null,null,null,null,null,null,null,null,null,null,null,null,null,null,null,null,null,null,null,null,null,null,null,null,null,null,null,null,null,null,null,null,null,null,null,null,null,null,null,null,null,null,null,null,null,null,null,null,null,null,null,null,null,null,null,null,null,null,null,null,null,null,null,null,null,null,null,null,null,null,null,null,null,null,null,null,null,null,null,null,null,null,null,null,null,null,null,null,null,null,null,null,null,null,null,null,null,null,null,null,null,null,null,null,null,null,null,null,null,null,null,null,null,null,0.10293774319066147,0.13910447761194031,0.32991803278688525]
[110,0,13,0.75,null,3.5852000000000002E-2,23.271000000000001,115.43,13,79,7,3,1,null,4.207761400079618,null,null,null,null,null,null,null,null,null,null,null,null,null,null,null,null,null,null,null,null,null,null,null,null,null,null,null,null,null,null,null,null,null,null,null,null,null,null,null,null,null,null,null,null,null,null,null,null,null,null,null,null,null,null,null,null,null,null,null,null,null,null,null,null,null,null,null,null,null,null,null,null,null,null,null,null,null,null,null,null,null,null,null,null,null,null,null,null,null,null,null,null,null,null,null,null,null,null,null,null,null,null,null,null,null,null,null,null,null,null,null,null,null,null,null,null,null,null,null,null,null,null,9.0548638132295717E-2,0.13858208955223875,0.35245901639344263]
[111,0,13,0.875,null,4.1924999999999997E-2,23.271000000000001,115.43,13.722,73.332999999999998,7,3,1,null,5.6670000000000016,null,null,null,null,null,null,null,null,null,null,null,null,null,null,null,null,null,null,null,null,null,null,null,null,null,null,null,null,null,null,null,null,null,null,null,null,null,null,null,null,null,null,null,null,null,null,null,null,null,null,null,null,null,null,null,null,null,null,null,null,null,null,null,null,null,null,null,null,null,null,null,null,null,null,null,null,null,null,null,null,null,null,null,null,null,null,null,null,null,null,null,null,null,null,null,null,null,null,null,null,null,null,null,null,null,null,null,null,null,null,null,null,null,null,null,null,null,null,null,null,null,null,9.0548638132295717E-2,0.13858208955223875,0.39890983606557379]
[112,0,14,0,null,3.0796E-2,23.271000000000001,115.43,13.292,67.457999999999998,7,3,1,null,5.875,null,null,null,null,null,null,null,null,null,null,null,null,null,null,null,null,null,null,null,null,null,null,null,null,null,null,null,null,null,null,null,null,null,null,null,null,null,null,null,null,null,null,null,null,null,null,null,null,null,null,null,null,null,null,null,null,null,null,null,null,null,null,null,null,null,null,null,null,null,null,null,null,null,null,null,null,null,null,null,null,null,null,null,null,null,null,null,null,null,null,null,null,null,null,null,null,null,null,null,null,null,null,null,null,null,null,null,null,null,null,null,null,null,null,null,null,null,null,null,null,null,null,9.0548638132295717E-2,0.13858208955223875,0.44706557377049183]
[113,0,14,0.125,null,3.6172000000000003E-2,20,115,13.429,60.713999999999999,7,3,1,null,7.5077211589136699,null,null,null,null,null,null,null,null,null,null,null,null,null,null,null,null,null,null,null,null,null,null,null,null,null,null,null,null,null,null,null,null,null,null,null,null,null,null,null,null,null,null,null,null,null,null,null,null,null,null,null,null,null,null,null,null,null,null,null,null,null,null,null,null,null,null,null,null,null,null,null,null,null,null,null,null,null,null,null,null,null,null,null,null,null,null,null,null,null,null,null,null,null,null,null,null,null,null,null,null,null,null,null,null,null,null,null,null,null,null,null,null,null,null,null,null,null,null,null,null,null,null,7.7821011673151752E-2,0.1417910447761194,0.502344262295082]
[114,0,14,0.25,null,4.0160000000000001E-2,21.516999999999999,116.59,13.388999999999999,56.110999999999997,7,3,1,null,5.1006860322901684,null,null,null,null,null,null,null,null,null,null,null,null,null,null,null,null,null,null,null,null,null,null,null,null,null,null,null,null,null,null,null,null,null,null,null,null,null,null,null,null,null,null,null,null,null,null,null,null,null,null,null,null,null,null,null,null,null,null,null,null,null,null,null,null,null,null,null,null,null,null,null,null,null,null,null,null,null,null,null,null,null,null,null,null,null,null,null,null,null,null,null,null,null,null,null,null,null,null,null,null,null,null,null,null,null,null,null,null,null,null,null,null,null,null,null,null,null,null,null,null,null,null,8.3723735408560304E-2,0.12992537313432834,0.54007377049180338]
[115,0,14,0.375,null,3.6117000000000003E-2,22,118,13.364000000000001,52.726999999999997,7,3,1,null,3.6976810300511311,null,null,null,null,null,null,null,null,null,null,null,null,null,null,null,null,null,null,null,null,null,null,null,null,null,null,null,null,null,null,null,null,null,null,null,null,null,null,null,null,null,null,null,null,null,null,null,null,null,null,null,null,null,null,null,null,null,null,null,null,null,null,null,null,null,null,null,null,null,null,null,null,null,null,null,null,null,null,null,null,null,null,null,null,null,null,null,null,null,null,null,null,null,null,null,null,null,null,null,null,null,null,null,null,null,null,null,null,null,null,null,null,null,null,null,null,null,null,null,null,null,null,8.5603112840466927E-2,0.11940298507462686,0.56781147540983601]
[116,0,14,0.5,null,4.2831000000000001E-2,22,118,15.875,45,7,3,1,null,7.7269999999999968,null,null,null,null,null,null,null,null,null,null,null,null,null,null,null,null,null,null,null,null,null,null,null,null,null,null,null,null,null,null,null,null,null,null,null,null,null,null,null,null,null,null,null,null,null,null,null,null,null,null,null,null,null,null,null,null,null,null,null,null,null,null,null,null,null,null,null,null,null,null,null,null,null,null,null,null,null,null,null,null,null,null,null,null,null,null,null,null,null,null,null,null,null,null,null,null,null,null,null,null,null,null,null,null,null,null,null,null,null,null,null,null,null,null,null,null,null,null,null,null,null,null,8.5603112840466927E-2,0.11940298507462686,0.63114754098360659]
[117,0,14,0.625,null,3.2388E-2,22.87,118.96,16.286000000000001,43,7,3,1,null,2.3829603437741027,null,null,null,null,null,null,null,null,null,null,null,null,null,null,null,null,null,null,null,null,null,null,null,null,null,null,null,null,null,null,null,null,null,null,null,null,null,null,null,null,null,null,null,null,null,null,null,null,null,null,null,null,null,null,null,null,null,null,null,null,null,null,null,null,null,null,null,null,null,null,null,null,null,null,null,null,null,null,null,null,null,null,null,null,null,null,null,null,null,null,null,null,null,null,null,null,null,null,null,null,null,null,null,null,null,null,null,null,null,null,null,null,null,null,null,null,null,null,null,null,null,null,8.8988326848249033E-2,0.11223880597014931,0.64754098360655743]
[118,0,14,0.75,null,3.7649000000000002E-2,25.372,120.37,15.188000000000001,40.5,7,3,1,null,3.807637587796405,null,null,null,null,null,null,null,null,null,null,null,null,null,null,null,null,null,null,null,null,null,null,null,null,null,null,null,null,null,null,null,null,null,null,null,null,null,null,null,null,null,null,null,null,null,null,null,null,null,null,null,null,null,null,null,null,null,null,null,null,null,null,null,null,null,null,null,null,null,null,null,null,null,null,null,null,null,null,null,null,null,null,null,null,null,null,null,null,null,null,null,null,null,null,null,null,null,null,null,null,null,null,null,null,null,null,null,null,null,null,null,null,null,null,null,null,null,null,null,null,null,null,9.8723735408560317E-2,0.10171641791044772,0.66803278688524592]
[119,0,14,0.875,null,4.2320999999999998E-2,25.372,120.37,15.6,36.732999999999997,7,3,1,null,3.767000000000003,null,null,null,null,null,null,null,null,null,null,null,null,null,null,null,null,null,null,null,null,null,null,null,null,null,null,null,null,null,null,null,null,null,null,null,null,null,null,null,null,null,null,null,null,null,null,null,null,null,null,null,null,null,null,null,null,null,null,null,null,null,null,null,null,null,null,null,null,null,null,null,null,null,null,null,null,null,null,null,null,null,null,null,null,null,null,null,null,null,null,null,null,null,null,null,null,null,null,null,null,null,null,null,null,null,null,null,null,null,null,null,null,null,null,null,null,null,null,null,null,null,null,9.8723735408560317E-2,0.10171641791044772,0.69890983606557378]
[120,0,15,0,null,3.4469E-2,25.78,120.54,15.571,32.856999999999999,7,3,1,null,3.9011203518989239,null,null,null,null,null,null,null,null,null,null,null,null,null,null,null,null,null,null,null,null,null,null,null,null,null,null,null,null,null,null,null,null,null,null,null,null,null,null,null,null,null,null,null,null,null,null,null,null,null,null,null,null,null,null,null,null,null,null,null,null,null,null,null,null,null,null,null,null,null,null,null,null,null,null,null,null,null,null,null,null,null,null,null,null,null,null,null,null,null,null,null,null,null,null,null,null,null,null,null,null,null,null,null,null,null,null,null,null,null,null,null,null,null,null,null,null,null,null,null,null,null,null,0.10031128404669261,0.1004477611940298,0.73068032786885251]
[121,0,15,0.125,null,4.0334000000000002E-2,25.78,120.54,15.420999999999999,28.367999999999999,7,3,1,null,4.4890000000000008,null,null,null,null,null,null,null,null,null,null,null,null,null,null,null,null,null,null,null,null,null,null,null,null,null,null,null,null,null,null,null,null,null,null,null,null,null,null,null,null,null,null,null,null,null,null,null,null,null,null,null,null,null,null,null,null,null,null,null,null,null,null,null,null,null,null,null,null,null,null,null,null,null,null,null,null,null,null,null,null,null,null,null,null,null,null,null,null,null,null,null,null,null,null,null,null,null,null,null,null,null,null,null,null,null,null,null,null,null,null,null,null,null,null,null,null,null,null,null,null,null,null,0.10031128404669261,0.1004477611940298,0.76747540983606566]
[122,0,15,0.25,null,4.3297000000000002E-2,25.78,120.54,15.467000000000001,23.6,7,3,1,null,4.7679999999999971,null,null,null,null,null,null,null,null,null,null,null,null,null,null,null,null,null,null,null,null,null,null,null,null,null,null,null,null,null,null,null,null,null,null,null,null,null,null,null,null,null,null,null,null,null,null,null,null,null,null,null,null,null,null,null,null,null,null,null,null,null,null,null,null,null,null,null,null,null,null,null,null,null,null,null,null,null,null,null,null,null,null,null,null,null,null,null,null,null,null,null,null,null,null,null,null,null,null,null,null,null,null,null,null,null,null,null,null,null,null,null,null,null,null,null,null,null,null,null,null,null,null,0.10031128404669261,0.1004477611940298,0.8065573770491804]
[123,0,15,0.375,null,3.9163999999999997E-2,25.78,120.54,15.583,20.082999999999998,7,3,1,null,3.517000000000003,null,null,null,null,null,null,null,null,null,null,null,null,null,null,null,null,null,null,null,null,null,null,null,null,null,null,null,null,null,null,null,null,null,null,null,null,null,null,null,null,null,null,null,null,null,null,null,null,null,null,null,null,null,null,null,null,null,null,null,null,null,null,null,null,null,null,null,null,null,null,null,null,null,null,null,null,null,null,null,null,null,null,null,null,null,null,null,null,null,null,null,null,null,null,null,null,null,null,null,null,null,null,null,null,null,null,null,null,null,null,null,null,null,null,null,null,null,null,null,null,null,null,0.10031128404669261,0.1004477611940298,0.83538524590163932]
[124,0,15,0.5,null,3.6917999999999999E-2,25.78,120.54,15.9,16.600000000000001,7,3,1,null,3.482999999999997,null,null,null,null,null,null,null,null,null,null,null,null,null,null,null,null,null,null,null,null,null,null,null,null,null,null,null,null,null,null,null,null,null,null,null,null,null,null,null,null,null,null,null,null,null,null,null,null,null,null,null,null,null,null,null,null,null,null,null,null,null,null,null,null,null,null,null,null,null,null,null,null,null,null,null,null,null,null,null,null,null,null,null,null,null,null,null,null,null,null,null,null,null,null,null,null,null,null,null,null,null,null,null,null,null,null,null,null,null,null,null,null,null,null,null,null,null,null,null,null,null,null,0.10031128404669261,0.1004477611940298,0.86393442622950822]
[125,0,15,0.625,null,3.9115999999999998E-2,28.233000000000001,119.74,16.75,14,7,3,1,null,3.6629508596212457,null,null,null,null,null,null,null,null,null,null,null,null,null,null,null,null,null,null,null,null,null,null,null,null,null,null,null,null,null,null,null,null,null,null,null,null,null,null,null,null,null,null,null,null,null,null,null,null,null,null,null,null,null,null,null,null,null,null,null,null,null,null,null,null,null,null,null,null,null,null,null,null,null,null,null,null,null,null,null,null,null,null,null,null,null,null,null,null,null,null,null,null,null,null,null,null,null,null,null,null,null,null,null,null,null,null,null,null,null,null,null,null,null,null,null,null,null,null,null,null,null,null,0.10985603112840467,0.10641791044776124,0.88524590163934425]
[126,0,15,0.75,null,3.7650000000000003E-2,28.233000000000001,119.74,16,12.308,7,3,1,null,1.6920000000000002,null,null,null,null,null,null,null,null,null,null,null,null,null,null,null,null,null,null,null,null,null,null,null,null,null,null,null,null,null,null,null,null,null,null,null,null,null,null,null,null,null,null,null,null,null,null,null,null,null,null,null,null,null,null,null,null,null,null,null,null,null,null,null,null,null,null,null,null,null,null,null,null,null,null,null,null,null,null,null,null,null,null,null,null,null,null,null,null,null,null,null,null,null,null,null,null,null,null,null,null,null,null,null,null,null,null,null,null,null,null,null,null,null,null,null,null,null,null,null,null,null,null,0.10985603112840467,0.10641791044776124,0.89911475409836072]
[127,0,15,0.875,null,4.4385000000000001E-2,28.233000000000001,119.74,16.356999999999999,8.8571000000000009,7,3,1,null,3.450899999999999,null,null,null,null,null,null,null,null,null,null,null,null,null,null,null,null,null,null,null,null,null,null,null,null,null,null,null,null,null,null,null,null,null,null,null,null,null,null,null,null,null,null,null,null,null,null,null,null,null,null,null,null,null,null,null,null,null,null,null,null,null,null,null,null,null,null,null,null,null,null,null,null,null,null,null,null,null,null,null,null,null,null,null,null,null,null,null,null,null,null,null,null,null,null,null,null,null,null,null,null,null,null,null,null,null,null,null,null,null,null,null,null,null,null,null,null,null,null,null,null,null,null,0.10985603112840467,0.10641791044776124,0.92740081967213117]
[128,0,16,0,null,4.2216999999999998E-2,29.210999999999999,117.46,14.625,7.625,7,3,1,null,2.7700098212822284,null,null,null,null,null,null,null,null,null,null,null,null,null,null,null,null,null,null,null,null,null,null,null,null,null,null,null,null,null,null,null,null,null,null,null,null,null,null,null,null,null,null,null,null,null,null,null,null,null,null,null,null,null,null,null,null,null,null,null,null,null,null,null,null,null,null,null,null,null,null,null,null,null,null,null,null,null,null,null,null,null,null,null,null,null,null,null,null,null,null,null,null,null,null,null,null,null,null,null,null,null,null,null,null,null,null,null,null,null,null,null,null,null,null,null,null,null,null,null,null,null,null,0.11366147859922178,0.12343283582089556,0.9375]
[129,0,16,0.125,null,3.295E-2,29.210999999999999,117.46,18,4.8888999999999996,7,3,1,null,2.7361000000000004,null,null,null,null,null,null,null,null,null,null,null,null,null,null,null,null,null,null,null,null,null,null,null,null,null,null,null,null,null,null,null,null,null,null,null,null,null,null,null,null,null,null,null,null,null,null,null,null,null,null,null,null,null,null,null,null,null,null,null,null,null,null,null,null,null,null,null,null,null,null,null,null,null,null,null,null,null,null,null,null,null,null,null,null,null,null,null,null,null,null,null,null,null,null,null,null,null,null,null,null,null,null,null,null,null,null,null,null,null,null,null,null,null,null,null,null,null,null,null,null,null,null,0.11366147859922178,0.12343283582089556,0.95992704918032778]
[{"$f":"A138+1","v":130},{"$f":"ROUNDDOWN(A139/480,0)","v":0},{"$f":"MOD(ROUNDDOWN(A139/8,0),60)","v":16},{"$f":"MOD(A139,8)/8","v":0.25},null,3.4804000000000002E-2,30.951000000000001,112.24,20.222000000000001,4.7778,{"$f":"SUMPRODUCT(--($T$1:$T$9=L139),--($U$1:$U$9=M139),$V$1:$V$9)*SUMPRODUCT(--((G139+H139)>0))","v":7},{"$f":"MATCH(H139,$R$3:$R$6,1)","v":3},{"$f":"MATCH(G139,$N$7:$Q$7,1)","v":1},null,{"$f":"SQRT((G139-G138)^2+(H139-H138)^2+(J139-J138)^2)","v":5.5034846424787993},null,null,null,null,null,null,null,null,null,null,null,null,null,null,null,null,null,null,null,null,null,null,null,null,null,null,null,null,null,null,null,null,null,null,null,null,null,null,null,null,null,null,null,null,null,null,null,null,null,null,null,null,null,null,null,null,null,null,null,null,null,null,null,null,null,null,null,null,null,null,null,null,null,null,null,null,null,null,null,null,null,null,null,null,null,null,null,null,null,null,null,null,null,null,null,null,null,null,null,null,null,null,null,null,null,null,null,null,null,null,null,null,null,null,null,null,null,null,null,null,null,null,{"$f":"G139/Q$7","v":0.12043190661478599},{"$f":"(R$6-H139)/R$6","v":0.16238805970149259},{"$f":"(J$3/2-J139)/(J$3/2)","v":0.96083770491803278}]
[131,0,16,0.375,null,4.2929000000000002E-2,32.237000000000002,108.8,23.294,7.1176000000000004,7,3,1,null,4.3545447569177638,null,null,null,null,null,null,null,null,null,null,null,null,null,null,null,null,null,null,null,null,null,null,null,null,null,null,null,null,null,null,null,null,null,null,null,null,null,null,null,null,null,null,null,null,null,null,null,null,null,null,null,null,null,null,null,null,null,null,null,null,null,null,null,null,null,null,null,null,null,null,null,null,null,null,null,null,null,null,null,null,null,null,null,null,null,null,null,null,null,null,null,null,null,null,null,null,null,null,null,null,null,null,null,null,null,null,null,null,null,null,null,null,null,null,null,null,null,null,null,null,null,null,0.12543579766536966,0.18805970149253734,0.94165901639344263]
[132,0,16,0.5,null,4.2279999999999998E-2,41.781999999999996,109,28.222000000000001,7.5556000000000001,7,3,1,null,9.5571370713200459,null,null,null,null,null,null,null,null,null,null,null,null,null,null,null,null,null,null,null,null,null,null,null,null,null,null,null,null,null,null,null,null,null,null,null,null,null,null,null,null,null,null,null,null,null,null,null,null,null,null,null,null,null,null,null,null,null,null,null,null,null,null,null,null,null,null,null,null,null,null,null,null,null,null,null,null,null,null,null,null,null,null,null,null,null,null,null,null,null,null,null,null,null,null,null,null,null,null,null,null,null,null,null,null,null,null,null,null,null,null,null,null,null,null,null,null,null,null,null,null,null,null,0.1625758754863813,0.18656716417910449,0.93806885245901639]
[133,0,16,0.625,null,4.1356999999999998E-2,41.781999999999996,109,32.110999999999997,7.6666999999999996,7,3,1,null,0.11109999999999953,null,null,null,null,null,null,null,null,null,null,null,null,null,null,null,null,null,null,null,null,null,null,null,null,null,null,null,null,null,null,null,null,null,null,null,null,null,null,null,null,null,null,null,null,null,null,null,null,null,null,null,null,null,null,null,null,null,null,null,null,null,null,null,null,null,null,null,null,null,null,null,null,null,null,null,null,null,null,null,null,null,null,null,null,null,null,null,null,null,null,null,null,null,null,null,null,null,null,null,null,null,null,null,null,null,null,null,null,null,null,null,null,null,null,null,null,null,null,null,null,null,null,0.1625758754863813,0.18656716417910449,0.9371581967213114]
[134,0,16,0.75,null,3.8272E-2,46.962000000000003,109.97,36.110999999999997,7.6666999999999996,7,3,1,null,5.2700379505274979,null,null,null,null,null,null,null,null,null,null,null,null,null,null,null,null,null,null,null,null,null,null,null,null,null,null,null,null,null,null,null,null,null,null,null,null,null,null,null,null,null,null,null,null,null,null,null,null,null,null,null,null,null,null,null,null,null,null,null,null,null,null,null,null,null,null,null,null,null,null,null,null,null,null,null,null,null,null,null,null,null,null,null,null,null,null,null,null,null,null,null,null,null,null,null,null,null,null,null,null,null,null,null,null,null,null,null,null,null,null,null,null,null,null,null,null,null,null,null,null,null,null,0.18273151750972763,0.17932835820895524,0.9371581967213114]
[135,0,16,0.875,null,4.3336E-2,53.06,112.13,35.332999999999998,7.8888999999999996,7,3,1,null,6.4730654901676976,null,null,null,null,null,null,null,null,null,null,null,null,null,null,null,null,null,null,null,null,null,null,null,null,null,null,null,null,null,null,null,null,null,null,null,null,null,null,null,null,null,null,null,null,null,null,null,null,null,null,null,null,null,null,null,null,null,null,null,null,null,null,null,null,null,null,null,null,null,null,null,null,null,null,null,null,null,null,null,null,null,null,null,null,null,null,null,null,null,null,null,null,null,null,null,null,null,null,null,null,null,null,null,null,null,null,null,null,null,null,null,null,null,null,null,null,null,null,null,null,null,null,0.20645914396887161,0.16320895522388063,0.93533688524590164]
[136,0,17,0,null,3.3001000000000003E-2,53.06,112.13,37.713999999999999,8,7,3,1,null,0.11110000000000042,null,null,null,null,null,null,null,null,null,null,null,null,null,null,null,null,null,null,null,null,null,null,null,null,null,null,null,null,null,null,null,null,null,null,null,null,null,null,null,null,null,null,null,null,null,null,null,null,null,null,null,null,null,null,null,null,null,null,null,null,null,null,null,null,null,null,null,null,null,null,null,null,null,null,null,null,null,null,null,null,null,null,null,null,null,null,null,null,null,null,null,null,null,null,null,null,null,null,null,null,null,null,null,null,null,null,null,null,null,null,null,null,null,null,null,null,null,null,null,null,null,null,0.20645914396887161,0.16320895522388063,0.93442622950819676]
[137,0,17,0.125,null,4.0065999999999997E-2,54.103999999999999,113.33,38.713999999999999,8,7,3,1,null,1.5905772537038243,null,null,null,null,null,null,null,null,null,null,null,null,null,null,null,null,null,null,null,null,null,null,null,null,null,null,null,null,null,null,null,null,null,null,null,null,null,null,null,null,null,null,null,null,null,null,null,null,null,null,null,null,null,null,null,null,null,null,null,null,null,null,null,null,null,null,null,null,null,null,null,null,null,null,null,null,null,null,null,null,null,null,null,null,null,null,null,null,null,null,null,null,null,null,null,null,null,null,null,null,null,null,null,null,null,null,null,null,null,null,null,null,null,null,null,null,null,null,null,null,null,null,0.2105214007782101,0.1542537313432836,0.93442622950819676]
[138,0,17,0.25,null,3.5677E-2,60.847000000000001,115.03,39.732999999999997,6.7332999999999998,7,3,1,null,7.0684211737841451,null,null,null,null,null,null,null,null,null,null,null,null,null,null,null,null,null,null,null,null,null,null,null,null,null,null,null,null,null,null,null,null,null,null,null,null,null,null,null,null,null,null,null,null,null,null,null,null,null,null,null,null,null,null,null,null,null,null,null,null,null,null,null,null,null,null,null,null,null,null,null,null,null,null,null,null,null,null,null,null,null,null,null,null,null,null,null,null,null,null,null,null,null,null,null,null,null,null,null,null,null,null,null,null,null,null,null,null,null,null,null,null,null,null,null,null,null,null,null,null,null,null,0.23675875486381323,0.14156716417910448,0.94480901639344261]
[139,0,17,0.375,null,4.0995999999999998E-2,60.847000000000001,115.03,42.286000000000001,8.1905000000000001,7,3,1,null,1.4572000000000003,null,null,null,null,null,null,null,null,null,null,null,null,null,null,null,null,null,null,null,null,null,null,null,null,null,null,null,null,null,null,null,null,null,null,null,null,null,null,null,null,null,null,null,null,null,null,null,null,null,null,null,null,null,null,null,null,null,null,null,null,null,null,null,null,null,null,null,null,null,null,null,null,null,null,null,null,null,null,null,null,null,null,null,null,null,null,null,null,null,null,null,null,null,null,null,null,null,null,null,null,null,null,null,null,null,null,null,null,null,null,null,null,null,null,null,null,null,null,null,null,null,null,0.23675875486381323,0.14156716417910448,0.93286475409836067]
[140,0,17,0.5,null,4.1012E-2,65.856999999999999,115,47.713999999999999,8,7,3,1,null,5.0137102279649133,null,null,null,null,null,null,null,null,null,null,null,null,null,null,null,null,null,null,null,null,null,null,null,null,null,null,null,null,null,null,null,null,null,null,null,null,null,null,null,null,null,null,null,null,null,null,null,null,null,null,null,null,null,null,null,null,null,null,null,null,null,null,null,null,null,null,null,null,null,null,null,null,null,null,null,null,null,null,null,null,null,null,null,null,null,null,null,null,null,null,null,null,null,null,null,null,null,null,null,null,null,null,null,null,null,null,null,null,null,null,null,null,null,null,null,null,null,null,null,null,null,null,0.25625291828793773,0.1417910447761194,0.93442622950819676]
[141,0,17,0.625,null,3.5986999999999998E-2,73.548000000000002,116.26,50.2,9.1999999999999993,7,3,1,null,7.8853713292399901,null,null,null,null,null,null,null,null,null,null,null,null,null,null,null,null,null,null,null,null,null,null,null,null,null,null,null,null,null,null,null,null,null,null,null,null,null,null,null,null,null,null,null,null,null,null,null,null,null,null,null,null,null,null,null,null,null,null,null,null,null,null,null,null,null,null,null,null,null,null,null,null,null,null,null,null,null,null,null,null,null,null,null,null,null,null,null,null,null,null,null,null,null,null,null,null,null,null,null,null,null,null,null,null,null,null,null,null,null,null,null,null,null,null,null,null,null,null,null,null,null,null,0.28617898832684824,0.13238805970149251,0.92459016393442617]
[142,0,17,0.75,null,3.5400000000000001E-2,73.548000000000002,116.26,54.5,8.8000000000000007,7,3,1,null,0.39999999999999858,null,null,null,null,null,null,null,null,null,null,null,null,null,null,null,null,null,null,null,null,null,null,null,null,null,null,null,null,null,null,null,null,null,null,null,null,null,null,null,null,null,null,null,null,null,null,null,null,null,null,null,null,null,null,null,null,null,null,null,null,null,null,null,null,null,null,null,null,null,null,null,null,null,null,null,null,null,null,null,null,null,null,null,null,null,null,null,null,null,null,null,null,null,null,null,null,null,null,null,null,null,null,null,null,null,null,null,null,null,null,null,null,null,null,null,null,null,null,null,null,null,null,0.28617898832684824,0.13238805970149251,0.9278688524590164]
[143,0,17,0.875,null,3.9591000000000001E-2,76.372,117.22,53.5,13.167,7,3,1,null,5.288408550783493,null,null,null,null,null,null,null,null,null,null,null,null,null,null,null,null,null,null,null,null,null,null,null,null,null,null,null,null,null,null,null,null,null,null,null,null,null,null,null,null,null,null,null,null,null,null,null,null,null,null,null,null,null,null,null,null,null,null,null,null,null,null,null,null,null,null,null,null,null,null,null,null,null,null,null,null,null,null,null,null,null,null,null,null,null,null,null,null,null,null,null,null,null,null,null,null,null,null,null,null,null,null,null,null,null,null,null,null,null,null,null,null,null,null,null,null,null,null,null,null,null,null,0.29716731517509726,0.12522388059701495,0.89207377049180325]
[144,0,18,0,null,3.7260000000000001E-2,80.599999999999994,119.92,53.475999999999999,18.428999999999998,7,3,1,null,7.2701188435953332,null,null,null,null,null,null,null,null,null,null,null,null,null,null,null,null,null,null,null,null,null,null,null,null,null,null,null,null,null,null,null,null,null,null,null,null,null,null,null,null,null,null,null,null,null,null,null,null,null,null,null,null,null,null,null,null,null,null,null,null,null,null,null,null,null,null,null,null,null,null,null,null,null,null,null,null,null,null,null,null,null,null,null,null,null,null,null,null,null,null,null,null,null,null,null,null,null,null,null,null,null,null,null,null,null,null,null,null,null,null,null,null,null,null,null,null,null,null,null,null,null,null,0.31361867704280155,0.10507462686567164,0.84894262295081968]
[145,0,18,0.125,null,4.0472000000000001E-2,79,121.33,53.6,23.45,7,3,1,null,5.4551389533173191,null,null,null,null,null,null,null,null,null,null,null,null,null,null,null,null,null,null,null,null,null,null,null,null,null,null,null,null,null,null,null,null,null,null,null,null,null,null,null,null,null,null,null,null,null,null,null,null,null,null,null,null,null,null,null,null,null,null,null,null,null,null,null,null,null,null,null,null,null,null,null,null,null,null,null,null,null,null,null,null,null,null,null,null,null,null,null,null,null,null,null,null,null,null,null,null,null,null,null,null,null,null,null,null,null,null,null,null,null,null,null,null,null,null,null,null,null,null,null,null,null,null,0.30739299610894943,9.4552238805970162E-2,0.80778688524590159]
[146,0,18,0.25,null,3.9973000000000002E-2,79,121.33,54.356999999999999,27.571000000000002,7,3,1,null,4.1210000000000022,null,null,null,null,null,null,null,null,null,null,null,null,null,null,null,null,null,null,null,null,null,null,null,null,null,null,null,null,null,null,null,null,null,null,null,null,null,null,null,null,null,null,null,null,null,null,null,null,null,null,null,null,null,null,null,null,null,null,null,null,null,null,null,null,null,null,null,null,null,null,null,null,null,null,null,null,null,null,null,null,null,null,null,null,null,null,null,null,null,null,null,null,null,null,null,null,null,null,null,null,null,null,null,null,null,null,null,null,null,null,null,null,null,null,null,null,null,null,null,null,null,null,0.30739299610894943,9.4552238805970162E-2,0.77400819672131149]
[147,0,18,0.375,null,3.7656000000000002E-2,80.275999999999996,121.9,55.332999999999998,31.111000000000001,7,3,1,null,3.805873881252503,null,null,null,null,null,null,null,null,null,null,null,null,null,null,null,null,null,null,null,null,null,null,null,null,null,null,null,null,null,null,null,null,null,null,null,null,null,null,null,null,null,null,null,null,null,null,null,null,null,null,null,null,null,null,null,null,null,null,null,null,null,null,null,null,null,null,null,null,null,null,null,null,null,null,null,null,null,null,null,null,null,null,null,null,null,null,null,null,null,null,null,null,null,null,null,null,null,null,null,null,null,null,null,null,null,null,null,null,null,null,null,null,null,null,null,null,null,null,null,null,null,null,0.31235797665369647,9.0298507462686528E-2,0.74499180327868852]
[148,0,18,0.5,null,4.3471000000000003E-2,77.778000000000006,117.91,57.5,29.8,7,3,1,null,4.8865964637976838,null,null,null,null,null,null,null,null,null,null,null,null,null,null,null,null,null,null,null,null,null,null,null,null,null,null,null,null,null,null,null,null,null,null,null,null,null,null,null,null,null,null,null,null,null,null,null,null,null,null,null,null,null,null,null,null,null,null,null,null,null,null,null,null,null,null,null,null,null,null,null,null,null,null,null,null,null,null,null,null,null,null,null,null,null,null,null,null,null,null,null,null,null,null,null,null,null,null,null,null,null,null,null,null,null,null,null,null,null,null,null,null,null,null,null,null,null,null,null,null,null,null,0.30263813229571984,0.12007462686567166,0.75573770491803283]
[149,0,18,0.625,null,4.0652000000000001E-2,77.778000000000006,117.91,60.1,30.2,7,3,1,null,0.39999999999999858,null,null,null,null,null,null,null,null,null,null,null,null,null,null,null,null,null,null,null,null,null,null,null,null,null,null,null,null,null,null,null,null,null,null,null,null,null,null,null,null,null,null,null,null,null,null,null,null,null,null,null,null,null,null,null,null,null,null,null,null,null,null,null,null,null,null,null,null,null,null,null,null,null,null,null,null,null,null,null,null,null,null,null,null,null,null,null,null,null,null,null,null,null,null,null,null,null,null,null,null,null,null,null,null,null,null,null,null,null,null,null,null,null,null,null,null,null,null,null,null,null,null,0.30263813229571984,0.12007462686567166,0.75245901639344259]
[150,0,18,0.75,null,3.9654000000000002E-2,85.143000000000001,115.83,55.636000000000003,27.181999999999999,7,3,1,null,8.2266608657461937,null,null,null,null,null,null,null,null,null,null,null,null,null,null,null,null,null,null,null,null,null,null,null,null,null,null,null,null,null,null,null,null,null,null,null,null,null,null,null,null,null,null,null,null,null,null,null,null,null,null,null,null,null,null,null,null,null,null,null,null,null,null,null,null,null,null,null,null,null,null,null,null,null,null,null,null,null,null,null,null,null,null,null,null,null,null,null,null,null,null,null,null,null,null,null,null,null,null,null,null,null,null,null,null,null,null,null,null,null,null,null,null,null,null,null,null,null,null,null,null,null,null,0.33129571984435796,0.13559701492537315,0.77719672131147544]
[151,0,18,0.875,null,4.4204E-2,85.143000000000001,115.83,57.841999999999999,34.473999999999997,7,3,1,null,7.291999999999998,null,null,null,null,null,null,null,null,null,null,null,null,null,null,null,null,null,null,null,null,null,null,null,null,null,null,null,null,null,null,null,null,null,null,null,null,null,null,null,null,null,null,null,null,null,null,null,null,null,null,null,null,null,null,null,null,null,null,null,null,null,null,null,null,null,null,null,null,null,null,null,null,null,null,null,null,null,null,null,null,null,null,null,null,null,null,null,null,null,null,null,null,null,null,null,null,null,null,null,null,null,null,null,null,null,null,null,null,null,null,null,null,null,null,null,null,null,null,null,null,null,null,0.33129571984435796,0.13559701492537315,0.71742622950819679]
[152,0,19,0,null,3.9729E-2,85.394000000000005,113.58,57.768999999999998,39.768999999999998,7,3,1,null,5.7586913443941432,null,null,null,null,null,null,null,null,null,null,null,null,null,null,null,null,null,null,null,null,null,null,null,null,null,null,null,null,null,null,null,null,null,null,null,null,null,null,null,null,null,null,null,null,null,null,null,null,null,null,null,null,null,null,null,null,null,null,null,null,null,null,null,null,null,null,null,null,null,null,null,null,null,null,null,null,null,null,null,null,null,null,null,null,null,null,null,null,null,null,null,null,null,null,null,null,null,null,null,null,null,null,null,null,null,null,null,null,null,null,null,null,null,null,null,null,null,null,null,null,null,null,0.33227237354085604,0.15238805970149255,0.67402459016393435]
[153,0,19,0.125,null,3.3383999999999997E-2,83,114.5,57.5,43,7,3,1,null,4.1251662996781162,null,null,null,null,null,null,null,null,null,null,null,null,null,null,null,null,null,null,null,null,null,null,null,null,null,null,null,null,null,null,null,null,null,null,null,null,null,null,null,null,null,null,null,null,null,null,null,null,null,null,null,null,null,null,null,null,null,null,null,null,null,null,null,null,null,null,null,null,null,null,null,null,null,null,null,null,null,null,null,null,null,null,null,null,null,null,null,null,null,null,null,null,null,null,null,null,null,null,null,null,null,null,null,null,null,null,null,null,null,null,null,null,null,null,null,null,null,null,null,null,null,null,0.32295719844357978,0.1455223880597015,0.64754098360655743]
[154,0,19,0.25,null,3.2375000000000001E-2,81.534000000000006,114.96,52.941000000000003,45.411999999999999,7,3,1,null,2.8598076858418247,null,null,null,null,null,null,null,null,null,null,null,null,null,null,null,null,null,null,null,null,null,null,null,null,null,null,null,null,null,null,null,null,null,null,null,null,null,null,null,null,null,null,null,null,null,null,null,null,null,null,null,null,null,null,null,null,null,null,null,null,null,null,null,null,null,null,null,null,null,null,null,null,null,null,null,null,null,null,null,null,null,null,null,null,null,null,null,null,null,null,null,null,null,null,null,null,null,null,null,null,null,null,null,null,null,null,null,null,null,null,null,null,null,null,null,null,null,null,null,null,null,null,0.31725291828793778,0.14208955223880601,0.6277704918032786]
[155,0,19,0.375,null,3.8683000000000002E-2,81.534000000000006,114.96,49.524000000000001,49.094999999999999,7,3,1,null,3.6829999999999998,null,null,null,null,null,null,null,null,null,null,null,null,null,null,null,null,null,null,null,null,null,null,null,null,null,null,null,null,null,null,null,null,null,null,null,null,null,null,null,null,null,null,null,null,null,null,null,null,null,null,null,null,null,null,null,null,null,null,null,null,null,null,null,null,null,null,null,null,null,null,null,null,null,null,null,null,null,null,null,null,null,null,null,null,null,null,null,null,null,null,null,null,null,null,null,null,null,null,null,null,null,null,null,null,null,null,null,null,null,null,null,null,null,null,null,null,null,null,null,null,null,null,0.31725291828793778,0.14208955223880601,0.59758196721311474]
[156,0,19,0.5,null,4.1945000000000003E-2,75.146000000000001,115.8,46.063000000000002,51.813000000000002,7,3,1,null,6.9928297562574828,null,null,null,null,null,null,null,null,null,null,null,null,null,null,null,null,null,null,null,null,null,null,null,null,null,null,null,null,null,null,null,null,null,null,null,null,null,null,null,null,null,null,null,null,null,null,null,null,null,null,null,null,null,null,null,null,null,null,null,null,null,null,null,null,null,null,null,null,null,null,null,null,null,null,null,null,null,null,null,null,null,null,null,null,null,null,null,null,null,null,null,null,null,null,null,null,null,null,null,null,null,null,null,null,null,null,null,null,null,null,null,null,null,null,null,null,null,null,null,null,null,null,0.2923968871595331,0.13582089552238807,0.5753032786885246]
[157,0,19,0.625,null,3.6325999999999997E-2,66.891999999999996,118.6,41.1,51.8,7,3,1,null,8.7160016636070043,null,null,null,null,null,null,null,null,null,null,null,null,null,null,null,null,null,null,null,null,null,null,null,null,null,null,null,null,null,null,null,null,null,null,null,null,null,null,null,null,null,null,null,null,null,null,null,null,null,null,null,null,null,null,null,null,null,null,null,null,null,null,null,null,null,null,null,null,null,null,null,null,null,null,null,null,null,null,null,null,null,null,null,null,null,null,null,null,null,null,null,null,null,null,null,null,null,null,null,null,null,null,null,null,null,null,null,null,null,null,null,null,null,null,null,null,null,null,null,null,null,null,0.26028015564202334,0.11492537313432841,0.57540983606557383]
[158,0,19,0.75,null,2.7345999999999999E-2,66.891999999999996,118.6,41.1,51.8,7,3,1,null,0,null,null,null,null,null,null,null,null,null,null,null,null,null,null,null,null,null,null,null,null,null,null,null,null,null,null,null,null,null,null,null,null,null,null,null,null,null,null,null,null,null,null,null,null,null,null,null,null,null,null,null,null,null,null,null,null,null,null,null,null,null,null,null,null,null,null,null,null,null,null,null,null,null,null,null,null,null,null,null,null,null,null,null,null,null,null,null,null,null,null,null,null,null,null,null,null,null,null,null,null,null,null,null,null,null,null,null,null,null,null,null,null,null,null,null,null,null,null,null,null,null,null,0.26028015564202334,0.11492537313432841,0.57540983606557383]
[159,0,19,0.875,null,2.3375E-2,60.805999999999997,118.77,36.08,53.08,7,3,1,null,6.2214705657103275,null,null,null,null,null,null,null,null,null,null,null,null,null,null,null,null,null,null,null,null,null,null,null,null,null,null,null,null,null,null,null,null,null,null,null,null,null,null,null,null,null,null,null,null,null,null,null,null,null,null,null,null,null,null,null,null,null,null,null,null,null,null,null,null,null,null,null,null,null,null,null,null,null,null,null,null,null,null,null,null,null,null,null,null,null,null,null,null,null,null,null,null,null,null,null,null,null,null,null,null,null,null,null,null,null,null,null,null,null,null,null,null,null,null,null,null,null,null,null,null,null,null,0.23659922178988327,0.11365671641791047,0.56491803278688524]
[160,0,20,0,null,2.7862999999999999E-2,45.573,118.29,29.75,53.375,7,3,1,null,15.24341543093279,null,null,null,null,null,null,null,null,null,null,null,null,null,null,null,null,null,null,null,null,null,null,null,null,null,null,null,null,null,null,null,null,null,null,null,null,null,null,null,null,null,null,null,null,null,null,null,null,null,null,null,null,null,null,null,null,null,null,null,null,null,null,null,null,null,null,null,null,null,null,null,null,null,null,null,null,null,null,null,null,null,null,null,null,null,null,null,null,null,null,null,null,null,null,null,null,null,null,null,null,null,null,null,null,null,null,null,null,null,null,null,null,null,null,null,null,null,null,null,null,null,null,0.17732684824902725,0.11723880597014921,0.5625]
[161,0,20,0.125,null,3.5625999999999998E-2,36.49,118.1,24.273,50.908999999999999,7,3,1,null,9.4137211027308414,null,null,null,null,null,null,null,null,null,null,null,null,null,null,null,null,null,null,null,null,null,null,null,null,null,null,null,null,null,null,null,null,null,null,null,null,null,null,null,null,null,null,null,null,null,null,null,null,null,null,null,null,null,null,null,null,null,null,null,null,null,null,null,null,null,null,null,null,null,null,null,null,null,null,null,null,null,null,null,null,null,null,null,null,null,null,null,null,null,null,null,null,null,null,null,null,null,null,null,null,null,null,null,null,null,null,null,null,null,null,null,null,null,null,null,null,null,null,null,null,null,null,0.14198443579766537,0.11865671641791049,0.58271311475409848]
[162,0,20,0.25,null,3.6623999999999997E-2,36.49,118.1,20.167000000000002,50.610999999999997,7,3,1,null,0.29800000000000182,null,null,null,null,null,null,null,null,null,null,null,null,null,null,null,null,null,null,null,null,null,null,null,null,null,null,null,null,null,null,null,null,null,null,null,null,null,null,null,null,null,null,null,null,null,null,null,null,null,null,null,null,null,null,null,null,null,null,null,null,null,null,null,null,null,null,null,null,null,null,null,null,null,null,null,null,null,null,null,null,null,null,null,null,null,null,null,null,null,null,null,null,null,null,null,null,null,null,null,null,null,null,null,null,null,null,null,null,null,null,null,null,null,null,null,null,null,null,null,null,null,null,0.14198443579766537,0.11865671641791049,0.58515573770491813]
[163,0,20,0.375,null,3.8686999999999999E-2,27.975999999999999,114.17,15.667,44.555999999999997,7,3,1,null,11.162263256168078,null,null,null,null,null,null,null,null,null,null,null,null,null,null,null,null,null,null,null,null,null,null,null,null,null,null,null,null,null,null,null,null,null,null,null,null,null,null,null,null,null,null,null,null,null,null,null,null,null,null,null,null,null,null,null,null,null,null,null,null,null,null,null,null,null,null,null,null,null,null,null,null,null,null,null,null,null,null,null,null,null,null,null,null,null,null,null,null,null,null,null,null,null,null,null,null,null,null,null,null,null,null,null,null,null,null,null,null,null,null,null,null,null,null,null,null,null,null,null,null,null,null,0.10885603112840467,0.14798507462686566,0.63478688524590166]
[164,0,20,0.5,null,3.6549999999999999E-2,26.734999999999999,109.29,16.777999999999999,42.889000000000003,7,3,1,null,5.3040899313642802,null,null,null,null,null,null,null,null,null,null,null,null,null,null,null,null,null,null,null,null,null,null,null,null,null,null,null,null,null,null,null,null,null,null,null,null,null,null,null,null,null,null,null,null,null,null,null,null,null,null,null,null,null,null,null,null,null,null,null,null,null,null,null,null,null,null,null,null,null,null,null,null,null,null,null,null,null,null,null,null,null,null,null,null,null,null,null,null,null,null,null,null,null,null,null,null,null,null,null,null,null,null,null,null,null,null,null,null,null,null,null,null,null,null,null,null,null,null,null,null,null,null,0.1040272373540856,0.18440298507462682,0.64845081967213103]
[165,0,20,0.625,null,4.1535999999999997E-2,26.734999999999999,109.29,16.908999999999999,39.726999999999997,7,3,1,null,3.1620000000000061,null,null,null,null,null,null,null,null,null,null,null,null,null,null,null,null,null,null,null,null,null,null,null,null,null,null,null,null,null,null,null,null,null,null,null,null,null,null,null,null,null,null,null,null,null,null,null,null,null,null,null,null,null,null,null,null,null,null,null,null,null,null,null,null,null,null,null,null,null,null,null,null,null,null,null,null,null,null,null,null,null,null,null,null,null,null,null,null,null,null,null,null,null,null,null,null,null,null,null,null,null,null,null,null,null,null,null,null,null,null,null,null,null,null,null,null,null,null,null,null,null,null,0.1040272373540856,0.18440298507462682,0.67436885245901634]
[166,0,20,0.75,null,3.8893999999999998E-2,27.414999999999999,108.51,18.286000000000001,36.143000000000001,7,3,1,null,3.7303962256039203,null,null,null,null,null,null,null,null,null,null,null,null,null,null,null,null,null,null,null,null,null,null,null,null,null,null,null,null,null,null,null,null,null,null,null,null,null,null,null,null,null,null,null,null,null,null,null,null,null,null,null,null,null,null,null,null,null,null,null,null,null,null,null,null,null,null,null,null,null,null,null,null,null,null,null,null,null,null,null,null,null,null,null,null,null,null,null,null,null,null,null,null,null,null,null,null,null,null,null,null,null,null,null,null,null,null,null,null,null,null,null,null,null,null,null,null,null,null,null,null,null,null,0.10667315175097276,0.19022388059701489,0.70374590163934425]
[167,0,20,0.875,null,3.6534999999999998E-2,27.414999999999999,108.51,18,34.6,7,3,1,null,1.5429999999999993,null,null,null,null,null,null,null,null,null,null,null,null,null,null,null,null,null,null,null,null,null,null,null,null,null,null,null,null,null,null,null,null,null,null,null,null,null,null,null,null,null,null,null,null,null,null,null,null,null,null,null,null,null,null,null,null,null,null,null,null,null,null,null,null,null,null,null,null,null,null,null,null,null,null,null,null,null,null,null,null,null,null,null,null,null,null,null,null,null,null,null,null,null,null,null,null,null,null,null,null,null,null,null,null,null,null,null,null,null,null,null,null,null,null,null,null,null,null,null,null,null,null,0.10667315175097276,0.19022388059701489,0.7163934426229509]
[168,0,21,0,null,4.1231999999999998E-2,29.690999999999999,107.71,19.614999999999998,30.154,7,3,1,null,5.0583685116843782,null,null,null,null,null,null,null,null,null,null,null,null,null,null,null,null,null,null,null,null,null,null,null,null,null,null,null,null,null,null,null,null,null,null,null,null,null,null,null,null,null,null,null,null,null,null,null,null,null,null,null,null,null,null,null,null,null,null,null,null,null,null,null,null,null,null,null,null,null,null,null,null,null,null,null,null,null,null,null,null,null,null,null,null,null,null,null,null,null,null,null,null,null,null,null,null,null,null,null,null,null,null,null,null,null,null,null,null,null,null,null,null,null,null,null,null,null,null,null,null,null,null,0.11552918287937743,0.19619402985074633,0.75283606557377047]
[169,0,21,0.125,null,3.9098000000000001E-2,32.651000000000003,108.16,19.818000000000001,27.091000000000001,7,3,1,null,4.2832311401557615,null,null,null,null,null,null,null,null,null,null,null,null,null,null,null,null,null,null,null,null,null,null,null,null,null,null,null,null,null,null,null,null,null,null,null,null,null,null,null,null,null,null,null,null,null,null,null,null,null,null,null,null,null,null,null,null,null,null,null,null,null,null,null,null,null,null,null,null,null,null,null,null,null,null,null,null,null,null,null,null,null,null,null,null,null,null,null,null,null,null,null,null,null,null,null,null,null,null,null,null,null,null,null,null,null,null,null,null,null,null,null,null,null,null,null,null,null,null,null,null,null,null,0.12704669260700391,0.19283582089552243,0.77794262295081962]
[170,0,21,0.25,null,3.2764000000000001E-2,33.706000000000003,110.24,17.733000000000001,24.667000000000002,7,3,1,null,3.3638075153016693,null,null,null,null,null,null,null,null,null,null,null,null,null,null,null,null,null,null,null,null,null,null,null,null,null,null,null,null,null,null,null,null,null,null,null,null,null,null,null,null,null,null,null,null,null,null,null,null,null,null,null,null,null,null,null,null,null,null,null,null,null,null,null,null,null,null,null,null,null,null,null,null,null,null,null,null,null,null,null,null,null,null,null,null,null,null,null,null,null,null,null,null,null,null,null,null,null,null,null,null,null,null,null,null,null,null,null,null,null,null,null,null,null,null,null,null,null,null,null,null,null,null,0.13115175097276266,0.17731343283582093,0.7978114754098361]
[171,0,21,0.375,null,4.1591999999999997E-2,26.971,108.62,14.9,20.6,7,3,1,null,8.0327525792843897,null,null,null,null,null,null,null,null,null,null,null,null,null,null,null,null,null,null,null,null,null,null,null,null,null,null,null,null,null,null,null,null,null,null,null,null,null,null,null,null,null,null,null,null,null,null,null,null,null,null,null,null,null,null,null,null,null,null,null,null,null,null,null,null,null,null,null,null,null,null,null,null,null,null,null,null,null,null,null,null,null,null,null,null,null,null,null,null,null,null,null,null,null,null,null,null,null,null,null,null,null,null,null,null,null,null,null,null,null,null,null,null,null,null,null,null,null,null,null,null,null,null,0.1049455252918288,0.18940298507462683,0.83114754098360666]
[172,0,21,0.5,null,3.7534999999999999E-2,26.971,108.62,13.5,18,7,3,1,null,2.6000000000000014,null,null,null,null,null,null,null,null,null,null,null,null,null,null,null,null,null,null,null,null,null,null,null,null,null,null,null,null,null,null,null,null,null,null,null,null,null,null,null,null,null,null,null,null,null,null,null,null,null,null,null,null,null,null,null,null,null,null,null,null,null,null,null,null,null,null,null,null,null,null,null,null,null,null,null,null,null,null,null,null,null,null,null,null,null,null,null,null,null,null,null,null,null,null,null,null,null,null,null,null,null,null,null,null,null,null,null,null,null,null,null,null,null,null,null,null,null,null,null,null,null,null,0.1049455252918288,0.18940298507462683,0.85245901639344257]
[173,0,21,0.625,null,3.8143000000000003E-2,25.718,109.64,12.273,18.635999999999999,7,3,1,null,1.7363481793695614,null,null,null,null,null,null,null,null,null,null,null,null,null,null,null,null,null,null,null,null,null,null,null,null,null,null,null,null,null,null,null,null,null,null,null,null,null,null,null,null,null,null,null,null,null,null,null,null,null,null,null,null,null,null,null,null,null,null,null,null,null,null,null,null,null,null,null,null,null,null,null,null,null,null,null,null,null,null,null,null,null,null,null,null,null,null,null,null,null,null,null,null,null,null,null,null,null,null,null,null,null,null,null,null,null,null,null,null,null,null,null,null,null,null,null,null,null,null,null,null,null,null,0.10007003891050584,0.1817910447761194,0.84724590163934432]
[174,0,21,0.75,null,4.1513000000000001E-2,23.422999999999998,111.88,10.273,18.635999999999999,7,3,1,null,3.2069650762052251,null,null,null,null,null,null,null,null,null,null,null,null,null,null,null,null,null,null,null,null,null,null,null,null,null,null,null,null,null,null,null,null,null,null,null,null,null,null,null,null,null,null,null,null,null,null,null,null,null,null,null,null,null,null,null,null,null,null,null,null,null,null,null,null,null,null,null,null,null,null,null,null,null,null,null,null,null,null,null,null,null,null,null,null,null,null,null,null,null,null,null,null,null,null,null,null,null,null,null,null,null,null,null,null,null,null,null,null,null,null,null,null,null,null,null,null,null,null,null,null,null,null,9.1140077821011661E-2,0.16507462686567168,0.84724590163934432]
[175,0,21,0.875,null,4.0154000000000002E-2,23.422999999999998,111.88,12.167,13.583,7,3,1,null,5.052999999999999,null,null,null,null,null,null,null,null,null,null,null,null,null,null,null,null,null,null,null,null,null,null,null,null,null,null,null,null,null,null,null,null,null,null,null,null,null,null,null,null,null,null,null,null,null,null,null,null,null,null,null,null,null,null,null,null,null,null,null,null,null,null,null,null,null,null,null,null,null,null,null,null,null,null,null,null,null,null,null,null,null,null,null,null,null,null,null,null,null,null,null,null,null,null,null,null,null,null,null,null,null,null,null,null,null,null,null,null,null,null,null,null,null,null,null,null,null,null,null,null,null,null,9.1140077821011661E-2,0.16507462686567168,0.88866393442622948]
[176,0,22,0,null,3.4505000000000001E-2,22.771000000000001,111.94,11.067,12.333,7,3,1,null,1.4111002799234351,null,null,null,null,null,null,null,null,null,null,null,null,null,null,null,null,null,null,null,null,null,null,null,null,null,null,null,null,null,null,null,null,null,null,null,null,null,null,null,null,null,null,null,null,null,null,null,null,null,null,null,null,null,null,null,null,null,null,null,null,null,null,null,null,null,null,null,null,null,null,null,null,null,null,null,null,null,null,null,null,null,null,null,null,null,null,null,null,null,null,null,null,null,null,null,null,null,null,null,null,null,null,null,null,null,null,null,null,null,null,null,null,null,null,null,null,null,null,null,null,null,null,8.860311284046693E-2,0.16462686567164181,0.89890983606557373]
[177,0,22,0.125,null,3.7851999999999997E-2,26.74,106.84,14.875,10.375,7,3,1,null,6.7525347092776888,null,null,null,null,null,null,null,null,null,null,null,null,null,null,null,null,null,null,null,null,null,null,null,null,null,null,null,null,null,null,null,null,null,null,null,null,null,null,null,null,null,null,null,null,null,null,null,null,null,null,null,null,null,null,null,null,null,null,null,null,null,null,null,null,null,null,null,null,null,null,null,null,null,null,null,null,null,null,null,null,null,null,null,null,null,null,null,null,null,null,null,null,null,null,null,null,null,null,null,null,null,null,null,null,null,null,null,null,null,null,null,null,null,null,null,null,null,null,null,null,null,null,0.10404669260700389,0.20268656716417907,0.91495901639344257]
[178,0,22,0.25,null,3.7475000000000001E-2,26.74,106.84,18.765000000000001,8.7058999999999997,7,3,1,null,1.6691000000000003,null,null,null,null,null,null,null,null,null,null,null,null,null,null,null,null,null,null,null,null,null,null,null,null,null,null,null,null,null,null,null,null,null,null,null,null,null,null,null,null,null,null,null,null,null,null,null,null,null,null,null,null,null,null,null,null,null,null,null,null,null,null,null,null,null,null,null,null,null,null,null,null,null,null,null,null,null,null,null,null,null,null,null,null,null,null,null,null,null,null,null,null,null,null,null,null,null,null,null,null,null,null,null,null,null,null,null,null,null,null,null,null,null,null,null,null,null,null,null,null,null,null,0.10404669260700389,0.20268656716417907,0.92864016393442628]
[179,0,22,0.375,null,3.6769000000000003E-2,31.806999999999999,105.04,24.4,7.1333000000000002,7,3,1,null,5.6024601524687334,null,null,null,null,null,null,null,null,null,null,null,null,null,null,null,null,null,null,null,null,null,null,null,null,null,null,null,null,null,null,null,null,null,null,null,null,null,null,null,null,null,null,null,null,null,null,null,null,null,null,null,null,null,null,null,null,null,null,null,null,null,null,null,null,null,null,null,null,null,null,null,null,null,null,null,null,null,null,null,null,null,null,null,null,null,null,null,null,null,null,null,null,null,null,null,null,null,null,null,null,null,null,null,null,null,null,null,null,null,null,null,null,null,null,null,null,null,null,null,null,null,null,0.12376264591439688,0.21611940298507459,0.94153032786885238]
[180,0,22,0.5,null,3.9223000000000001E-2,41.807000000000002,101.75,28.454999999999998,6.1818,7,3,1,null,10.570215336027934,null,null,null,null,null,null,null,null,null,null,null,null,null,null,null,null,null,null,null,null,null,null,null,null,null,null,null,null,null,null,null,null,null,null,null,null,null,null,null,null,null,null,null,null,null,null,null,null,null,null,null,null,null,null,null,null,null,null,null,null,null,null,null,null,null,null,null,null,null,null,null,null,null,null,null,null,null,null,null,null,null,null,null,null,null,null,null,null,null,null,null,null,null,null,null,null,null,null,null,null,null,null,null,null,null,null,null,null,null,null,null,null,null,null,null,null,null,null,null,null,null,null,0.16267315175097277,0.24067164179104478,0.94932950819672135]
[181,0,22,0.625,null,4.095E-2,49.219000000000001,101.09,33.299999999999997,7.8,7,3,1,null,7.6152422968675122,null,null,null,null,null,null,null,null,null,null,null,null,null,null,null,null,null,null,null,null,null,null,null,null,null,null,null,null,null,null,null,null,null,null,null,null,null,null,null,null,null,null,null,null,null,null,null,null,null,null,null,null,null,null,null,null,null,null,null,null,null,null,null,null,null,null,null,null,null,null,null,null,null,null,null,null,null,null,null,null,null,null,null,null,null,null,null,null,null,null,null,null,null,null,null,null,null,null,null,null,null,null,null,null,null,null,null,null,null,null,null,null,null,null,null,null,null,null,null,null,null,null,0.19151361867704281,0.24559701492537311,0.93606557377049182]
[182,0,22,0.75,null,3.5680999999999997E-2,49.219000000000001,101.09,37.417000000000002,8.6667000000000005,7,3,1,null,0.86670000000000069,null,null,null,null,null,null,null,null,null,null,null,null,null,null,null,null,null,null,null,null,null,null,null,null,null,null,null,null,null,null,null,null,null,null,null,null,null,null,null,null,null,null,null,null,null,null,null,null,null,null,null,null,null,null,null,null,null,null,null,null,null,null,null,null,null,null,null,null,null,null,null,null,null,null,null,null,null,null,null,null,null,null,null,null,null,null,null,null,null,null,null,null,null,null,null,null,null,null,null,null,null,null,null,null,null,null,null,null,null,null,null,null,null,null,null,null,null,null,null,null,null,null,0.19151361867704281,0.24559701492537311,0.92896147540983598]
[183,0,22,0.875,null,4.2782000000000001E-2,55.631,102.29,41.417000000000002,8.6667000000000005,7,3,1,null,6.5233230795354595,null,null,null,null,null,null,null,null,null,null,null,null,null,null,null,null,null,null,null,null,null,null,null,null,null,null,null,null,null,null,null,null,null,null,null,null,null,null,null,null,null,null,null,null,null,null,null,null,null,null,null,null,null,null,null,null,null,null,null,null,null,null,null,null,null,null,null,null,null,null,null,null,null,null,null,null,null,null,null,null,null,null,null,null,null,null,null,null,null,null,null,null,null,null,null,null,null,null,null,null,null,null,null,null,null,null,null,null,null,null,null,null,null,null,null,null,null,null,null,null,null,null,0.21646303501945524,0.23664179104477606,0.92896147540983598]
[184,0,23,0,null,4.3852000000000002E-2,63.859000000000002,104.34,41.143000000000001,9.5714000000000006,7,3,1,null,8.5276588868223389,null,null,null,null,null,null,null,null,null,null,null,null,null,null,null,null,null,null,null,null,null,null,null,null,null,null,null,null,null,null,null,null,null,null,null,null,null,null,null,null,null,null,null,null,null,null,null,null,null,null,null,null,null,null,null,null,null,null,null,null,null,null,null,null,null,null,null,null,null,null,null,null,null,null,null,null,null,null,null,null,null,null,null,null,null,null,null,null,null,null,null,null,null,null,null,null,null,null,null,null,null,null,null,null,null,null,null,null,null,null,null,null,null,null,null,null,null,null,null,null,null,null,0.24847859922178989,0.22134328358208952,0.92154590163934424]
[185,0,23,0.125,null,4.0953999999999997E-2,63.859000000000002,104.34,44.537999999999997,10.615,7,3,1,null,1.0435999999999996,null,null,null,null,null,null,null,null,null,null,null,null,null,null,null,null,null,null,null,null,null,null,null,null,null,null,null,null,null,null,null,null,null,null,null,null,null,null,null,null,null,null,null,null,null,null,null,null,null,null,null,null,null,null,null,null,null,null,null,null,null,null,null,null,null,null,null,null,null,null,null,null,null,null,null,null,null,null,null,null,null,null,null,null,null,null,null,null,null,null,null,null,null,null,null,null,null,null,null,null,null,null,null,null,null,null,null,null,null,null,null,null,null,null,null,null,null,null,null,null,null,null,0.24847859922178989,0.22134328358208952,0.91299180327868856]
[186,0,23,0.25,null,4.0625000000000001E-2,68.239000000000004,107.25,47.332999999999998,11.667,7,3,1,null,5.362760856126255,null,null,null,null,null,null,null,null,null,null,null,null,null,null,null,null,null,null,null,null,null,null,null,null,null,null,null,null,null,null,null,null,null,null,null,null,null,null,null,null,null,null,null,null,null,null,null,null,null,null,null,null,null,null,null,null,null,null,null,null,null,null,null,null,null,null,null,null,null,null,null,null,null,null,null,null,null,null,null,null,null,null,null,null,null,null,null,null,null,null,null,null,null,null,null,null,null,null,null,null,null,null,null,null,null,null,null,null,null,null,null,null,null,null,null,null,null,null,null,null,null,null,0.26552140077821013,0.19962686567164178,0.90436885245901633]
[187,0,23,0.375,null,4.2617000000000002E-2,71.253,109.97,50.832999999999998,13.833,7,3,1,null,4.6015380037548281,null,null,null,null,null,null,null,null,null,null,null,null,null,null,null,null,null,null,null,null,null,null,null,null,null,null,null,null,null,null,null,null,null,null,null,null,null,null,null,null,null,null,null,null,null,null,null,null,null,null,null,null,null,null,null,null,null,null,null,null,null,null,null,null,null,null,null,null,null,null,null,null,null,null,null,null,null,null,null,null,null,null,null,null,null,null,null,null,null,null,null,null,null,null,null,null,null,null,null,null,null,null,null,null,null,null,null,null,null,null,null,null,null,null,null,null,null,null,null,null,null,null,0.27724902723735406,0.17932835820895524,0.88661475409836066]
[188,0,23,0.5,null,3.4576000000000003E-2,71.253,109.97,52.4,14.2,7,3,1,null,0.3669999999999991,null,null,null,null,null,null,null,null,null,null,null,null,null,null,null,null,null,null,null,null,null,null,null,null,null,null,null,null,null,null,null,null,null,null,null,null,null,null,null,null,null,null,null,null,null,null,null,null,null,null,null,null,null,null,null,null,null,null,null,null,null,null,null,null,null,null,null,null,null,null,null,null,null,null,null,null,null,null,null,null,null,null,null,null,null,null,null,null,null,null,null,null,null,null,null,null,null,null,null,null,null,null,null,null,null,null,null,null,null,null,null,null,null,null,null,null,null,null,null,null,null,null,0.27724902723735406,0.17932835820895524,0.88360655737704918]
[189,0,23,0.625,null,3.5569999999999997E-2,74.954999999999998,114.39,54.4,14.2,7,3,1,null,5.7655185369574529,null,null,null,null,null,null,null,null,null,null,null,null,null,null,null,null,null,null,null,null,null,null,null,null,null,null,null,null,null,null,null,null,null,null,null,null,null,null,null,null,null,null,null,null,null,null,null,null,null,null,null,null,null,null,null,null,null,null,null,null,null,null,null,null,null,null,null,null,null,null,null,null,null,null,null,null,null,null,null,null,null,null,null,null,null,null,null,null,null,null,null,null,null,null,null,null,null,null,null,null,null,null,null,null,null,null,null,null,null,null,null,null,null,null,null,null,null,null,null,null,null,null,0.29165369649805445,0.14634328358208956,0.88360655737704918]
[190,0,23,0.75,null,4.1384999999999998E-2,76.828999999999994,117.72,54.667000000000002,14.888999999999999,7,3,1,null,3.8827177337529921,null,null,null,null,null,null,null,null,null,null,null,null,null,null,null,null,null,null,null,null,null,null,null,null,null,null,null,null,null,null,null,null,null,null,null,null,null,null,null,null,null,null,null,null,null,null,null,null,null,null,null,null,null,null,null,null,null,null,null,null,null,null,null,null,null,null,null,null,null,null,null,null,null,null,null,null,null,null,null,null,null,null,null,null,null,null,null,null,null,null,null,null,null,null,null,null,null,null,null,null,null,null,null,null,null,null,null,null,null,null,null,null,null,null,null,null,null,null,null,null,null,null,0.29894552529182877,0.12149253731343285,0.87795901639344265]
[191,0,23,0.875,null,3.6313999999999999E-2,81.075000000000003,120.95,55,17.667000000000002,7,3,1,null,6.0148732322468872,null,null,null,null,null,null,null,null,null,null,null,null,null,null,null,null,null,null,null,null,null,null,null,null,null,null,null,null,null,null,null,null,null,null,null,null,null,null,null,null,null,null,null,null,null,null,null,null,null,null,null,null,null,null,null,null,null,null,null,null,null,null,null,null,null,null,null,null,null,null,null,null,null,null,null,null,null,null,null,null,null,null,null,null,null,null,null,null,null,null,null,null,null,null,null,null,null,null,null,null,null,null,null,null,null,null,null,null,null,null,null,null,null,null,null,null,null,null,null,null,null,null,0.3154669260700389,9.7388059701492516E-2,0.85518852459016392]
[192,0,24,0,null,4.1010999999999999E-2,81.075000000000003,120.95,56.332999999999998,20.167000000000002,7,3,1,null,2.5,null,null,null,null,null,null,null,null,null,null,null,null,null,null,null,null,null,null,null,null,null,null,null,null,null,null,null,null,null,null,null,null,null,null,null,null,null,null,null,null,null,null,null,null,null,null,null,null,null,null,null,null,null,null,null,null,null,null,null,null,null,null,null,null,null,null,null,null,null,null,null,null,null,null,null,null,null,null,null,null,null,null,null,null,null,null,null,null,null,null,null,null,null,null,null,null,null,null,null,null,null,null,null,null,null,null,null,null,null,null,null,null,null,null,null,null,null,null,null,null,null,null,0.3154669260700389,9.7388059701492516E-2,0.83469672131147543]
[193,0,24,0.125,null,4.1674000000000003E-2,79.2,121.12,50.136000000000003,18.591000000000001,7,3,1,null,2.4552598640469818,null,null,null,null,null,null,null,null,null,null,null,null,null,null,null,null,null,null,null,null,null,null,null,null,null,null,null,null,null,null,null,null,null,null,null,null,null,null,null,null,null,null,null,null,null,null,null,null,null,null,null,null,null,null,null,null,null,null,null,null,null,null,null,null,null,null,null,null,null,null,null,null,null,null,null,null,null,null,null,null,null,null,null,null,null,null,null,null,null,null,null,null,null,null,null,null,null,null,null,null,null,null,null,null,null,null,null,null,null,null,null,null,null,null,null,null,null,null,null,null,null,null,0.30817120622568095,9.6119402985074598E-2,0.84761475409836062]
[{"$f":"A202+1","v":194},{"$f":"ROUNDDOWN(A203/480,0)","v":0},{"$f":"MOD(ROUNDDOWN(A203/8,0),60)","v":24},{"$f":"MOD(A203,8)/8","v":0.25},null,3.5184E-2,69.245999999999995,120.62,45.768999999999998,20.846,{"$f":"SUMPRODUCT(--($T$1:$T$9=L203),--($U$1:$U$9=M203),$V$1:$V$9)*SUMPRODUCT(--((G203+H203)>0))","v":7},{"$f":"MATCH(H203,$R$3:$R$6,1)","v":3},{"$f":"MATCH(G203,$N$7:$Q$7,1)","v":1},null,{"$f":"SQRT((G203-G202)^2+(H203-H202)^2+(J203-J202)^2)","v":10.218470580277664},null,null,null,null,null,null,null,null,null,null,null,null,null,null,null,null,null,null,null,null,null,null,null,null,null,null,null,null,null,null,null,null,null,null,null,null,null,null,null,null,null,null,null,null,null,null,null,null,null,null,null,null,null,null,null,null,null,null,null,null,null,null,null,null,null,null,null,null,null,null,null,null,null,null,null,null,null,null,null,null,null,null,null,null,null,null,null,null,null,null,null,null,null,null,null,null,null,null,null,null,null,null,null,null,null,null,null,null,null,null,null,null,null,null,null,null,null,null,null,null,null,null,{"$f":"G203/Q$7","v":0.26943968871595331},{"$f":"(R$6-H203)/R$6","v":9.9850746268656684E-2},{"$f":"(J$3/2-J203)/(J$3/2)","v":0.8291311475409836}]
[195,0,24,0.375,null,3.8342000000000001E-2,69.245999999999995,120.62,44.158000000000001,21.946999999999999,7,3,1,null,1.1009999999999991,null,null,null,null,null,null,null,null,null,null,null,null,null,null,null,null,null,null,null,null,null,null,null,null,null,null,null,null,null,null,null,null,null,null,null,null,null,null,null,null,null,null,null,null,null,null,null,null,null,null,null,null,null,null,null,null,null,null,null,null,null,null,null,null,null,null,null,null,null,null,null,null,null,null,null,null,null,null,null,null,null,null,null,null,null,null,null,null,null,null,null,null,null,null,null,null,null,null,null,null,null,null,null,null,null,null,null,null,null,null,null,null,null,null,null,null,null,null,null,null,null,null,0.26943968871595331,9.9850746268656684E-2,0.82010655737704918]
[196,0,24,0.5,null,3.5979999999999998E-2,64.626000000000005,119.48,38.706000000000003,23.117999999999999,7,3,1,null,4.9005347667371888,null,null,null,null,null,null,null,null,null,null,null,null,null,null,null,null,null,null,null,null,null,null,null,null,null,null,null,null,null,null,null,null,null,null,null,null,null,null,null,null,null,null,null,null,null,null,null,null,null,null,null,null,null,null,null,null,null,null,null,null,null,null,null,null,null,null,null,null,null,null,null,null,null,null,null,null,null,null,null,null,null,null,null,null,null,null,null,null,null,null,null,null,null,null,null,null,null,null,null,null,null,null,null,null,null,null,null,null,null,null,null,null,null,null,null,null,null,null,null,null,null,null,0.25146303501945527,0.10835820895522386,0.81050819672131147]
[197,0,24,0.625,null,4.0410000000000001E-2,57.326000000000001,121.09,37.5,25.167000000000002,7,3,1,null,7.7511612678359407,null,null,null,null,null,null,null,null,null,null,null,null,null,null,null,null,null,null,null,null,null,null,null,null,null,null,null,null,null,null,null,null,null,null,null,null,null,null,null,null,null,null,null,null,null,null,null,null,null,null,null,null,null,null,null,null,null,null,null,null,null,null,null,null,null,null,null,null,null,null,null,null,null,null,null,null,null,null,null,null,null,null,null,null,null,null,null,null,null,null,null,null,null,null,null,null,null,null,null,null,null,null,null,null,null,null,null,null,null,null,null,null,null,null,null,null,null,null,null,null,null,null,0.22305836575875487,9.6343283582089531E-2,0.79371311475409834]
[198,0,24,0.75,null,4.3157000000000001E-2,57.326000000000001,121.09,34.529000000000003,26.353000000000002,7,3,1,null,1.1859999999999999,null,null,null,null,null,null,null,null,null,null,null,null,null,null,null,null,null,null,null,null,null,null,null,null,null,null,null,null,null,null,null,null,null,null,null,null,null,null,null,null,null,null,null,null,null,null,null,null,null,null,null,null,null,null,null,null,null,null,null,null,null,null,null,null,null,null,null,null,null,null,null,null,null,null,null,null,null,null,null,null,null,null,null,null,null,null,null,null,null,null,null,null,null,null,null,null,null,null,null,null,null,null,null,null,null,null,null,null,null,null,null,null,null,null,null,null,null,null,null,null,null,null,0.22305836575875487,9.6343283582089531E-2,0.78399180327868845]
[199,0,24,0.875,null,3.2721E-2,53.670999999999999,121.01,31.928999999999998,27.5,7,3,1,null,3.8315837456592288,null,null,null,null,null,null,null,null,null,null,null,null,null,null,null,null,null,null,null,null,null,null,null,null,null,null,null,null,null,null,null,null,null,null,null,null,null,null,null,null,null,null,null,null,null,null,null,null,null,null,null,null,null,null,null,null,null,null,null,null,null,null,null,null,null,null,null,null,null,null,null,null,null,null,null,null,null,null,null,null,null,null,null,null,null,null,null,null,null,null,null,null,null,null,null,null,null,null,null,null,null,null,null,null,null,null,null,null,null,null,null,null,null,null,null,null,null,null,null,null,null,null,0.20883657587548637,9.6940298507462649E-2,0.77459016393442626]
[200,0,25,0,null,3.5434E-2,44.5,119.24,27.75,25.625,7,3,1,null,9.5265820733356428,null,null,null,null,null,null,null,null,null,null,null,null,null,null,null,null,null,null,null,null,null,null,null,null,null,null,null,null,null,null,null,null,null,null,null,null,null,null,null,null,null,null,null,null,null,null,null,null,null,null,null,null,null,null,null,null,null,null,null,null,null,null,null,null,null,null,null,null,null,null,null,null,null,null,null,null,null,null,null,null,null,null,null,null,null,null,null,null,null,null,null,null,null,null,null,null,null,null,null,null,null,null,null,null,null,null,null,null,null,null,null,null,null,null,null,null,null,null,null,null,null,null,0.17315175097276264,0.11014925373134332,0.78995901639344257]
[201,0,25,0.125,null,4.2501999999999998E-2,40.707999999999998,119.71,24.713999999999999,26.475999999999999,7,3,1,null,3.9146347211457684,null,null,null,null,null,null,null,null,null,null,null,null,null,null,null,null,null,null,null,null,null,null,null,null,null,null,null,null,null,null,null,null,null,null,null,null,null,null,null,null,null,null,null,null,null,null,null,null,null,null,null,null,null,null,null,null,null,null,null,null,null,null,null,null,null,null,null,null,null,null,null,null,null,null,null,null,null,null,null,null,null,null,null,null,null,null,null,null,null,null,null,null,null,null,null,null,null,null,null,null,null,null,null,null,null,null,null,null,null,null,null,null,null,null,null,null,null,null,null,null,null,null,0.15839688715953307,0.10664179104477617,0.78298360655737709]
[202,0,25,0.25,null,3.0969E-2,40.707999999999998,119.71,23.273,26.273,7,3,1,null,0.2029999999999994,null,null,null,null,null,null,null,null,null,null,null,null,null,null,null,null,null,null,null,null,null,null,null,null,null,null,null,null,null,null,null,null,null,null,null,null,null,null,null,null,null,null,null,null,null,null,null,null,null,null,null,null,null,null,null,null,null,null,null,null,null,null,null,null,null,null,null,null,null,null,null,null,null,null,null,null,null,null,null,null,null,null,null,null,null,null,null,null,null,null,null,null,null,null,null,null,null,null,null,null,null,null,null,null,null,null,null,null,null,null,null,null,null,null,null,null,null,null,null,null,null,null,0.15839688715953307,0.10664179104477617,0.78464754098360656]
[203,0,25,0.375,null,3.5478999999999997E-2,38.459000000000003,119.41,19.375,24.625,7,3,1,null,2.8042655009823831,null,null,null,null,null,null,null,null,null,null,null,null,null,null,null,null,null,null,null,null,null,null,null,null,null,null,null,null,null,null,null,null,null,null,null,null,null,null,null,null,null,null,null,null,null,null,null,null,null,null,null,null,null,null,null,null,null,null,null,null,null,null,null,null,null,null,null,null,null,null,null,null,null,null,null,null,null,null,null,null,null,null,null,null,null,null,null,null,null,null,null,null,null,null,null,null,null,null,null,null,null,null,null,null,null,null,null,null,null,null,null,null,null,null,null,null,null,null,null,null,null,null,0.14964591439688718,0.1088805970149254,0.79815573770491799]
[204,0,25,0.5,null,4.1806000000000003E-2,31.413,117.63,17.875,25.312999999999999,7,3,1,null,7.2998534231859784,null,null,null,null,null,null,null,null,null,null,null,null,null,null,null,null,null,null,null,null,null,null,null,null,null,null,null,null,null,null,null,null,null,null,null,null,null,null,null,null,null,null,null,null,null,null,null,null,null,null,null,null,null,null,null,null,null,null,null,null,null,null,null,null,null,null,null,null,null,null,null,null,null,null,null,null,null,null,null,null,null,null,null,null,null,null,null,null,null,null,null,null,null,null,null,null,null,null,null,null,null,null,null,null,null,null,null,null,null,null,null,null,null,null,null,null,null,null,null,null,null,null,0.12222957198443579,0.12216417910447765,0.79251639344262292]
[205,0,25,0.625,null,3.5063999999999998E-2,26.34,114.68,16.2,25.332999999999998,7,3,1,null,5.8684094097123056,null,null,null,null,null,null,null,null,null,null,null,null,null,null,null,null,null,null,null,null,null,null,null,null,null,null,null,null,null,null,null,null,null,null,null,null,null,null,null,null,null,null,null,null,null,null,null,null,null,null,null,null,null,null,null,null,null,null,null,null,null,null,null,null,null,null,null,null,null,null,null,null,null,null,null,null,null,null,null,null,null,null,null,null,null,null,null,null,null,null,null,null,null,null,null,null,null,null,null,null,null,null,null,null,null,null,null,null,null,null,null,null,null,null,null,null,null,null,null,null,null,null,0.10249027237354086,0.1441791044776119,0.79235245901639351]
[206,0,25,0.75,null,4.0481000000000003E-2,26.34,114.68,14.5,21.2,7,3,1,null,4.1329999999999991,null,null,null,null,null,null,null,null,null,null,null,null,null,null,null,null,null,null,null,null,null,null,null,null,null,null,null,null,null,null,null,null,null,null,null,null,null,null,null,null,null,null,null,null,null,null,null,null,null,null,null,null,null,null,null,null,null,null,null,null,null,null,null,null,null,null,null,null,null,null,null,null,null,null,null,null,null,null,null,null,null,null,null,null,null,null,null,null,null,null,null,null,null,null,null,null,null,null,null,null,null,null,null,null,null,null,null,null,null,null,null,null,null,null,null,null,null,null,null,null,null,null,0.10249027237354086,0.1441791044776119,0.82622950819672125]
[207,0,25,0.875,null,3.3543999999999997E-2,24.981999999999999,111.35,12.667,20,7,3,1,null,3.7911824013096602,null,null,null,null,null,null,null,null,null,null,null,null,null,null,null,null,null,null,null,null,null,null,null,null,null,null,null,null,null,null,null,null,null,null,null,null,null,null,null,null,null,null,null,null,null,null,null,null,null,null,null,null,null,null,null,null,null,null,null,null,null,null,null,null,null,null,null,null,null,null,null,null,null,null,null,null,null,null,null,null,null,null,null,null,null,null,null,null,null,null,null,null,null,null,null,null,null,null,null,null,null,null,null,null,null,null,null,null,null,null,null,null,null,null,null,null,null,null,null,null,null,null,9.7206225680933844E-2,0.16902985074626869,0.83606557377049184]
[208,0,26,0,null,4.0869000000000003E-2,21.861999999999998,111.21,13,24,7,3,1,null,5.0748398989524786,null,null,null,null,null,null,null,null,null,null,null,null,null,null,null,null,null,null,null,null,null,null,null,null,null,null,null,null,null,null,null,null,null,null,null,null,null,null,null,null,null,null,null,null,null,null,null,null,null,null,null,null,null,null,null,null,null,null,null,null,null,null,null,null,null,null,null,null,null,null,null,null,null,null,null,null,null,null,null,null,null,null,null,null,null,null,null,null,null,null,null,null,null,null,null,null,null,null,null,null,null,null,null,null,null,null,null,null,null,null,null,null,null,null,null,null,null,null,null,null,null,null,8.506614785992217E-2,0.17007462686567168,0.80327868852459017]
[209,0,26,0.125,null,4.0535000000000002E-2,21.861999999999998,111.21,14.888999999999999,13.667,7,3,1,null,10.333,null,null,null,null,null,null,null,null,null,null,null,null,null,null,null,null,null,null,null,null,null,null,null,null,null,null,null,null,null,null,null,null,null,null,null,null,null,null,null,null,null,null,null,null,null,null,null,null,null,null,null,null,null,null,null,null,null,null,null,null,null,null,null,null,null,null,null,null,null,null,null,null,null,null,null,null,null,null,null,null,null,null,null,null,null,null,null,null,null,null,null,null,null,null,null,null,null,null,null,null,null,null,null,null,null,null,null,null,null,null,null,null,null,null,null,null,null,null,null,null,null,null,8.506614785992217E-2,0.17007462686567168,0.8879754098360656]
[210,0,26,0.25,null,4.1104000000000002E-2,21.861999999999998,111.21,14.125,11.75,7,3,1,null,1.9169999999999998,null,null,null,null,null,null,null,null,null,null,null,null,null,null,null,null,null,null,null,null,null,null,null,null,null,null,null,null,null,null,null,null,null,null,null,null,null,null,null,null,null,null,null,null,null,null,null,null,null,null,null,null,null,null,null,null,null,null,null,null,null,null,null,null,null,null,null,null,null,null,null,null,null,null,null,null,null,null,null,null,null,null,null,null,null,null,null,null,null,null,null,null,null,null,null,null,null,null,null,null,null,null,null,null,null,null,null,null,null,null,null,null,null,null,null,null,null,null,null,null,null,null,8.506614785992217E-2,0.17007462686567168,0.90368852459016391]
[211,0,26,0.375,null,3.6253000000000001E-2,30.902000000000001,108.32,18.632000000000001,9.7368000000000006,7,3,1,null,9.701890240566529,null,null,null,null,null,null,null,null,null,null,null,null,null,null,null,null,null,null,null,null,null,null,null,null,null,null,null,null,null,null,null,null,null,null,null,null,null,null,null,null,null,null,null,null,null,null,null,null,null,null,null,null,null,null,null,null,null,null,null,null,null,null,null,null,null,null,null,null,null,null,null,null,null,null,null,null,null,null,null,null,null,null,null,null,null,null,null,null,null,null,null,null,null,null,null,null,null,null,null,null,null,null,null,null,null,null,null,null,null,null,null,null,null,null,null,null,null,null,null,null,null,null,0.12024124513618678,0.19164179104477616,0.92019016393442621]
[212,0,26,0.5,null,3.8767999999999997E-2,30.902000000000001,108.32,23.062999999999999,6.5,7,3,1,null,3.2368000000000006,null,null,null,null,null,null,null,null,null,null,null,null,null,null,null,null,null,null,null,null,null,null,null,null,null,null,null,null,null,null,null,null,null,null,null,null,null,null,null,null,null,null,null,null,null,null,null,null,null,null,null,null,null,null,null,null,null,null,null,null,null,null,null,null,null,null,null,null,null,null,null,null,null,null,null,null,null,null,null,null,null,null,null,null,null,null,null,null,null,null,null,null,null,null,null,null,null,null,null,null,null,null,null,null,null,null,null,null,null,null,null,null,null,null,null,null,null,null,null,null,null,null,0.12024124513618678,0.19164179104477616,0.94672131147540983]
[213,0,26,0.625,null,4.2625999999999997E-2,37.347000000000001,105.79,28.526,4.4737,7,3,1,null,7.2142093600061221,null,null,null,null,null,null,null,null,null,null,null,null,null,null,null,null,null,null,null,null,null,null,null,null,null,null,null,null,null,null,null,null,null,null,null,null,null,null,null,null,null,null,null,null,null,null,null,null,null,null,null,null,null,null,null,null,null,null,null,null,null,null,null,null,null,null,null,null,null,null,null,null,null,null,null,null,null,null,null,null,null,null,null,null,null,null,null,null,null,null,null,null,null,null,null,null,null,null,null,null,null,null,null,null,null,null,null,null,null,null,null,null,null,null,null,null,null,null,null,null,null,null,0.14531906614785992,0.21052238805970144,0.96333032786885253]
[214,0,26,0.75,null,3.5833999999999998E-2,50.768999999999998,100.29,35.908999999999999,4.6364000000000001,7,3,1,null,14.506086835876859,null,null,null,null,null,null,null,null,null,null,null,null,null,null,null,null,null,null,null,null,null,null,null,null,null,null,null,null,null,null,null,null,null,null,null,null,null,null,null,null,null,null,null,null,null,null,null,null,null,null,null,null,null,null,null,null,null,null,null,null,null,null,null,null,null,null,null,null,null,null,null,null,null,null,null,null,null,null,null,null,null,null,null,null,null,null,null,null,null,null,null,null,null,null,null,null,null,null,null,null,null,null,null,null,null,null,null,null,null,null,null,null,null,null,null,null,null,null,null,null,null,null,0.19754474708171205,0.25156716417910441,0.9619967213114754]
[215,0,26,0.875,null,3.9581999999999999E-2,63.344000000000001,95.781000000000006,41.667000000000002,4.8518999999999997,7,3,1,null,13.360694078153278,null,null,null,null,null,null,null,null,null,null,null,null,null,null,null,null,null,null,null,null,null,null,null,null,null,null,null,null,null,null,null,null,null,null,null,null,null,null,null,null,null,null,null,null,null,null,null,null,null,null,null,null,null,null,null,null,null,null,null,null,null,null,null,null,null,null,null,null,null,null,null,null,null,null,null,null,null,null,null,null,null,null,null,null,null,null,null,null,null,null,null,null,null,null,null,null,null,null,null,null,null,null,null,null,null,null,null,null,null,null,null,null,null,null,null,null,null,null,null,null,null,null,0.24647470817120623,0.28521641791044772,0.96023032786885243]
[216,0,27,0,null,3.8901999999999999E-2,63.344000000000001,95.781000000000006,48.154000000000003,5.9230999999999998,7,3,1,null,1.0712000000000002,null,null,null,null,null,null,null,null,null,null,null,null,null,null,null,null,null,null,null,null,null,null,null,null,null,null,null,null,null,null,null,null,null,null,null,null,null,null,null,null,null,null,null,null,null,null,null,null,null,null,null,null,null,null,null,null,null,null,null,null,null,null,null,null,null,null,null,null,null,null,null,null,null,null,null,null,null,null,null,null,null,null,null,null,null,null,null,null,null,null,null,null,null,null,null,null,null,null,null,null,null,null,null,null,null,null,null,null,null,null,null,null,null,null,null,null,null,null,null,null,null,null,0.24647470817120623,0.28521641791044772,0.95144999999999991]
[217,0,27,0.125,null,4.3434E-2,71.792000000000002,92.534999999999997,55.813000000000002,4.875,7,3,1,null,9.1106384853093623,null,null,null,null,null,null,null,null,null,null,null,null,null,null,null,null,null,null,null,null,null,null,null,null,null,null,null,null,null,null,null,null,null,null,null,null,null,null,null,null,null,null,null,null,null,null,null,null,null,null,null,null,null,null,null,null,null,null,null,null,null,null,null,null,null,null,null,null,null,null,null,null,null,null,null,null,null,null,null,null,null,null,null,null,null,null,null,null,null,null,null,null,null,null,null,null,null,null,null,null,null,null,null,null,null,null,null,null,null,null,null,null,null,null,null,null,null,null,null,null,null,null,0.27934630350194556,0.30944029850746269,0.96004098360655743]
[218,0,27,0.25,null,4.0420999999999999E-2,92.27,85.905000000000001,65.332999999999998,6.5833000000000004,5,2,2,null,21.592213246677602,null,null,null,null,null,null,null,null,null,null,null,null,null,null,null,null,null,null,null,null,null,null,null,null,null,null,null,null,null,null,null,null,null,null,null,null,null,null,null,null,null,null,null,null,null,null,null,null,null,null,null,null,null,null,null,null,null,null,null,null,null,null,null,null,null,null,null,null,null,null,null,null,null,null,null,null,null,null,null,null,null,null,null,null,null,null,null,null,null,null,null,null,null,null,null,null,null,null,null,null,null,null,null,null,null,null,null,null,null,null,null,null,null,null,null,null,null,null,null,null,null,null,0.35902723735408559,0.35891791044776117,0.94603852459016402]
[219,0,27,0.375,null,4.0419999999999998E-2,92.27,85.905000000000001,76.765000000000001,6.5293999999999999,5,2,2,null,5.3900000000000503E-2,null,null,null,null,null,null,null,null,null,null,null,null,null,null,null,null,null,null,null,null,null,null,null,null,null,null,null,null,null,null,null,null,null,null,null,null,null,null,null,null,null,null,null,null,null,null,null,null,null,null,null,null,null,null,null,null,null,null,null,null,null,null,null,null,null,null,null,null,null,null,null,null,null,null,null,null,null,null,null,null,null,null,null,null,null,null,null,null,null,null,null,null,null,null,null,null,null,null,null,null,null,null,null,null,null,null,null,null,null,null,null,null,null,null,null,null,null,null,null,null,null,null,0.35902723735408559,0.35891791044776117,0.9464803278688525]
[220,0,27,0.5,null,3.5971999999999997E-2,108.85,81.835999999999999,84.070999999999998,6.5713999999999997,5,2,2,null,17.072050989848876,null,null,null,null,null,null,null,null,null,null,null,null,null,null,null,null,null,null,null,null,null,null,null,null,null,null,null,null,null,null,null,null,null,null,null,null,null,null,null,null,null,null,null,null,null,null,null,null,null,null,null,null,null,null,null,null,null,null,null,null,null,null,null,null,null,null,null,null,null,null,null,null,null,null,null,null,null,null,null,null,null,null,null,null,null,null,null,null,null,null,null,null,null,null,null,null,null,null,null,null,null,null,null,null,null,null,null,null,null,null,null,null,null,null,null,null,null,null,null,null,null,null,0.4235408560311284,0.38928358208955227,0.9461360655737705]
[221,0,27,0.625,null,4.0707E-2,121.6,79.376999999999995,90.037999999999997,4.8845999999999998,5,2,2,null,13.094062594932101,null,null,null,null,null,null,null,null,null,null,null,null,null,null,null,null,null,null,null,null,null,null,null,null,null,null,null,null,null,null,null,null,null,null,null,null,null,null,null,null,null,null,null,null,null,null,null,null,null,null,null,null,null,null,null,null,null,null,null,null,null,null,null,null,null,null,null,null,null,null,null,null,null,null,null,null,null,null,null,null,null,null,null,null,null,null,null,null,null,null,null,null,null,null,null,null,null,null,null,null,null,null,null,null,null,null,null,null,null,null,null,null,null,null,null,null,null,null,null,null,null,null,0.47315175097276263,0.40763432835820901,0.95996229508196718]
[222,0,27,0.75,null,4.1098999999999997E-2,121.6,79.376999999999995,90.037999999999997,4.8845999999999998,5,2,2,null,0,null,null,null,null,null,null,null,null,null,null,null,null,null,null,null,null,null,null,null,null,null,null,null,null,null,null,null,null,null,null,null,null,null,null,null,null,null,null,null,null,null,null,null,null,null,null,null,null,null,null,null,null,null,null,null,null,null,null,null,null,null,null,null,null,null,null,null,null,null,null,null,null,null,null,null,null,null,null,null,null,null,null,null,null,null,null,null,null,null,null,null,null,null,null,null,null,null,null,null,null,null,null,null,null,null,null,null,null,null,null,null,null,null,null,null,null,null,null,null,null,null,null,0.47315175097276263,0.40763432835820901,0.95996229508196718]
[223,0,27,0.875,null,4.2366000000000001E-2,136.62,73.025999999999996,99.256,4.8461999999999996,5,2,2,null,16.307577243723248,null,null,null,null,null,null,null,null,null,null,null,null,null,null,null,null,null,null,null,null,null,null,null,null,null,null,null,null,null,null,null,null,null,null,null,null,null,null,null,null,null,null,null,null,null,null,null,null,null,null,null,null,null,null,null,null,null,null,null,null,null,null,null,null,null,null,null,null,null,null,null,null,null,null,null,null,null,null,null,null,null,null,null,null,null,null,null,null,null,null,null,null,null,null,null,null,null,null,null,null,null,null,null,null,null,null,null,null,null,null,null,null,null,null,null,null,null,null,null,null,null,null,0.53159533073929965,0.45502985074626867,0.96027704918032786]
[224,0,28,0,null,3.3230999999999997E-2,156.37,63.889000000000003,109.24,4.8377999999999997,5,2,2,null,21.761142882670473,null,null,null,null,null,null,null,null,null,null,null,null,null,null,null,null,null,null,null,null,null,null,null,null,null,null,null,null,null,null,null,null,null,null,null,null,null,null,null,null,null,null,null,null,null,null,null,null,null,null,null,null,null,null,null,null,null,null,null,null,null,null,null,null,null,null,null,null,null,null,null,null,null,null,null,null,null,null,null,null,null,null,null,null,null,null,null,null,null,null,null,null,null,null,null,null,null,null,null,null,null,null,null,null,null,null,null,null,null,null,null,null,null,null,null,null,null,null,null,null,null,null,0.60844357976653696,0.52321641791044771,0.9603459016393443]
[225,0,28,0.125,null,4.3288E-2,156.37,63.889000000000003,116.77,5.3182,5,2,2,null,0.48040000000000038,null,null,null,null,null,null,null,null,null,null,null,null,null,null,null,null,null,null,null,null,null,null,null,null,null,null,null,null,null,null,null,null,null,null,null,null,null,null,null,null,null,null,null,null,null,null,null,null,null,null,null,null,null,null,null,null,null,null,null,null,null,null,null,null,null,null,null,null,null,null,null,null,null,null,null,null,null,null,null,null,null,null,null,null,null,null,null,null,null,null,null,null,null,null,null,null,null,null,null,null,null,null,null,null,null,null,null,null,null,null,null,null,null,null,null,null,null,null,null,null,null,null,0.60844357976653696,0.52321641791044771,0.95640819672131139]
[226,0,28,0.25,null,3.8192999999999998E-2,165.87,58.783999999999999,124.6,6.7332999999999998,5,2,2,null,10.87720244410299,null,null,null,null,null,null,null,null,null,null,null,null,null,null,null,null,null,null,null,null,null,null,null,null,null,null,null,null,null,null,null,null,null,null,null,null,null,null,null,null,null,null,null,null,null,null,null,null,null,null,null,null,null,null,null,null,null,null,null,null,null,null,null,null,null,null,null,null,null,null,null,null,null,null,null,null,null,null,null,null,null,null,null,null,null,null,null,null,null,null,null,null,null,null,null,null,null,null,null,null,null,null,null,null,null,null,null,null,null,null,null,null,null,null,null,null,null,null,null,null,null,null,0.64540856031128402,0.56131343283582091,0.94480901639344261]
[227,0,28,0.375,null,4.0460000000000003E-2,184.67,47.238,132.55000000000001,6.9090999999999996,6,2,3,null,22.063114504529938,null,null,null,null,null,null,null,null,null,null,null,null,null,null,null,null,null,null,null,null,null,null,null,null,null,null,null,null,null,null,null,null,null,null,null,null,null,null,null,null,null,null,null,null,null,null,null,null,null,null,null,null,null,null,null,null,null,null,null,null,null,null,null,null,null,null,null,null,null,null,null,null,null,null,null,null,null,null,null,null,null,null,null,null,null,null,null,null,null,null,null,null,null,null,null,null,null,null,null,null,null,null,null,null,null,null,null,null,null,null,null,null,null,null,null,null,null,null,null,null,null,null,0.71856031128404663,0.64747761194029851,0.9433680327868853]
[228,0,28,0.5,null,3.5451000000000003E-2,197.53,38.173000000000002,140.66999999999999,6.1666999999999996,3,1,3,null,15.751348601310312,null,null,null,null,null,null,null,null,null,null,null,null,null,null,null,null,null,null,null,null,null,null,null,null,null,null,null,null,null,null,null,null,null,null,null,null,null,null,null,null,null,null,null,null,null,null,null,null,null,null,null,null,null,null,null,null,null,null,null,null,null,null,null,null,null,null,null,null,null,null,null,null,null,null,null,null,null,null,null,null,null,null,null,null,null,null,null,null,null,null,null,null,null,null,null,null,null,null,null,null,null,null,null,null,null,null,null,null,null,null,null,null,null,null,null,null,null,null,null,null,null,null,0.76859922178988327,0.71512686567164174,0.94945327868852458]
[229,0,28,0.625,null,2.4062E-2,197.53,38.173000000000002,146.25,8.75,3,1,3,null,2.5833000000000004,null,null,null,null,null,null,null,null,null,null,null,null,null,null,null,null,null,null,null,null,null,null,null,null,null,null,null,null,null,null,null,null,null,null,null,null,null,null,null,null,null,null,null,null,null,null,null,null,null,null,null,null,null,null,null,null,null,null,null,null,null,null,null,null,null,null,null,null,null,null,null,null,null,null,null,null,null,null,null,null,null,null,null,null,null,null,null,null,null,null,null,null,null,null,null,null,null,null,null,null,null,null,null,null,null,null,null,null,null,null,null,null,null,null,null,null,null,null,null,null,null,null,0.76859922178988327,0.71512686567164174,0.92827868852459017]
[230,0,28,0.75,null,3.3148999999999998E-2,204.05,32.19,151.35,10.87,3,1,3,null,9.0995103714430794,null,null,null,null,null,null,null,null,null,null,null,null,null,null,null,null,null,null,null,null,null,null,null,null,null,null,null,null,null,null,null,null,null,null,null,null,null,null,null,null,null,null,null,null,null,null,null,null,null,null,null,null,null,null,null,null,null,null,null,null,null,null,null,null,null,null,null,null,null,null,null,null,null,null,null,null,null,null,null,null,null,null,null,null,null,null,null,null,null,null,null,null,null,null,null,null,null,null,null,null,null,null,null,null,null,null,null,null,null,null,null,null,null,null,null,null,null,null,null,null,null,null,0.79396887159533081,0.75977611940298506,0.91090163934426227]
[231,0,28,0.875,null,3.5243999999999998E-2,214.89,24.030999999999999,156.56,13.833,3,1,3,null,13.887197341436444,null,null,null,null,null,null,null,null,null,null,null,null,null,null,null,null,null,null,null,null,null,null,null,null,null,null,null,null,null,null,null,null,null,null,null,null,null,null,null,null,null,null,null,null,null,null,null,null,null,null,null,null,null,null,null,null,null,null,null,null,null,null,null,null,null,null,null,null,null,null,null,null,null,null,null,null,null,null,null,null,null,null,null,null,null,null,null,null,null,null,null,null,null,null,null,null,null,null,null,null,null,null,null,null,null,null,null,null,null,null,null,null,null,null,null,null,null,null,null,null,null,null,0.83614785992217888,0.82066417910447753,0.88661475409836066]
[232,0,29,0,null,3.5499000000000003E-2,214.89,24.030999999999999,160.85,16.692,3,1,3,null,2.859,null,null,null,null,null,null,null,null,null,null,null,null,null,null,null,null,null,null,null,null,null,null,null,null,null,null,null,null,null,null,null,null,null,null,null,null,null,null,null,null,null,null,null,null,null,null,null,null,null,null,null,null,null,null,null,null,null,null,null,null,null,null,null,null,null,null,null,null,null,null,null,null,null,null,null,null,null,null,null,null,null,null,null,null,null,null,null,null,null,null,null,null,null,null,null,null,null,null,null,null,null,null,null,null,null,null,null,null,null,null,null,null,null,null,null,null,null,null,null,null,null,null,0.83614785992217888,0.82066417910447753,0.86318032786885235]
[233,0,29,0.125,null,4.0524999999999999E-2,219.87,20.521999999999998,162.82,17.765000000000001,3,1,3,null,6.1858556400873264,null,null,null,null,null,null,null,null,null,null,null,null,null,null,null,null,null,null,null,null,null,null,null,null,null,null,null,null,null,null,null,null,null,null,null,null,null,null,null,null,null,null,null,null,null,null,null,null,null,null,null,null,null,null,null,null,null,null,null,null,null,null,null,null,null,null,null,null,null,null,null,null,null,null,null,null,null,null,null,null,null,null,null,null,null,null,null,null,null,null,null,null,null,null,null,null,null,null,null,null,null,null,null,null,null,null,null,null,null,null,null,null,null,null,null,null,null,null,null,null,null,null,0.85552529182879378,0.84685074626865675,0.85438524590163933]
[234,0,29,0.25,null,3.4319000000000002E-2,222.95,15.018000000000001,162.94999999999999,23.632000000000001,3,1,3,null,8.6140643717121055,null,null,null,null,null,null,null,null,null,null,null,null,null,null,null,null,null,null,null,null,null,null,null,null,null,null,null,null,null,null,null,null,null,null,null,null,null,null,null,null,null,null,null,null,null,null,null,null,null,null,null,null,null,null,null,null,null,null,null,null,null,null,null,null,null,null,null,null,null,null,null,null,null,null,null,null,null,null,null,null,null,null,null,null,null,null,null,null,null,null,null,null,null,null,null,null,null,null,null,null,null,null,null,null,null,null,null,null,null,null,null,null,null,null,null,null,null,null,null,null,null,null,0.86750972762645906,0.8879253731343284,0.80629508196721311]
[235,0,29,0.375,null,4.0378999999999998E-2,222.95,15.018000000000001,164.44,28.64,3,1,3,null,5.0079999999999991,null,null,null,null,null,null,null,null,null,null,null,null,null,null,null,null,null,null,null,null,null,null,null,null,null,null,null,null,null,null,null,null,null,null,null,null,null,null,null,null,null,null,null,null,null,null,null,null,null,null,null,null,null,null,null,null,null,null,null,null,null,null,null,null,null,null,null,null,null,null,null,null,null,null,null,null,null,null,null,null,null,null,null,null,null,null,null,null,null,null,null,null,null,null,null,null,null,null,null,null,null,null,null,null,null,null,null,null,null,null,null,null,null,null,null,null,null,null,null,null,null,null,0.86750972762645906,0.8879253731343284,0.76524590163934425]
[236,0,29,0.5,null,4.1745999999999998E-2,224.8,11.426,164.94,33.722000000000001,3,1,3,null,6.4924331340415122,null,null,null,null,null,null,null,null,null,null,null,null,null,null,null,null,null,null,null,null,null,null,null,null,null,null,null,null,null,null,null,null,null,null,null,null,null,null,null,null,null,null,null,null,null,null,null,null,null,null,null,null,null,null,null,null,null,null,null,null,null,null,null,null,null,null,null,null,null,null,null,null,null,null,null,null,null,null,null,null,null,null,null,null,null,null,null,null,null,null,null,null,null,null,null,null,null,null,null,null,null,null,null,null,null,null,null,null,null,null,null,null,null,null,null,null,null,null,null,null,null,null,0.87470817120622568,0.91473134328358208,0.72359016393442621]
[237,0,29,0.625,null,3.5014999999999998E-2,227.28,10.069000000000001,165.12,37.058999999999997,3,1,3,null,4.3734903681155997,null,null,null,null,null,null,null,null,null,null,null,null,null,null,null,null,null,null,null,null,null,null,null,null,null,null,null,null,null,null,null,null,null,null,null,null,null,null,null,null,null,null,null,null,null,null,null,null,null,null,null,null,null,null,null,null,null,null,null,null,null,null,null,null,null,null,null,null,null,null,null,null,null,null,null,null,null,null,null,null,null,null,null,null,null,null,null,null,null,null,null,null,null,null,null,null,null,null,null,null,null,null,null,null,null,null,null,null,null,null,null,null,null,null,null,null,null,null,null,null,null,null,0.88435797665369653,0.92485820895522386,0.69623770491803283]
[238,0,29,0.75,null,3.9884000000000003E-2,220.53,9.5510000000000002,160.85,41,3,1,3,null,7.8334095386364178,null,null,null,null,null,null,null,null,null,null,null,null,null,null,null,null,null,null,null,null,null,null,null,null,null,null,null,null,null,null,null,null,null,null,null,null,null,null,null,null,null,null,null,null,null,null,null,null,null,null,null,null,null,null,null,null,null,null,null,null,null,null,null,null,null,null,null,null,null,null,null,null,null,null,null,null,null,null,null,null,null,null,null,null,null,null,null,null,null,null,null,null,null,null,null,null,null,null,null,null,null,null,null,null,null,null,null,null,null,null,null,null,null,null,null,null,null,null,null,null,null,null,0.8580933852140078,0.92872388059701494,0.66393442622950816]
[239,0,29,0.875,null,4.2664000000000001E-2,220.53,9.5510000000000002,158.78,44.826000000000001,3,1,3,null,3.8260000000000005,null,null,null,null,null,null,null,null,null,null,null,null,null,null,null,null,null,null,null,null,null,null,null,null,null,null,null,null,null,null,null,null,null,null,null,null,null,null,null,null,null,null,null,null,null,null,null,null,null,null,null,null,null,null,null,null,null,null,null,null,null,null,null,null,null,null,null,null,null,null,null,null,null,null,null,null,null,null,null,null,null,null,null,null,null,null,null,null,null,null,null,null,null,null,null,null,null,null,null,null,null,null,null,null,null,null,null,null,null,null,null,null,null,null,null,null,null,null,null,null,null,null,0.8580933852140078,0.92872388059701494,0.6325737704918033]
[240,0,30,0,null,3.1960000000000002E-2,217.01,8.5571000000000002,154.06,48.5,3,1,3,null,5.1842562832097787,null,null,null,null,null,null,null,null,null,null,null,null,null,null,null,null,null,null,null,null,null,null,null,null,null,null,null,null,null,null,null,null,null,null,null,null,null,null,null,null,null,null,null,null,null,null,null,null,null,null,null,null,null,null,null,null,null,null,null,null,null,null,null,null,null,null,null,null,null,null,null,null,null,null,null,null,null,null,null,null,null,null,null,null,null,null,null,null,null,null,null,null,null,null,null,null,null,null,null,null,null,null,null,null,null,null,null,null,null,null,null,null,null,null,null,null,null,null,null,null,null,null,0.84439688715953309,0.93614104477611937,0.60245901639344257]
[241,0,30,0.125,null,3.9794000000000003E-2,208.17,7.7916999999999996,150.13999999999999,51.429000000000002,3,1,3,null,9.3440076070174563,null,null,null,null,null,null,null,null,null,null,null,null,null,null,null,null,null,null,null,null,null,null,null,null,null,null,null,null,null,null,null,null,null,null,null,null,null,null,null,null,null,null,null,null,null,null,null,null,null,null,null,null,null,null,null,null,null,null,null,null,null,null,null,null,null,null,null,null,null,null,null,null,null,null,null,null,null,null,null,null,null,null,null,null,null,null,null,null,null,null,null,null,null,null,null,null,null,null,null,null,null,null,null,null,null,null,null,null,null,null,null,null,null,null,null,null,null,null,null,null,null,null,0.80999999999999994,0.94185298507462678,0.57845081967213108]
[270,0,33,0.75,null,3.3258000000000003E-2,60.688000000000002,32.030999999999999,37.700000000000003,18.3,1,1,1,null,7.3670004750916132,null,null,null,null,null,null,null,null,null,null,null,null,null,null,null,null,null,null,null,null,null,null,null,null,null,null,null,null,null,null,null,null,null,null,null,null,null,null,null,null,null,null,null,null,null,null,null,null,null,null,null,null,null,null,null,null,null,null,null,null,null,null,null,null,null,null,null,null,null,null,null,null,null,null,null,null,null,null,null,null,null,null,null,null,null,null,null,null,null,null,null,null,null,null,null,null,null,null,null,null,null,null,null,null,null,null,null,null,null,null,null,null,null,null,null,null,null,null,null,null,null,null,0.23614007782101168,0.76096268656716415,0.85]
[413,0,51,0.625,null,4.1576000000000002E-2,23.535,100.42,15.071,63.356999999999999,7,3,1,null,6.273212972632126,null,null,null,null,null,null,null,null,null,null,null,null,null,null,null,null,null,null,null,null,null,null,null,null,null,null,null,null,null,null,null,null,null,null,null,null,null,null,null,null,null,null,null,null,null,null,null,null,null,null,null,null,null,null,null,null,null,null,null,null,null,null,null,null,null,null,null,null,null,null,null,null,null,null,null,null,null,null,null,null,null,null,null,null,null,null,null,null,null,null,null,null,null,null,null,null,null,null,null,null,null,null,null,null,null,null,null,null,null,null,null,null,null,null,null,null,null,null,null,null,null,null,9.1575875486381325E-2,0.25059701492537312,0.48068032786885245]
[470,0,58,0.75,null,3.6472999999999998E-2,210.41,76.055999999999997,147.66999999999999,104.17,6,2,3,null,12.492399929557159,null,null,null,null,null,null,null,null,null,null,null,null,null,null,null,null,null,null,null,null,null,null,null,null,null,null,null,null,null,null,null,null,null,null,null,null,null,null,null,null,null,null,null,null,null,null,null,null,null,null,null,null,null,null,null,null,null,null,null,null,null,null,null,null,null,null,null,null,null,null,null,null,null,null,null,null,null,null,null,null,null,null,null,null,null,null,null,null,null,null,null,null,null,null,null,null,null,null,null,null,null,null,null,null,null,null,null,null,null,null,null,null,null,null,null,null,null,null,null,null,null,null,0.818715953307393,0.43241791044776123,0.14614754098360655]
[609,1,16,0.125,null,3.3328000000000003E-2,196.57,120.46,139.13999999999999,16.238,9,3,3,null,4.6700531046231042,null,null,null,null,null,null,null,null,null,null,null,null,null,null,null,null,null,null,null,null,null,null,null,null,null,null,null,null,null,null,null,null,null,null,null,null,null,null,null,null,null,null,null,null,null,null,null,null,null,null,null,null,null,null,null,null,null,null,null,null,null,null,null,null,null,null,null,null,null,null,null,null,null,null,null,null,null,null,null,null,null,null,null,null,null,null,null,null,null,null,null,null,null,null,null,null,null,null,null,null,null,null,null,null,null,null,null,null,null,null,null,null,null,null,null,null,null,null,null,null,null,null,0.76486381322957198,0.10104477611940303,0.86690163934426234]
[780,1,37,0.5,null,3.5873000000000002E-2,106.88,113.17,81.417000000000002,110.08,8,3,2,null,7.1975627124742605,null,null,null,null,null,null,null,null,null,null,null,null,null,null,null,null,null,null,null,null,null,null,null,null,null,null,null,null,null,null,null,null,null,null,null,null,null,null,null,null,null,null,null,null,null,null,null,null,null,null,null,null,null,null,null,null,null,null,null,null,null,null,null,null,null,null,null,null,null,null,null,null,null,null,null,null,null,null,null,null,null,null,null,null,null,null,null,null,null,null,null,null,null,null,null,null,null,null,null,null,null,null,null,null,null,null,null,null,null,null,null,null,null,null,null,null,null,null,null,null,null,null,0.41587548638132293,0.15544776119402984,9.77049180327869E-2]
[837,1,44,0.625,null,3.2666000000000001E-2,96.78,55.36,58.125,21.125,5,2,2,null,19.930479622929301,null,null,null,null,null,null,null,null,null,null,null,null,null,null,null,null,null,null,null,null,null,null,null,null,null,null,null,null,null,null,null,null,null,null,null,null,null,null,null,null,null,null,null,null,null,null,null,null,null,null,null,null,null,null,null,null,null,null,null,null,null,null,null,null,null,null,null,null,null,null,null,null,null,null,null,null,null,null,null,null,null,null,null,null,null,null,null,null,null,null,null,null,null,null,null,null,null,null,null,null,null,null,null,null,null,null,null,null,null,null,null,null,null,null,null,null,null,null,null,null,null,null,0.37657587548638133,0.58686567164179104,0.82684426229508201]
[976,2,2,0,null,3.9045000000000003E-2,14.895,113.63,12,72.332999999999998,7,3,1,null,5.546999999999997,null,null,null,null,null,null,null,null,null,null,null,null,null,null,null,null,null,null,null,null,null,null,null,null,null,null,null,null,null,null,null,null,null,null,null,null,null,null,null,null,null,null,null,null,null,null,null,null,null,null,null,null,null,null,null,null,null,null,null,null,null,null,null,null,null,null,null,null,null,null,null,null,null,null,null,null,null,null,null,null,null,null,null,null,null,null,null,null,null,null,null,null,null,null,null,null,null,null,null,null,null,null,null,null,null,null,null,null,null,null,null,null,null,null,null,null,null,null,null,null,null,null,5.7957198443579765E-2,0.15201492537313435,0.40710655737704921]
[1147,2,23,0.375,null,2.1928E-2,228.24,93.662000000000006,165.36,56.643000000000001,9,3,3,null,4.6370000000000005,null,null,null,null,null,null,null,null,null,null,null,null,null,null,null,null,null,null,null,null,null,null,null,null,null,null,null,null,null,null,null,null,null,null,null,null,null,null,null,null,null,null,null,null,null,null,null,null,null,null,null,null,null,null,null,null,null,null,null,null,null,null,null,null,null,null,null,null,null,null,null,null,null,null,null,null,null,null,null,null,null,null,null,null,null,null,null,null,null,null,null,null,null,null,null,null,null,null,null,null,null,null,null,null,null,null,null,null,null,null,null,null,null,null,null,null,null,null,null,null,null,null,0.88809338521400782,0.30102985074626859,0.53571311475409833]
[1172,2,26,0.5,null,3.7051000000000001E-2,45.235999999999997,78.981999999999999,23.832999999999998,48,4,2,1,null,4.8000000000001819E-2,null,null,null,null,null,null,null,null,null,null,null,null,null,null,null,null,null,null,null,null,null,null,null,null,null,null,null,null,null,null,null,null,null,null,null,null,null,null,null,null,null,null,null,null,null,null,null,null,null,null,null,null,null,null,null,null,null,null,null,null,null,null,null,null,null,null,null,null,null,null,null,null,null,null,null,null,null,null,null,null,null,null,null,null,null,null,null,null,null,null,null,null,null,null,null,null,null,null,null,null,null,null,null,null,null,null,null,null,null,null,null,null,null,null,null,null,null,null,null,null,null,null,0.17601556420233461,0.41058208955223879,0.60655737704918034]
[1343,2,47,0.875,null,3.5233E-2,170.63,119.6,117.32,18.963999999999999,8,3,2,null,9.8149133465354677,null,null,null,null,null,null,null,null,null,null,null,null,null,null,null,null,null,null,null,null,null,null,null,null,null,null,null,null,null,null,null,null,null,null,null,null,null,null,null,null,null,null,null,null,null,null,null,null,null,null,null,null,null,null,null,null,null,null,null,null,null,null,null,null,null,null,null,null,null,null,null,null,null,null,null,null,null,null,null,null,null,null,null,null,null,null,null,null,null,null,null,null,null,null,null,null,null,null,null,null,null,null,null,null,null,null,null,null,null,null,null,null,null,null,null,null,null,null,null,null,null,null,0.66392996108949409,0.10746268656716422,0.84455737704918032]
[1400,2,55,0,null,3.3517999999999999E-2,182.13,118.48,132.28,37.610999999999997,9,3,3,null,2.6750000000000043,null,null,null,null,null,null,null,null,null,null,null,null,null,null,null,null,null,null,null,null,null,null,null,null,null,null,null,null,null,null,null,null,null,null,null,null,null,null,null,null,null,null,null,null,null,null,null,null,null,null,null,null,null,null,null,null,null,null,null,null,null,null,null,null,null,null,null,null,null,null,null,null,null,null,null,null,null,null,null,null,null,null,null,null,null,null,null,null,null,null,null,null,null,null,null,null,null,null,null,null,null,null,null,null,null,null,null,null,null,null,null,null,null,null,null,null,null,null,null,null,null,null,0.70867704280155641,0.11582089552238803,0.69171311475409847]
[1539,3,12,0.375,null,2.5839999999999998E-2,212.05,62.795000000000002,143.5,110.45,6,2,3,null,2.5249493064218127,null,null,null,null,null,null,null,null,null,null,null,null,null,null,null,null,null,null,null,null,null,null,null,null,null,null,null,null,null,null,null,null,null,null,null,null,null,null,null,null,null,null,null,null,null,null,null,null,null,null,null,null,null,null,null,null,null,null,null,null,null,null,null,null,null,null,null,null,null,null,null,null,null,null,null,null,null,null,null,null,null,null,null,null,null,null,null,null,null,null,null,null,null,null,null,null,null,null,null,null,null,null,null,null,null,null,null,null,null,null,null,null,null,null,null,null,null,null,null,null,null,null,0.82509727626459151,0.53138059701492535,9.4672131147540958E-2]
[1710,3,33,0.75,null,3.5546000000000001E-2,229.37,98.63,163.5,36.5,9,3,3,null,2.6670000000000016,null,null,null,null,null,null,null,null,null,null,null,null,null,null,null,null,null,null,null,null,null,null,null,null,null,null,null,null,null,null,null,null,null,null,null,null,null,null,null,null,null,null,null,null,null,null,null,null,null,null,null,null,null,null,null,null,null,null,null,null,null,null,null,null,null,null,null,null,null,null,null,null,null,null,null,null,null,null,null,null,null,null,null,null,null,null,null,null,null,null,null,null,null,null,null,null,null,null,null,null,null,null,null,null,null,null,null,null,null,null,null,null,null,null,null,null,null,null,null,null,null,null,0.89249027237354084,0.26395522388059706,0.70081967213114749]
[1767,3,40,0.875,null,3.7162000000000001E-2,243.27,84,170.06,79.352999999999994,6,2,3,null,2.1529999999999916,null,null,null,null,null,null,null,null,null,null,null,null,null,null,null,null,null,null,null,null,null,null,null,null,null,null,null,null,null,null,null,null,null,null,null,null,null,null,null,null,null,null,null,null,null,null,null,null,null,null,null,null,null,null,null,null,null,null,null,null,null,null,null,null,null,null,null,null,null,null,null,null,null,null,null,null,null,null,null,null,null,null,null,null,null,null,null,null,null,null,null,null,null,null,null,null,null,null,null,null,null,null,null,null,null,null,null,null,null,null,null,null,null,null,null,null,null,null,null,null,null,null,0.94657587548638134,0.37313432835820898,0.34956557377049186]
[1906,3,58,0.25,null,2.9835E-2,231.28,118.45,159.24,36.31,9,3,3,null,7.0813911062728367,null,null,null,null,null,null,null,null,null,null,null,null,null,null,null,null,null,null,null,null,null,null,null,null,null,null,null,null,null,null,null,null,null,null,null,null,null,null,null,null,null,null,null,null,null,null,null,null,null,null,null,null,null,null,null,null,null,null,null,null,null,null,null,null,null,null,null,null,null,null,null,null,null,null,null,null,null,null,null,null,null,null,null,null,null,null,null,null,null,null,null,null,null,null,null,null,null,null,null,null,null,null,null,null,null,null,null,null,null,null,null,null,null,null,null,null,null,null,null,null,null,null,0.89992217898832683,0.11604477611940296,0.70237704918032784]
[1963,4,5,0.375,null,3.8251E-2,18.581,107.68,6.6666999999999996,47.167000000000002,7,3,1,null,4.9170000000000016,null,null,null,null,null,null,null,null,null,null,null,null,null,null,null,null,null,null,null,null,null,null,null,null,null,null,null,null,null,null,null,null,null,null,null,null,null,null,null,null,null,null,null,null,null,null,null,null,null,null,null,null,null,null,null,null,null,null,null,null,null,null,null,null,null,null,null,null,null,null,null,null,null,null,null,null,null,null,null,null,null,null,null,null,null,null,null,null,null,null,null,null,null,null,null,null,null,null,null,null,null,null,null,null,null,null,null,null,null,null,null,null,null,null,null,null,null,null,null,null,null,null,7.2299610894941635E-2,0.19641791044776113,0.61338524590163934]
[2102,4,22,0.75,null,2.2127999999999998E-2,126.89,121.1,80.733000000000004,19.533000000000001,8,3,2,null,0.79999999999999716,null,null,null,null,null,null,null,null,null,null,null,null,null,null,null,null,null,null,null,null,null,null,null,null,null,null,null,null,null,null,null,null,null,null,null,null,null,null,null,null,null,null,null,null,null,null,null,null,null,null,null,null,null,null,null,null,null,null,null,null,null,null,null,null,null,null,null,null,null,null,null,null,null,null,null,null,null,null,null,null,null,null,null,null,null,null,null,null,null,null,null,null,null,null,null,null,null,null,null,null,null,null,null,null,null,null,null,null,null,null,null,null,null,null,null,null,null,null,null,null,null,null,0.49373540856031128,9.6268656716417947E-2,0.83989344262295085]
[2273,4,44,0.125,null,3.4058999999999999E-2,153.13,118.42,109.05,104.19,8,3,2,null,6.0003083254112699,null,null,null,null,null,null,null,null,null,null,null,null,null,null,null,null,null,null,null,null,null,null,null,null,null,null,null,null,null,null,null,null,null,null,null,null,null,null,null,null,null,null,null,null,null,null,null,null,null,null,null,null,null,null,null,null,null,null,null,null,null,null,null,null,null,null,null,null,null,null,null,null,null,null,null,null,null,null,null,null,null,null,null,null,null,null,null,null,null,null,null,null,null,null,null,null,null,null,null,null,null,null,null,null,null,null,null,null,null,null,null,null,null,null,null,null,null,null,null,null,null,null,0.59583657587548633,0.1162686567164179,0.14598360655737708]
[2330,4,51,0.25,null,2.3372E-2,104.61,119.45,75.099999999999994,52.1,8,3,2,null,4.4115570947229035,null,null,null,null,null,null,null,null,null,null,null,null,null,null,null,null,null,null,null,null,null,null,null,null,null,null,null,null,null,null,null,null,null,null,null,null,null,null,null,null,null,null,null,null,null,null,null,null,null,null,null,null,null,null,null,null,null,null,null,null,null,null,null,null,null,null,null,null,null,null,null,null,null,null,null,null,null,null,null,null,null,null,null,null,null,null,null,null,null,null,null,null,null,null,null,null,null,null,null,null,null,null,null,null,null,null,null,null,null,null,null,null,null,null,null,null,null,null,null,null,null,null,0.40704280155642025,0.10858208955223879,0.57295081967213124]
[2469,5,8,0.625,null,3.2585999999999997E-2,26.515000000000001,110.94,15.176,57.881999999999998,7,3,1,null,14.602364500312952,null,null,null,null,null,null,null,null,null,null,null,null,null,null,null,null,null,null,null,null,null,null,null,null,null,null,null,null,null,null,null,null,null,null,null,null,null,null,null,null,null,null,null,null,null,null,null,null,null,null,null,null,null,null,null,null,null,null,null,null,null,null,null,null,null,null,null,null,null,null,null,null,null,null,null,null,null,null,null,null,null,null,null,null,null,null,null,null,null,null,null,null,null,null,null,null,null,null,null,null,null,null,null,null,null,null,null,null,null,null,null,null,null,null,null,null,null,null,null,null,null,null,0.10317120622568093,0.17208955223880598,0.52555737704918026]
[2526,5,15,0.75,null,2.9364999999999999E-2,30.369,97.953999999999994,13.8,25.1,7,3,1,null,1.9329999999999998,null,null,null,null,null,null,null,null,null,null,null,null,null,null,null,null,null,null,null,null,null,null,null,null,null,null,null,null,null,null,null,null,null,null,null,null,null,null,null,null,null,null,null,null,null,null,null,null,null,null,null,null,null,null,null,null,null,null,null,null,null,null,null,null,null,null,null,null,null,null,null,null,null,null,null,null,null,null,null,null,null,null,null,null,null,null,null,null,null,null,null,null,null,null,null,null,null,null,null,null,null,null,null,null,null,null,null,null,null,null,null,null,null,null,null,null,null,null,null,null,null,null,0.11816731517509728,0.26900000000000007,0.79426229508196722]
[2665,5,33,0.125,null,3.3059999999999999E-2,63.895000000000003,87.509,46.636000000000003,111.82,4,2,1,null,13.120882782800859,null,null,null,null,null,null,null,null,null,null,null,null,null,null,null,null,null,null,null,null,null,null,null,null,null,null,null,null,null,null,null,null,null,null,null,null,null,null,null,null,null,null,null,null,null,null,null,null,null,null,null,null,null,null,null,null,null,null,null,null,null,null,null,null,null,null,null,null,null,null,null,null,null,null,null,null,null,null,null,null,null,null,null,null,null,null,null,null,null,null,null,null,null,null,null,null,null,null,null,null,null,null,null,null,null,null,null,null,null,null,null,null,null,null,null,null,null,null,null,null,null,null,0.24861867704280158,0.34694776119402987,8.3442622950819723E-2]
[2836,5,54,0.5,null,3.5365000000000001E-2,43,99.548000000000002,23.067,15.333,7,3,1,null,1.5959999999999983,null,null,null,null,null,null,null,null,null,null,null,null,null,null,null,null,null,null,null,null,null,null,null,null,null,null,null,null,null,null,null,null,null,null,null,null,null,null,null,null,null,null,null,null,null,null,null,null,null,null,null,null,null,null,null,null,null,null,null,null,null,null,null,null,null,null,null,null,null,null,null,null,null,null,null,null,null,null,null,null,null,null,null,null,null,null,null,null,null,null,null,null,null,null,null,null,null,null,null,null,null,null,null,null,null,null,null,null,null,null,null,null,null,null,null,null,null,null,null,null,null,null,0.16731517509727625,0.25710447761194027,0.87431967213114758]
[2893,6,1,0.625,null,3.2633000000000002E-2,32.097999999999999,121.07,23.832999999999998,92,7,3,1,null,2.2729999999999961,null,null,null,null,null,null,null,null,null,null,null,null,null,null,null,null,null,null,null,null,null,null,null,null,null,null,null,null,null,null,null,null,null,null,null,null,null,null,null,null,null,null,null,null,null,null,null,null,null,null,null,null,null,null,null,null,null,null,null,null,null,null,null,null,null,null,null,null,null,null,null,null,null,null,null,null,null,null,null,null,null,null,null,null,null,null,null,null,null,null,null,null,null,null,null,null,null,null,null,null,null,null,null,null,null,null,null,null,null,null,null,null,null,null,null,null,null,null,null,null,null,null,0.12489494163424124,9.649253731343288E-2,0.24590163934426229]
[3032,6,19,0,null,2.2459E-2,14.821,21.282,12.765000000000001,95.471000000000004,1,1,1,null,5.2890000000000015,null,null,null,null,null,null,null,null,null,null,null,null,null,null,null,null,null,null,null,null,null,null,null,null,null,null,null,null,null,null,null,null,null,null,null,null,null,null,null,null,null,null,null,null,null,null,null,null,null,null,null,null,null,null,null,null,null,null,null,null,null,null,null,null,null,null,null,null,null,null,null,null,null,null,null,null,null,null,null,null,null,null,null,null,null,null,null,null,null,null,null,null,null,null,null,null,null,null,null,null,null,null,null,null,null,null,null,null,null,null,null,null,null,null,null,null,null,null,null,null,null,null,5.7669260700389101E-2,0.84117910447761202,0.21745081967213112]
[3203,6,40,0.375,null,2.8351000000000001E-2,150.27000000000001,21.902000000000001,118.26,21.259,2,1,2,null,1.9149999999999991,null,null,null,null,null,null,null,null,null,null,null,null,null,null,null,null,null,null,null,null,null,null,null,null,null,null,null,null,null,null,null,null,null,null,null,null,null,null,null,null,null,null,null,null,null,null,null,null,null,null,null,null,null,null,null,null,null,null,null,null,null,null,null,null,null,null,null,null,null,null,null,null,null,null,null,null,null,null,null,null,null,null,null,null,null,null,null,null,null,null,null,null,null,null,null,null,null,null,null,null,null,null,null,null,null,null,null,null,null,null,null,null,null,null,null,null,null,null,null,null,null,null,0.58470817120622576,0.83655223880597018,0.82574590163934425]
[3260,6,47,0.5,null,2.9787999999999999E-2,59.25,110.61,45.947000000000003,108.89,7,3,1,null,5.1543985100106475,null,null,null,null,null,null,null,null,null,null,null,null,null,null,null,null,null,null,null,null,null,null,null,null,null,null,null,null,null,null,null,null,null,null,null,null,null,null,null,null,null,null,null,null,null,null,null,null,null,null,null,null,null,null,null,null,null,null,null,null,null,null,null,null,null,null,null,null,null,null,null,null,null,null,null,null,null,null,null,null,null,null,null,null,null,null,null,null,null,null,null,null,null,null,null,null,null,null,null,null,null,null,null,null,null,null,null,null,null,null,null,null,null,null,null,null,null,null,null,null,null,null,0.23054474708171208,0.17455223880597015,0.10745901639344262]
[3399,7,4,0.875,null,2.2171E-2,74.236000000000004,106.16,54.5,96.611000000000004,7,3,1,null,9.8124845477585438,null,null,null,null,null,null,null,null,null,null,null,null,null,null,null,null,null,null,null,null,null,null,null,null,null,null,null,null,null,null,null,null,null,null,null,null,null,null,null,null,null,null,null,null,null,null,null,null,null,null,null,null,null,null,null,null,null,null,null,null,null,null,null,null,null,null,null,null,null,null,null,null,null,null,null,null,null,null,null,null,null,null,null,null,null,null,null,null,null,null,null,null,null,null,null,null,null,null,null,null,null,null,null,null,null,null,null,null,null,null,null,null,null,null,null,null,null,null,null,null,null,null,0.28885603112840469,0.20776119402985077,0.20810655737704914]
[3456,7,12,0,null,2.9899999999999999E-2,42.274000000000001,14.534000000000001,26.856999999999999,10,1,1,1,null,2.1333000000000002,null,null,null,null,null,null,null,null,null,null,null,null,null,null,null,null,null,null,null,null,null,null,null,null,null,null,null,null,null,null,null,null,null,null,null,null,null,null,null,null,null,null,null,null,null,null,null,null,null,null,null,null,null,null,null,null,null,null,null,null,null,null,null,null,null,null,null,null,null,null,null,null,null,null,null,null,null,null,null,null,null,null,null,null,null,null,null,null,null,null,null,null,null,null,null,null,null,null,null,null,null,null,null,null,null,null,null,null,null,null,null,null,null,null,null,null,null,null,null,null,null,null,0.16449027237354086,0.89153731343283582,0.91803278688524592]
[3595,7,29,0.375,null,2.8424000000000001E-2,235.77,78.317999999999998,163.04,53.792000000000002,6,2,3,null,5.2862782749302832,null,null,null,null,null,null,null,null,null,null,null,null,null,null,null,null,null,null,null,null,null,null,null,null,null,null,null,null,null,null,null,null,null,null,null,null,null,null,null,null,null,null,null,null,null,null,null,null,null,null,null,null,null,null,null,null,null,null,null,null,null,null,null,null,null,null,null,null,null,null,null,null,null,null,null,null,null,null,null,null,null,null,null,null,null,null,null,null,null,null,null,null,null,null,null,null,null,null,null,null,null,null,null,null,null,null,null,null,null,null,null,null,null,null,null,null,null,null,null,null,null,null,0.91739299610894942,0.41553731343283584,0.55908196721311476]
[3766,7,50,0.75,null,2.3789000000000001E-2,88.885999999999996,35.784999999999997,52.384999999999998,7.5385,2,1,2,null,34.848263812706648,null,null,null,null,null,null,null,null,null,null,null,null,null,null,null,null,null,null,null,null,null,null,null,null,null,null,null,null,null,null,null,null,null,null,null,null,null,null,null,null,null,null,null,null,null,null,null,null,null,null,null,null,null,null,null,null,null,null,null,null,null,null,null,null,null,null,null,null,null,null,null,null,null,null,null,null,null,null,null,null,null,null,null,null,null,null,null,null,null,null,null,null,null,null,null,null,null,null,null,null,null,null,null,null,null,null,null,null,null,null,null,null,null,null,null,null,null,null,null,null,null,null,0.34585992217898831,0.73294776119402982,0.93820901639344267]
[3823,7,57,0.875,null,1.6413000000000001E-2,14.352,116.39,17.059000000000001,101.18,7,3,1,null,4.8940000000000055,null,null,null,null,null,null,null,null,null,null,null,null,null,null,null,null,null,null,null,null,null,null,null,null,null,null,null,null,null,null,null,null,null,null,null,null,null,null,null,null,null,null,null,null,null,null,null,null,null,null,null,null,null,null,null,null,null,null,null,null,null,null,null,null,null,null,null,null,null,null,null,null,null,null,null,null,null,null,null,null,null,null,null,null,null,null,null,null,null,null,null,null,null,null,null,null,null,null,null,null,null,null,null,null,null,null,null,null,null,null,null,null,null,null,null,null,null,null,null,null,null,null,5.58443579766537E-2,0.13141791044776119,0.17065573770491799]
[3962,8,15,0.25,null,2.7816E-2,169.08,118.84,120.8,9.3000000000000007,8,3,2,null,5.2695207220391653,null,null,null,null,null,null,null,null,null,null,null,null,null,null,null,null,null,null,null,null,null,null,null,null,null,null,null,null,null,null,null,null,null,null,null,null,null,null,null,null,null,null,null,null,null,null,null,null,null,null,null,null,null,null,null,null,null,null,null,null,null,null,null,null,null,null,null,null,null,null,null,null,null,null,null,null,null,null,null,null,null,null,null,null,null,null,null,null,null,null,null,null,null,null,null,null,null,null,null,null,null,null,null,null,null,null,null,null,null,null,null,null,null,null,null,null,null,null,null,null,null,null,0.65789883268482496,0.11313432835820893,0.92377049180327875]
[4019,8,22,0.375,null,3.1163E-2,107.26,40.021999999999998,68.082999999999998,6.0416999999999996,2,1,2,null,24.604938875965516,null,null,null,null,null,null,null,null,null,null,null,null,null,null,null,null,null,null,null,null,null,null,null,null,null,null,null,null,null,null,null,null,null,null,null,null,null,null,null,null,null,null,null,null,null,null,null,null,null,null,null,null,null,null,null,null,null,null,null,null,null,null,null,null,null,null,null,null,null,null,null,null,null,null,null,null,null,null,null,null,null,null,null,null,null,null,null,null,null,null,null,null,null,null,null,null,null,null,null,null,null,null,null,null,null,null,null,null,null,null,null,null,null,null,null,null,null,null,null,null,null,null,0.41735408560311288,0.70132835820895534,0.950477868852459]
[4190,8,43,0.75,null,-3.7763999999999999E-2,9.4364000000000008,113.42,12,84,7,3,1,null,2.75,null,null,null,null,null,null,null,null,null,null,null,null,null,null,null,null,null,null,null,null,null,null,null,null,null,null,null,null,null,null,null,null,null,null,null,null,null,null,null,null,null,null,null,null,null,null,null,null,null,null,null,null,null,null,null,null,null,null,null,null,null,null,null,null,null,null,null,null,null,null,null,null,null,null,null,null,null,null,null,null,null,null,null,null,null,null,null,null,null,null,null,null,null,null,null,null,null,null,null,null,null,null,null,null,null,null,null,null,null,null,null,null,null,null,null,null,null,null,null,null,null,null,3.6717509727626461E-2,0.15358208955223879,0.31147540983606559]
[4329,9,1,0.125,null,-1.4930000000000001E-2,32.774999999999999,11.675000000000001,13.12,5.4,1,1,1,null,7.3597090295744723,null,null,null,null,null,null,null,null,null,null,null,null,null,null,null,null,null,null,null,null,null,null,null,null,null,null,null,null,null,null,null,null,null,null,null,null,null,null,null,null,null,null,null,null,null,null,null,null,null,null,null,null,null,null,null,null,null,null,null,null,null,null,null,null,null,null,null,null,null,null,null,null,null,null,null,null,null,null,null,null,null,null,null,null,null,null,null,null,null,null,null,null,null,null,null,null,null,null,null,null,null,null,null,null,null,null,null,null,null,null,null,null,null,null,null,null,null,null,null,null,null,null,0.12752918287937742,0.91287313432835826,0.95573770491803278]
[4386,9,8,0.25,null,-1.2252000000000001E-2,41.712000000000003,114.67,33.042000000000002,61.207999999999998,7,3,1,null,11.657506079775382,null,null,null,null,null,null,null,null,null,null,null,null,null,null,null,null,null,null,null,null,null,null,null,null,null,null,null,null,null,null,null,null,null,null,null,null,null,null,null,null,null,null,null,null,null,null,null,null,null,null,null,null,null,null,null,null,null,null,null,null,null,null,null,null,null,null,null,null,null,null,null,null,null,null,null,null,null,null,null,null,null,null,null,null,null,null,null,null,null,null,null,null,null,null,null,null,null,null,null,null,null,null,null,null,null,null,null,null,null,null,null,null,null,null,null,null,null,null,null,null,null,null,0.16230350194552531,0.14425373134328356,0.49829508196721312]
[4525,9,25,0.625,null,-2.6589000000000002E-2,180.53,119.47,122.5,59.5,9,3,3,null,0.89999999999999858,null,null,null,null,null,null,null,null,null,null,null,null,null,null,null,null,null,null,null,null,null,null,null,null,null,null,null,null,null,null,null,null,null,null,null,null,null,null,null,null,null,null,null,null,null,null,null,null,null,null,null,null,null,null,null,null,null,null,null,null,null,null,null,null,null,null,null,null,null,null,null,null,null,null,null,null,null,null,null,null,null,null,null,null,null,null,null,null,null,null,null,null,null,null,null,null,null,null,null,null,null,null,null,null,null,null,null,null,null,null,null,null,null,null,null,null,null,null,null,null,null,null,0.70245136186770429,0.10843283582089554,0.51229508196721307]
[4582,9,32,0.75,null,-2.6076999999999999E-2,160.65,120.75,109.67,90.19,8,3,2,null,3.9724708935371682,null,null,null,null,null,null,null,null,null,null,null,null,null,null,null,null,null,null,null,null,null,null,null,null,null,null,null,null,null,null,null,null,null,null,null,null,null,null,null,null,null,null,null,null,null,null,null,null,null,null,null,null,null,null,null,null,null,null,null,null,null,null,null,null,null,null,null,null,null,null,null,null,null,null,null,null,null,null,null,null,null,null,null,null,null,null,null,null,null,null,null,null,null,null,null,null,null,null,null,null,null,null,null,null,null,null,null,null,null,null,null,null,null,null,null,null,null,null,null,null,null,null,0.62509727626459144,9.8880597014925367E-2,0.26073770491803283]
[4753,9,54,0.125,null,-2.4469999999999999E-2,28.021999999999998,31.332999999999998,15.471,31.940999999999999,1,1,1,null,6.5737101396395605,null,null,null,null,null,null,null,null,null,null,null,null,null,null,null,null,null,null,null,null,null,null,null,null,null,null,null,null,null,null,null,null,null,null,null,null,null,null,null,null,null,null,null,null,null,null,null,null,null,null,null,null,null,null,null,null,null,null,null,null,null,null,null,null,null,null,null,null,null,null,null,null,null,null,null,null,null,null,null,null,null,null,null,null,null,null,null,null,null,null,null,null,null,null,null,null,null,null,null,null,null,null,null,null,null,null,null,null,null,null,null,null,null,null,null,null,null,null,null,null,null,null,0.10903501945525292,0.7661716417910448,0.73818852459016393]
[4892,10,11,0.5,null,-3.5279999999999999E-2,26.971,91.332999999999998,11,70.5,7,3,1,null,10.947634767382405,null,null,null,null,null,null,null,null,null,null,null,null,null,null,null,null,null,null,null,null,null,null,null,null,null,null,null,null,null,null,null,null,null,null,null,null,null,null,null,null,null,null,null,null,null,null,null,null,null,null,null,null,null,null,null,null,null,null,null,null,null,null,null,null,null,null,null,null,null,null,null,null,null,null,null,null,null,null,null,null,null,null,null,null,null,null,null,null,null,null,null,null,null,null,null,null,null,null,null,null,null,null,null,null,null,null,null,null,null,null,null,null,null,null,null,null,null,null,null,null,null,null,0.1049455252918288,0.31841044776119404,0.42213114754098363]
[4949,10,18,0.625,null,-1.4493000000000001E-2,25.483000000000001,75.569000000000003,12.214,37.143000000000001,4,2,1,null,14.164454313527223,null,null,null,null,null,null,null,null,null,null,null,null,null,null,null,null,null,null,null,null,null,null,null,null,null,null,null,null,null,null,null,null,null,null,null,null,null,null,null,null,null,null,null,null,null,null,null,null,null,null,null,null,null,null,null,null,null,null,null,null,null,null,null,null,null,null,null,null,null,null,null,null,null,null,null,null,null,null,null,null,null,null,null,null,null,null,null,null,null,null,null,null,null,null,null,null,null,null,null,null,null,null,null,null,null,null,null,null,null,null,null,null,null,null,null,null,null,null,null,null,null,null,9.9155642023346299E-2,0.4360522388059701,0.69554918032786883]
[5088,10,36,0,null,-2.1045999999999999E-2,68.742000000000004,95.548000000000002,41.941000000000003,10.941000000000001,7,3,1,null,8.7528894086467233,null,null,null,null,null,null,null,null,null,null,null,null,null,null,null,null,null,null,null,null,null,null,null,null,null,null,null,null,null,null,null,null,null,null,null,null,null,null,null,null,null,null,null,null,null,null,null,null,null,null,null,null,null,null,null,null,null,null,null,null,null,null,null,null,null,null,null,null,null,null,null,null,null,null,null,null,null,null,null,null,null,null,null,null,null,null,null,null,null,null,null,null,null,null,null,null,null,null,null,null,null,null,null,null,null,null,null,null,null,null,null,null,null,null,null,null,null,null,null,null,null,null,0.2674785992217899,0.28695522388059702,0.91031967213114751]
[5145,10,43,0.125,null,-4.4116000000000002E-2,71.358999999999995,47.359000000000002,47.475999999999999,15.381,4,2,1,null,12.122273177915112,null,null,null,null,null,null,null,null,null,null,null,null,null,null,null,null,null,null,null,null,null,null,null,null,null,null,null,null,null,null,null,null,null,null,null,null,null,null,null,null,null,null,null,null,null,null,null,null,null,null,null,null,null,null,null,null,null,null,null,null,null,null,null,null,null,null,null,null,null,null,null,null,null,null,null,null,null,null,null,null,null,null,null,null,null,null,null,null,null,null,null,null,null,null,null,null,null,null,null,null,null,null,null,null,null,null,null,null,null,null,null,null,null,null,null,null,null,null,null,null,null,null,0.27766147859922174,0.64657462686567158,0.87392622950819676]
[5316,11,4,0.5,null,-2.1819999999999999E-2,13.2,114.8,16.125,102.13,7,3,1,null,4.7299999999999898,null,null,null,null,null,null,null,null,null,null,null,null,null,null,null,null,null,null,null,null,null,null,null,null,null,null,null,null,null,null,null,null,null,null,null,null,null,null,null,null,null,null,null,null,null,null,null,null,null,null,null,null,null,null,null,null,null,null,null,null,null,null,null,null,null,null,null,null,null,null,null,null,null,null,null,null,null,null,null,null,null,null,null,null,null,null,null,null,null,null,null,null,null,null,null,null,null,null,null,null,null,null,null,null,null,null,null,null,null,null,null,null,null,null,null,null,null,null,null,null,null,null,5.1361867704280154E-2,0.14328358208955225,0.16286885245901644]
[5455,11,21,0.875,null,-3.2641999999999997E-2,26.565000000000001,115.17,13.635999999999999,26.681999999999999,7,3,1,null,7.5488926340225522,null,null,null,null,null,null,null,null,null,null,null,null,null,null,null,null,null,null,null,null,null,null,null,null,null,null,null,null,null,null,null,null,null,null,null,null,null,null,null,null,null,null,null,null,null,null,null,null,null,null,null,null,null,null,null,null,null,null,null,null,null,null,null,null,null,null,null,null,null,null,null,null,null,null,null,null,null,null,null,null,null,null,null,null,null,null,null,null,null,null,null,null,null,null,null,null,null,null,null,null,null,null,null,null,null,null,null,null,null,null,null,null,null,null,null,null,null,null,null,null,null,null,0.10336575875486381,0.14052238805970149,0.78129508196721309]
[5512,11,29,0,null,-3.2357999999999998E-2,149.91999999999999,93.177000000000007,119.48,5.7291999999999996,8,3,2,null,5.0208000000000004,null,null,null,null,null,null,null,null,null,null,null,null,null,null,null,null,null,null,null,null,null,null,null,null,null,null,null,null,null,null,null,null,null,null,null,null,null,null,null,null,null,null,null,null,null,null,null,null,null,null,null,null,null,null,null,null,null,null,null,null,null,null,null,null,null,null,null,null,null,null,null,null,null,null,null,null,null,null,null,null,null,null,null,null,null,null,null,null,null,null,null,null,null,null,null,null,null,null,null,null,null,null,null,null,null,null,null,null,null,null,null,null,null,null,null,null,null,null,null,null,null,null,0.5833463035019455,0.30464925373134322,0.95303934426229509]
[5683,11,50,0.375,null,-3.8095999999999998E-2,231.71,120.66,158.03,71.028999999999996,9,3,3,null,6.022001328462161,null,null,null,null,null,null,null,null,null,null,null,null,null,null,null,null,null,null,null,null,null,null,null,null,null,null,null,null,null,null,null,null,null,null,null,null,null,null,null,null,null,null,null,null,null,null,null,null,null,null,null,null,null,null,null,null,null,null,null,null,null,null,null,null,null,null,null,null,null,null,null,null,null,null,null,null,null,null,null,null,null,null,null,null,null,null,null,null,null,null,null,null,null,null,null,null,null,null,null,null,null,null,null,null,null,null,null,null,null,null,null,null,null,null,null,null,null,null,null,null,null,null,0.90159533073929965,9.9552238805970181E-2,0.41779508196721316]
[5822,12,7,0.75,null,-3.8649999999999997E-2,218.65,119.43,152.06,19.777999999999999,9,3,3,null,5.0140000000000029,null,null,null,null,null,null,null,null,null,null,null,null,null,null,null,null,null,null,null,null,null,null,null,null,null,null,null,null,null,null,null,null,null,null,null,null,null,null,null,null,null,null,null,null,null,null,null,null,null,null,null,null,null,null,null,null,null,null,null,null,null,null,null,null,null,null,null,null,null,null,null,null,null,null,null,null,null,null,null,null,null,null,null,null,null,null,null,null,null,null,null,null,null,null,null,null,null,null,null,null,null,null,null,null,null,null,null,null,null,null,null,null,null,null,null,null,null,null,null,null,null,null,0.85077821011673149,0.10873134328358204,0.83788524590163937]
[5879,12,14,0.875,null,-2.6436999999999999E-2,30.143000000000001,120.81,15.481,16.63,7,3,1,null,3.620000000000001,null,null,null,null,null,null,null,null,null,null,null,null,null,null,null,null,null,null,null,null,null,null,null,null,null,null,null,null,null,null,null,null,null,null,null,null,null,null,null,null,null,null,null,null,null,null,null,null,null,null,null,null,null,null,null,null,null,null,null,null,null,null,null,null,null,null,null,null,null,null,null,null,null,null,null,null,null,null,null,null,null,null,null,null,null,null,null,null,null,null,null,null,null,null,null,null,null,null,null,null,null,null,null,null,null,null,null,null,null,null,null,null,null,null,null,null,null,null,null,null,null,null,0.11728793774319067,9.8432835820895501E-2,0.86368852459016399]
[{"$f":"A6026+1","v":6018},{"$f":"ROUNDDOWN(A6027/480,0)","v":12},{"$f":"MOD(ROUNDDOWN(A6027/8,0),60)","v":32},{"$f":"MOD(A6027,8)/8","v":0.25},null,-3.8982000000000003E-2,224.49,119.68,151.63999999999999,108.64,{"$f":"SUMPRODUCT(--($T$1:$T$9=L6027),--($U$1:$U$9=M6027),$V$1:$V$9)*SUMPRODUCT(--((G6027+H6027)>0))","v":9},{"$f":"MATCH(H6027,$R$3:$R$6,1)","v":3},{"$f":"MATCH(G6027,$N$7:$Q$7,1)","v":3},null,{"$f":"SQRT((G6027-G6026)^2+(H6027-H6026)^2+(J6027-J6026)^2)","v":5.8908997614965308},null,null,null,null,null,null,null,null,null,null,null,null,null,null,null,null,null,null,null,null,null,null,null,null,null,null,null,null,null,null,null,null,null,null,null,null,null,null,null,null,null,null,null,null,null,null,null,null,null,null,null,null,null,null,null,null,null,null,null,null,null,null,null,null,null,null,null,null,null,null,null,null,null,null,null,null,null,null,null,null,null,null,null,null,null,null,null,null,null,null,null,null,null,null,null,null,null,null,null,null,null,null,null,null,null,null,null,null,null,null,null,null,null,null,null,null,null,null,null,null,null,null,{"$f":"G6027/Q$7","v":0.87350194552529181},{"$f":"(R$6-H6027)/R$6","v":0.10686567164179099},{"$f":"(J$3/2-J6027)/(J$3/2)","v":0.10950819672131147}]
[6075,12,39,0.375,null,-4.2999000000000002E-2,247.52,20.905000000000001,176.91,82.090999999999994,3,1,3,null,5.7739130578837043,null,null,null,null,null,null,null,null,null,null,null,null,null,null,null,null,null,null,null,null,null,null,null,null,null,null,null,null,null,null,null,null,null,null,null,null,null,null,null,null,null,null,null,null,null,null,null,null,null,null,null,null,null,null,null,null,null,null,null,null,null,null,null,null,null,null,null,null,null,null,null,null,null,null,null,null,null,null,null,null,null,null,null,null,null,null,null,null,null,null,null,null,null,null,null,null,null,null,null,null,null,null,null,null,null,null,null,null,null,null,null,null,null,null,null,null,null,null,null,null,null,null,0.96311284046692613,0.84399253731343282,0.32712295081967219]
[6246,13,0,0.75,null,-3.1125E-2,88.37,120.04,60.213999999999999,28.356999999999999,8,3,2,null,5.4352438767731535,null,null,null,null,null,null,null,null,null,null,null,null,null,null,null,null,null,null,null,null,null,null,null,null,null,null,null,null,null,null,null,null,null,null,null,null,null,null,null,null,null,null,null,null,null,null,null,null,null,null,null,null,null,null,null,null,null,null,null,null,null,null,null,null,null,null,null,null,null,null,null,null,null,null,null,null,null,null,null,null,null,null,null,null,null,null,null,null,null,null,null,null,null,null,null,null,null,null,null,null,null,null,null,null,null,null,null,null,null,null,null,null,null,null,null,null,null,null,null,null,null,null,0.34385214007782106,0.10417910447761189,0.76756557377049184]
[6385,13,18,0.125,null,-3.7756999999999999E-2,159.53,126.11,106.87,88.956999999999994,8,3,2,null,5.5510043235436211,null,null,null,null,null,null,null,null,null,null,null,null,null,null,null,null,null,null,null,null,null,null,null,null,null,null,null,null,null,null,null,null,null,null,null,null,null,null,null,null,null,null,null,null,null,null,null,null,null,null,null,null,null,null,null,null,null,null,null,null,null,null,null,null,null,null,null,null,null,null,null,null,null,null,null,null,null,null,null,null,null,null,null,null,null,null,null,null,null,null,null,null,null,null,null,null,null,null,null,null,null,null,null,null,null,null,null,null,null,null,null,null,null,null,null,null,null,null,null,null,null,null,0.62073929961089491,5.888059701492538E-2,0.27084426229508202]
[6442,13,25,0.25,null,-6.7426E-2,70.576999999999998,117.77,49.444000000000003,59.722000000000001,7,3,1,null,5.9138884838995738,null,null,null,null,null,null,null,null,null,null,null,null,null,null,null,null,null,null,null,null,null,null,null,null,null,null,null,null,null,null,null,null,null,null,null,null,null,null,null,null,null,null,null,null,null,null,null,null,null,null,null,null,null,null,null,null,null,null,null,null,null,null,null,null,null,null,null,null,null,null,null,null,null,null,null,null,null,null,null,null,null,null,null,null,null,null,null,null,null,null,null,null,null,null,null,null,null,null,null,null,null,null,null,null,null,null,null,null,null,null,null,null,null,null,null,null,null,null,null,null,null,null,0.27461867704280157,0.12111940298507466,0.51047540983606554]
[6581,13,42,0.625,null,-4.1410000000000002E-2,217.38,100.1,165.64,12.818,9,3,3,null,1.2679999999999989,null,null,null,null,null,null,null,null,null,null,null,null,null,null,null,null,null,null,null,null,null,null,null,null,null,null,null,null,null,null,null,null,null,null,null,null,null,null,null,null,null,null,null,null,null,null,null,null,null,null,null,null,null,null,null,null,null,null,null,null,null,null,null,null,null,null,null,null,null,null,null,null,null,null,null,null,null,null,null,null,null,null,null,null,null,null,null,null,null,null,null,null,null,null,null,null,null,null,null,null,null,null,null,null,null,null,null,null,null,null,null,null,null,null,null,null,null,null,null,null,null,null,0.84583657587548633,0.2529850746268657,0.89493442622950825]
[6638,13,49,0.75,null,-3.8186999999999999E-2,220.23,43.018000000000001,149,118.5,3,1,3,null,12.383137728378861,null,null,null,null,null,null,null,null,null,null,null,null,null,null,null,null,null,null,null,null,null,null,null,null,null,null,null,null,null,null,null,null,null,null,null,null,null,null,null,null,null,null,null,null,null,null,null,null,null,null,null,null,null,null,null,null,null,null,null,null,null,null,null,null,null,null,null,null,null,null,null,null,null,null,null,null,null,null,null,null,null,null,null,null,null,null,null,null,null,null,null,null,null,null,null,null,null,null,null,null,null,null,null,null,null,null,null,null,null,null,null,null,null,null,null,null,null,null,null,null,null,null,0.85692607003891041,0.67897014925373134,2.8688524590163935E-2]
[6809,14,11,0.125,null,-3.5860000000000003E-2,52.033999999999999,40.552,36.378,74.054000000000002,1,1,1,null,16.249695043292352,null,null,null,null,null,null,null,null,null,null,null,null,null,null,null,null,null,null,null,null,null,null,null,null,null,null,null,null,null,null,null,null,null,null,null,null,null,null,null,null,null,null,null,null,null,null,null,null,null,null,null,null,null,null,null,null,null,null,null,null,null,null,null,null,null,null,null,null,null,null,null,null,null,null,null,null,null,null,null,null,null,null,null,null,null,null,null,null,null,null,null,null,null,null,null,null,null,null,null,null,null,null,null,null,null,null,null,null,null,null,null,null,null,null,null,null,null,null,null,null,null,null,0.20246692607003891,0.69737313432835824,0.39299999999999996]
[6948,14,28,0.5,null,-4.6011999999999997E-2,237.51,67.570999999999998,166.46,68.923000000000002,6,2,3,null,7.1345402094318633,null,null,null,null,null,null,null,null,null,null,null,null,null,null,null,null,null,null,null,null,null,null,null,null,null,null,null,null,null,null,null,null,null,null,null,null,null,null,null,null,null,null,null,null,null,null,null,null,null,null,null,null,null,null,null,null,null,null,null,null,null,null,null,null,null,null,null,null,null,null,null,null,null,null,null,null,null,null,null,null,null,null,null,null,null,null,null,null,null,null,null,null,null,null,null,null,null,null,null,null,null,null,null,null,null,null,null,null,null,null,null,null,null,null,null,null,null,null,null,null,null,null,0.92416342412451358,0.49573880597014924,0.43505737704918029]
[7005,14,35,0.625,null,-5.1631000000000003E-2,186.4,121.78,125.35,92.451999999999998,9,3,3,null,6.6376429551460454,null,null,null,null,null,null,null,null,null,null,null,null,null,null,null,null,null,null,null,null,null,null,null,null,null,null,null,null,null,null,null,null,null,null,null,null,null,null,null,null,null,null,null,null,null,null,null,null,null,null,null,null,null,null,null,null,null,null,null,null,null,null,null,null,null,null,null,null,null,null,null,null,null,null,null,null,null,null,null,null,null,null,null,null,null,null,null,null,null,null,null,null,null,null,null,null,null,null,null,null,null,null,null,null,null,null,null,null,null,null,null,null,null,null,null,null,null,null,null,null,null,null,0.7252918287937743,9.1194029850746261E-2,0.24219672131147543]
[7176,14,57,0,null,-5.2483000000000002E-2,213.68,92.594999999999999,153.68,70.48,9,3,3,null,9.5614789650973915,null,null,null,null,null,null,null,null,null,null,null,null,null,null,null,null,null,null,null,null,null,null,null,null,null,null,null,null,null,null,null,null,null,null,null,null,null,null,null,null,null,null,null,null,null,null,null,null,null,null,null,null,null,null,null,null,null,null,null,null,null,null,null,null,null,null,null,null,null,null,null,null,null,null,null,null,null,null,null,null,null,null,null,null,null,null,null,null,null,null,null,null,null,null,null,null,null,null,null,null,null,null,null,null,null,null,null,null,null,null,null,null,null,null,null,null,null,null,null,null,null,null,0.83143968871595331,0.30899253731343285,0.4222950819672131]
[7201,15,0,0.125,null,-4.5478999999999999E-2,36.68,24.68,16.231000000000002,15.538,1,1,1,null,11.443722209141567,null,null,null,null,null,null,null,null,null,null,null,null,null,null,null,null,null,null,null,null,null,null,null,null,null,null,null,null,null,null,null,null,null,null,null,null,null,null,null,null,null,null,null,null,null,null,null,null,null,null,null,null,null,null,null,null,null,null,null,null,null,null,null,null,null,null,null,null,null,null,null,null,null,null,null,null,null,null,null,null,null,null,null,null,null,null,null,null,null,null,null,null,null,null,null,null,null,null,null,null,null,null,null,null,null,null,null,null,null,null,null,null,null,null,null,null,null,null,null,null,null,null,0.14272373540856031,0.81582089552238801,0.87263934426229506]
[7372,15,21,0.5,null,-5.1435000000000002E-2,12.162000000000001,97.540999999999997,9.9230999999999998,74.462000000000003,7,3,1,null,5.3193724253900516,null,null,null,null,null,null,null,null,null,null,null,null,null,null,null,null,null,null,null,null,null,null,null,null,null,null,null,null,null,null,null,null,null,null,null,null,null,null,null,null,null,null,null,null,null,null,null,null,null,null,null,null,null,null,null,null,null,null,null,null,null,null,null,null,null,null,null,null,null,null,null,null,null,null,null,null,null,null,null,null,null,null,null,null,null,null,null,null,null,null,null,null,null,null,null,null,null,null,null,null,null,null,null,null,null,null,null,null,null,null,null,null,null,null,null,null,null,null,null,null,null,null,4.732295719844358E-2,0.27208208955223884,0.38965573770491801]
[7511,15,38,0.875,null,-5.5620000000000003E-2,51.633000000000003,110.08,35.723999999999997,5.2069000000000001,7,3,1,null,9.4825849118265264,null,null,null,null,null,null,null,null,null,null,null,null,null,null,null,null,null,null,null,null,null,null,null,null,null,null,null,null,null,null,null,null,null,null,null,null,null,null,null,null,null,null,null,null,null,null,null,null,null,null,null,null,null,null,null,null,null,null,null,null,null,null,null,null,null,null,null,null,null,null,null,null,null,null,null,null,null,null,null,null,null,null,null,null,null,null,null,null,null,null,null,null,null,null,null,null,null,null,null,null,null,null,null,null,null,null,null,null,null,null,null,null,null,null,null,null,null,null,null,null,null,null,0.20090661478599223,0.17850746268656717,0.95732049180327861]
[7568,15,46,0,null,-4.9342999999999998E-2,123.43,110.34,85.611000000000004,28.111000000000001,8,3,2,null,8.8742490386511026,null,null,null,null,null,null,null,null,null,null,null,null,null,null,null,null,null,null,null,null,null,null,null,null,null,null,null,null,null,null,null,null,null,null,null,null,null,null,null,null,null,null,null,null,null,null,null,null,null,null,null,null,null,null,null,null,null,null,null,null,null,null,null,null,null,null,null,null,null,null,null,null,null,null,null,null,null,null,null,null,null,null,null,null,null,null,null,null,null,null,null,null,null,null,null,null,null,null,null,null,null,null,null,null,null,null,null,null,null,null,null,null,null,null,null,null,null,null,null,null,null,null,0.48027237354085606,0.17656716417910445,0.76958196721311467]
[7739,16,7,0.375,null,-4.3970000000000002E-2,17.533000000000001,10.333,9.6999999999999993,69.900000000000006,1,1,1,null,7.4447295424347084,null,null,null,null,null,null,null,null,null,null,null,null,null,null,null,null,null,null,null,null,null,null,null,null,null,null,null,null,null,null,null,null,null,null,null,null,null,null,null,null,null,null,null,null,null,null,null,null,null,null,null,null,null,null,null,null,null,null,null,null,null,null,null,null,null,null,null,null,null,null,null,null,null,null,null,null,null,null,null,null,null,null,null,null,null,null,null,null,null,null,null,null,null,null,null,null,null,null,null,null,null,null,null,null,null,null,null,null,null,null,null,null,null,null,null,null,null,null,null,null,null,null,6.8221789883268491E-2,0.92288805970149257,0.42704918032786882]
[7878,16,24,0.75,null,-6.8085000000000007E-2,131.41,101.34,95.421000000000006,110.74,8,3,2,null,5.2714617517345213,null,null,null,null,null,null,null,null,null,null,null,null,null,null,null,null,null,null,null,null,null,null,null,null,null,null,null,null,null,null,null,null,null,null,null,null,null,null,null,null,null,null,null,null,null,null,null,null,null,null,null,null,null,null,null,null,null,null,null,null,null,null,null,null,null,null,null,null,null,null,null,null,null,null,null,null,null,null,null,null,null,null,null,null,null,null,null,null,null,null,null,null,null,null,null,null,null,null,null,null,null,null,null,null,null,null,null,null,null,null,null,null,null,null,null,null,null,null,null,null,null,null,0.51132295719844356,0.24373134328358206,9.2295081967213158E-2]
[7935,16,31,0.875,null,-5.951E-2,116.88,123.41,82.070999999999998,51.856999999999999,8,3,2,null,5.9470538083995805,null,null,null,null,null,null,null,null,null,null,null,null,null,null,null,null,null,null,null,null,null,null,null,null,null,null,null,null,null,null,null,null,null,null,null,null,null,null,null,null,null,null,null,null,null,null,null,null,null,null,null,null,null,null,null,null,null,null,null,null,null,null,null,null,null,null,null,null,null,null,null,null,null,null,null,null,null,null,null,null,null,null,null,null,null,null,null,null,null,null,null,null,null,null,null,null,null,null,null,null,null,null,null,null,null,null,null,null,null,null,null,null,null,null,null,null,null,null,null,null,null,null,0.45478599221789884,7.9029850746268684E-2,0.57494262295081966]
[8106,16,53,0.25,null,-6.3239000000000004E-2,208.24,20.173999999999999,160.08000000000001,9.6667000000000005,3,1,3,null,13.800205505716214,null,null,null,null,null,null,null,null,null,null,null,null,null,null,null,null,null,null,null,null,null,null,null,null,null,null,null,null,null,null,null,null,null,null,null,null,null,null,null,null,null,null,null,null,null,null,null,null,null,null,null,null,null,null,null,null,null,null,null,null,null,null,null,null,null,null,null,null,null,null,null,null,null,null,null,null,null,null,null,null,null,null,null,null,null,null,null,null,null,null,null,null,null,null,null,null,null,null,null,null,null,null,null,null,null,null,null,null,null,null,null,null,null,null,null,null,null,null,null,null,null,null,0.81027237354085602,0.84944776119402976,0.92076475409836056]
[8131,16,56,0.375,null,-5.7597000000000002E-2,231.07,116.34,161.32,15.76,9,3,3,null,6.0929221232508857,null,null,null,null,null,null,null,null,null,null,null,null,null,null,null,null,null,null,null,null,null,null,null,null,null,null,null,null,null,null,null,null,null,null,null,null,null,null,null,null,null,null,null,null,null,null,null,null,null,null,null,null,null,null,null,null,null,null,null,null,null,null,null,null,null,null,null,null,null,null,null,null,null,null,null,null,null,null,null,null,null,null,null,null,null,null,null,null,null,null,null,null,null,null,null,null,null,null,null,null,null,null,null,null,null,null,null,null,null,null,null,null,null,null,null,null,null,null,null,null,null,null,0.89910505836575871,0.13179104477611939,0.87081967213114753]
[8302,17,17,0.75,null,-5.6332E-2,95.244,50.578000000000003,73.174000000000007,8.8261000000000003,5,2,2,null,13.208084752907968,null,null,null,null,null,null,null,null,null,null,null,null,null,null,null,null,null,null,null,null,null,null,null,null,null,null,null,null,null,null,null,null,null,null,null,null,null,null,null,null,null,null,null,null,null,null,null,null,null,null,null,null,null,null,null,null,null,null,null,null,null,null,null,null,null,null,null,null,null,null,null,null,null,null,null,null,null,null,null,null,null,null,null,null,null,null,null,null,null,null,null,null,null,null,null,null,null,null,null,null,null,null,null,null,null,null,null,null,null,null,null,null,null,null,null,null,null,null,null,null,null,null,0.37059922178988325,0.6225522388059701,0.92765491803278688]
[8441,17,35,0.125,null,-6.8268999999999996E-2,121.16,96.673000000000002,90.667000000000002,7.2592999999999996,8,3,2,null,10.72915967865144,null,null,null,null,null,null,null,null,null,null,null,null,null,null,null,null,null,null,null,null,null,null,null,null,null,null,null,null,null,null,null,null,null,null,null,null,null,null,null,null,null,null,null,null,null,null,null,null,null,null,null,null,null,null,null,null,null,null,null,null,null,null,null,null,null,null,null,null,null,null,null,null,null,null,null,null,null,null,null,null,null,null,null,null,null,null,null,null,null,null,null,null,null,null,null,null,null,null,null,null,null,null,null,null,null,null,null,null,null,null,null,null,null,null,null,null,null,null,null,null,null,null,0.47143968871595332,0.27855970149253728,0.94049754098360661]
[8498,17,42,0.25,null,-6.6547999999999996E-2,199.83,30.957000000000001,144.63999999999999,4.6060999999999996,3,1,3,null,21.05781221423538,null,null,null,null,null,null,null,null,null,null,null,null,null,null,null,null,null,null,null,null,null,null,null,null,null,null,null,null,null,null,null,null,null,null,null,null,null,null,null,null,null,null,null,null,null,null,null,null,null,null,null,null,null,null,null,null,null,null,null,null,null,null,null,null,null,null,null,null,null,null,null,null,null,null,null,null,null,null,null,null,null,null,null,null,null,null,null,null,null,null,null,null,null,null,null,null,null,null,null,null,null,null,null,null,null,null,null,null,null,null,null,null,null,null,null,null,null,null,null,null,null,null,0.7775486381322958,0.76897761194029857,0.96224508196721315]
[8669,18,3,0.625,null,-6.4582000000000001E-2,61.32,62.52,48.841999999999999,11.816000000000001,4,2,1,null,13.293816795788935,null,null,null,null,null,null,null,null,null,null,null,null,null,null,null,null,null,null,null,null,null,null,null,null,null,null,null,null,null,null,null,null,null,null,null,null,null,null,null,null,null,null,null,null,null,null,null,null,null,null,null,null,null,null,null,null,null,null,null,null,null,null,null,null,null,null,null,null,null,null,null,null,null,null,null,null,null,null,null,null,null,null,null,null,null,null,null,null,null,null,null,null,null,null,null,null,null,null,null,null,null,null,null,null,null,null,null,null,null,null,null,null,null,null,null,null,null,null,null,null,null,null,0.23859922178988327,0.5334328358208954,0.9031475409836065]
[8694,18,6,0.75,null,-7.1487999999999996E-2,144.13999999999999,53.704999999999998,111.89,4.1666999999999996,5,2,2,null,27.737667692147436,null,null,null,null,null,null,null,null,null,null,null,null,null,null,null,null,null,null,null,null,null,null,null,null,null,null,null,null,null,null,null,null,null,null,null,null,null,null,null,null,null,null,null,null,null,null,null,null,null,null,null,null,null,null,null,null,null,null,null,null,null,null,null,null,null,null,null,null,null,null,null,null,null,null,null,null,null,null,null,null,null,null,null,null,null,null,null,null,null,null,null,null,null,null,null,null,null,null,null,null,null,null,null,null,null,null,null,null,null,null,null,null,null,null,null,null,null,null,null,null,null,null,0.56085603112840465,0.59921641791044777,0.96584672131147531]
[8865,18,28,0.125,null,-6.0673999999999999E-2,145.04,90.414000000000001,101.61,7.9443999999999999,8,3,2,null,8.4990581837048254,null,null,null,null,null,null,null,null,null,null,null,null,null,null,null,null,null,null,null,null,null,null,null,null,null,null,null,null,null,null,null,null,null,null,null,null,null,null,null,null,null,null,null,null,null,null,null,null,null,null,null,null,null,null,null,null,null,null,null,null,null,null,null,null,null,null,null,null,null,null,null,null,null,null,null,null,null,null,null,null,null,null,null,null,null,null,null,null,null,null,null,null,null,null,null,null,null,null,null,null,null,null,null,null,null,null,null,null,null,null,null,null,null,null,null,null,null,null,null,null,null,null,0.56435797665369647,0.32526865671641791,0.93488196721311478]
[9004,18,45,0.5,null,-6.6012000000000001E-2,9.9736999999999991,105.89,12.429,104.64,7,3,1,null,4.0601024235849081,null,null,null,null,null,null,null,null,null,null,null,null,null,null,null,null,null,null,null,null,null,null,null,null,null,null,null,null,null,null,null,null,null,null,null,null,null,null,null,null,null,null,null,null,null,null,null,null,null,null,null,null,null,null,null,null,null,null,null,null,null,null,null,null,null,null,null,null,null,null,null,null,null,null,null,null,null,null,null,null,null,null,null,null,null,null,null,null,null,null,null,null,null,null,null,null,null,null,null,null,null,null,null,null,null,null,null,null,null,null,null,null,null,null,null,null,null,null,null,null,null,null,3.8808171206225678E-2,0.20977611940298507,0.14229508196721311]
[9061,18,52,0.625,null,-6.9515999999999994E-2,31.295000000000002,55.113999999999997,17.832999999999998,25.777999999999999,4,2,1,null,5.1254136418439442,null,null,null,null,null,null,null,null,null,null,null,null,null,null,null,null,null,null,null,null,null,null,null,null,null,null,null,null,null,null,null,null,null,null,null,null,null,null,null,null,null,null,null,null,null,null,null,null,null,null,null,null,null,null,null,null,null,null,null,null,null,null,null,null,null,null,null,null,null,null,null,null,null,null,null,null,null,null,null,null,null,null,null,null,null,null,null,null,null,null,null,null,null,null,null,null,null,null,null,null,null,null,null,null,null,null,null,null,null,null,null,null,null,null,null,null,null,null,null,null,null,null,0.1217704280155642,0.58870149253731341,0.78870491803278697]
[9232,19,14,0,null,-8.0032000000000006E-2,44.792999999999999,97.293000000000006,36,106.05,7,3,1,null,6.5863085260257819,null,null,null,null,null,null,null,null,null,null,null,null,null,null,null,null,null,null,null,null,null,null,null,null,null,null,null,null,null,null,null,null,null,null,null,null,null,null,null,null,null,null,null,null,null,null,null,null,null,null,null,null,null,null,null,null,null,null,null,null,null,null,null,null,null,null,null,null,null,null,null,null,null,null,null,null,null,null,null,null,null,null,null,null,null,null,null,null,null,null,null,null,null,null,null,null,null,null,null,null,null,null,null,null,null,null,null,null,null,null,null,null,null,null,null,null,null,null,null,null,null,null,0.17429182879377431,0.27393283582089545,0.1307377049180328]
[9257,19,17,0.125,null,-7.4222999999999997E-2,118.61,119.6,85.688000000000002,75.125,8,3,2,null,5.1906381110610997,null,null,null,null,null,null,null,null,null,null,null,null,null,null,null,null,null,null,null,null,null,null,null,null,null,null,null,null,null,null,null,null,null,null,null,null,null,null,null,null,null,null,null,null,null,null,null,null,null,null,null,null,null,null,null,null,null,null,null,null,null,null,null,null,null,null,null,null,null,null,null,null,null,null,null,null,null,null,null,null,null,null,null,null,null,null,null,null,null,null,null,null,null,null,null,null,null,null,null,null,null,null,null,null,null,null,null,null,null,null,null,null,null,null,null,null,null,null,null,null,null,null,0.46151750972762645,0.10746268656716422,0.38422131147540983]
[9428,19,38,0.5,null,-7.6541999999999999E-2,182.4,119.43,128.30000000000001,42.6,9,3,3,null,4.998826762351344,null,null,null,null,null,null,null,null,null,null,null,null,null,null,null,null,null,null,null,null,null,null,null,null,null,null,null,null,null,null,null,null,null,null,null,null,null,null,null,null,null,null,null,null,null,null,null,null,null,null,null,null,null,null,null,null,null,null,null,null,null,null,null,null,null,null,null,null,null,null,null,null,null,null,null,null,null,null,null,null,null,null,null,null,null,null,null,null,null,null,null,null,null,null,null,null,null,null,null,null,null,null,null,null,null,null,null,null,null,null,null,null,null,null,null,null,null,null,null,null,null,null,0.709727626459144,0.10873134328358204,0.65081967213114755]
[9485,19,45,0.625,null,-9.8821000000000006E-2,102.62,25.184999999999999,71.332999999999998,24.556000000000001,2,1,2,null,19.95571559729191,null,null,null,null,null,null,null,null,null,null,null,null,null,null,null,null,null,null,null,null,null,null,null,null,null,null,null,null,null,null,null,null,null,null,null,null,null,null,null,null,null,null,null,null,null,null,null,null,null,null,null,null,null,null,null,null,null,null,null,null,null,null,null,null,null,null,null,null,null,null,null,null,null,null,null,null,null,null,null,null,null,null,null,null,null,null,null,null,null,null,null,null,null,null,null,null,null,null,null,null,null,null,null,null,null,null,null,null,null,null,null,null,null,null,null,null,null,null,null,null,null,null,0.39929961089494165,0.81205223880597011,0.79872131147540981]
[9624,20,3,0,null,-8.0787999999999999E-2,96.963999999999999,121.04,71.828999999999994,85.914000000000001,8,3,2,null,8.2259103447581996,null,null,null,null,null,null,null,null,null,null,null,null,null,null,null,null,null,null,null,null,null,null,null,null,null,null,null,null,null,null,null,null,null,null,null,null,null,null,null,null,null,null,null,null,null,null,null,null,null,null,null,null,null,null,null,null,null,null,null,null,null,null,null,null,null,null,null,null,null,null,null,null,null,null,null,null,null,null,null,null,null,null,null,null,null,null,null,null,null,null,null,null,null,null,null,null,null,null,null,null,null,null,null,null,null,null,null,null,null,null,null,null,null,null,null,null,null,null,null,null,null,null,0.37729182879377432,9.6716417910447716E-2,0.29578688524590163]
[9743,20,17,0.875,null,-7.8925999999999996E-2,69.78,116.71,45.207999999999998,20.167000000000002,7,3,1,null,7.6998359073424387,null,null,null,null,null,null,null,null,null,null,null,null,null,null,null,null,null,null,null,null,null,null,null,null,null,null,null,null,null,null,null,null,null,null,null,null,null,null,null,null,null,null,null,null,null,null,null,null,null,null,null,null,null,null,null,null,null,null,null,null,null,null,null,null,null,null,null,null,null,null,null,null,null,null,null,null,null,null,null,null,null,null,null,null,null,null,null,null,null,null,null,null,null,null,null,null,null,null,null,null,null,null,null,null,null,null,null,null,null,null,null,null,null,null,null,null,null,null,null,null,null,null,0.27151750972762645,0.12902985074626871,0.83469672131147543]
[9819,20,27,0.375,null,-8.7186E-2,222.05,111.16,151.76,54.56,9,3,3,null,7.1260743751380984,null,null,null,null,null,null,null,null,null,null,null,null,null,null,null,null,null,null,null,null,null,null,null,null,null,null,null,null,null,null,null,null,null,null,null,null,null,null,null,null,null,null,null,null,null,null,null,null,null,null,null,null,null,null,null,null,null,null,null,null,null,null,null,null,null,null,null,null,null,null,null,null,null,null,null,null,null,null,null,null,null,null,null,null,null,null,null,null,null,null,null,null,null,null,null,null,null,null,null,null,null,null,null,null,null,null,null,null,null,null,null,null,null,null,null,null,null,null,null,null,null,null,0.86400778210116735,0.17044776119402988,0.55278688524590158]
[9990,20,48,0.75,null,-8.4763000000000005E-2,21.113,115.15,14.677,59.838999999999999,7,3,1,null,5.4279999999999973,null,null,null,null,null,null,null,null,null,null,null,null,null,null,null,null,null,null,null,null,null,null,null,null,null,null,null,null,null,null,null,null,null,null,null,null,null,null,null,null,null,null,null,null,null,null,null,null,null,null,null,null,null,null,null,null,null,null,null,null,null,null,null,null,null,null,null,null,null,null,null,null,null,null,null,null,null,null,null,null,null,null,null,null,null,null,null,null,null,null,null,null,null,null,null,null,null,null,null,null,null,null,null,null,null,null,null,null,null,null,null,null,null,null,null,null,null,null,null,null,null,null,8.2151750972762644E-2,0.14067164179104474,0.50951639344262301]
[10047,20,55,0.875,null,-8.8639999999999997E-2,145.58000000000001,112.25,104.54,90.769000000000005,8,3,2,null,8.2351988439867192,null,null,null,null,null,null,null,null,null,null,null,null,null,null,null,null,null,null,null,null,null,null,null,null,null,null,null,null,null,null,null,null,null,null,null,null,null,null,null,null,null,null,null,null,null,null,null,null,null,null,null,null,null,null,null,null,null,null,null,null,null,null,null,null,null,null,null,null,null,null,null,null,null,null,null,null,null,null,null,null,null,null,null,null,null,null,null,null,null,null,null,null,null,null,null,null,null,null,null,null,null,null,null,null,null,null,null,null,null,null,null,null,null,null,null,null,null,null,null,null,null,null,0.56645914396887165,0.16231343283582089,0.25599180327868848]
[10186,21,13,0.25,null,-8.7026999999999993E-2,144.31,118.45,94.846000000000004,49.537999999999997,8,3,2,null,7.0651729632047919,null,null,null,null,null,null,null,null,null,null,null,null,null,null,null,null,null,null,null,null,null,null,null,null,null,null,null,null,null,null,null,null,null,null,null,null,null,null,null,null,null,null,null,null,null,null,null,null,null,null,null,null,null,null,null,null,null,null,null,null,null,null,null,null,null,null,null,null,null,null,null,null,null,null,null,null,null,null,null,null,null,null,null,null,null,null,null,null,null,null,null,null,null,null,null,null,null,null,null,null,null,null,null,null,null,null,null,null,null,null,null,null,null,null,null,null,null,null,null,null,null,null,0.56151750972762648,0.11604477611940296,0.59395081967213115]
[10357,21,34,0.625,null,-8.3738999999999994E-2,69.575999999999993,110.71,43.817999999999998,14.273,7,3,1,null,14.501908633004147,null,null,null,null,null,null,null,null,null,null,null,null,null,null,null,null,null,null,null,null,null,null,null,null,null,null,null,null,null,null,null,null,null,null,null,null,null,null,null,null,null,null,null,null,null,null,null,null,null,null,null,null,null,null,null,null,null,null,null,null,null,null,null,null,null,null,null,null,null,null,null,null,null,null,null,null,null,null,null,null,null,null,null,null,null,null,null,null,null,null,null,null,null,null,null,null,null,null,null,null,null,null,null,null,null,null,null,null,null,null,null,null,null,null,null,null,null,null,null,null,null,null,0.27072373540856026,0.17380597014925378,0.88300819672131148]
[10414,21,41,0.75,null,-8.1936999999999996E-2,197.53,111.33,137.76,80.713999999999999,9,3,3,null,14.200979719723572,null,null,null,null,null,null,null,null,null,null,null,null,null,null,null,null,null,null,null,null,null,null,null,null,null,null,null,null,null,null,null,null,null,null,null,null,null,null,null,null,null,null,null,null,null,null,null,null,null,null,null,null,null,null,null,null,null,null,null,null,null,null,null,null,null,null,null,null,null,null,null,null,null,null,null,null,null,null,null,null,null,null,null,null,null,null,null,null,null,null,null,null,null,null,null,null,null,null,null,null,null,null,null,null,null,null,null,null,null,null,null,null,null,null,null,null,null,null,null,null,null,null,0.76859922178988327,0.16917910447761195,0.33840983606557379]
[10553,21,59,0.125,null,-9.7515000000000004E-2,23.19,93.929000000000002,13.467000000000001,19.2,7,3,1,null,3.6326348564093252,null,null,null,null,null,null,null,null,null,null,null,null,null,null,null,null,null,null,null,null,null,null,null,null,null,null,null,null,null,null,null,null,null,null,null,null,null,null,null,null,null,null,null,null,null,null,null,null,null,null,null,null,null,null,null,null,null,null,null,null,null,null,null,null,null,null,null,null,null,null,null,null,null,null,null,null,null,null,null,null,null,null,null,null,null,null,null,null,null,null,null,null,null,null,null,null,null,null,null,null,null,null,null,null,null,null,null,null,null,null,null,null,null,null,null,null,null,null,null,null,null,null,9.0233463035019459E-2,0.29903731343283579,0.84262295081967209]
[10724,22,20,0.5,null,-9.2299000000000006E-2,133.57,112.62,97.153999999999996,109.58,8,3,2,null,7.0412001817871852,null,null,null,null,null,null,null,null,null,null,null,null,null,null,null,null,null,null,null,null,null,null,null,null,null,null,null,null,null,null,null,null,null,null,null,null,null,null,null,null,null,null,null,null,null,null,null,null,null,null,null,null,null,null,null,null,null,null,null,null,null,null,null,null,null,null,null,null,null,null,null,null,null,null,null,null,null,null,null,null,null,null,null,null,null,null,null,null,null,null,null,null,null,null,null,null,null,null,null,null,null,null,null,null,null,null,null,null,null,null,null,null,null,null,null,null,null,null,null,null,null,null,0.51972762645914394,0.15955223880597011,0.10180327868852461]
[10749,22,23,0.625,null,-8.7160000000000001E-2,200.77,78.59,141.55000000000001,15.581,6,2,3,null,34.043558803391861,null,null,null,null,null,null,null,null,null,null,null,null,null,null,null,null,null,null,null,null,null,null,null,null,null,null,null,null,null,null,null,null,null,null,null,null,null,null,null,null,null,null,null,null,null,null,null,null,null,null,null,null,null,null,null,null,null,null,null,null,null,null,null,null,null,null,null,null,null,null,null,null,null,null,null,null,null,null,null,null,null,null,null,null,null,null,null,null,null,null,null,null,null,null,null,null,null,null,null,null,null,null,null,null,null,null,null,null,null,null,null,null,null,null,null,null,null,null,null,null,null,null,0.7812062256809339,0.41350746268656713,0.87228688524590159]
[10920,22,45,0,null,-0.10706,141.94,118.92,96.962000000000003,26.538,8,3,2,null,3.9239999999999995,null,null,null,null,null,null,null,null,null,null,null,null,null,null,null,null,null,null,null,null,null,null,null,null,null,null,null,null,null,null,null,null,null,null,null,null,null,null,null,null,null,null,null,null,null,null,null,null,null,null,null,null,null,null,null,null,null,null,null,null,null,null,null,null,null,null,null,null,null,null,null,null,null,null,null,null,null,null,null,null,null,null,null,null,null,null,null,null,null,null,null,null,null,null,null,null,null,null,null,null,null,null,null,null,null,null,null,null,null,null,null,null,null,null,null,null,null,null,null,null,null,null,0.55229571984435799,0.11253731343283581,0.78247540983606556]
[10977,22,52,0.125,null,-0.107,13.164,110.09,16.184999999999999,102.78,7,3,1,null,7.4137359677830466,null,null,null,null,null,null,null,null,null,null,null,null,null,null,null,null,null,null,null,null,null,null,null,null,null,null,null,null,null,null,null,null,null,null,null,null,null,null,null,null,null,null,null,null,null,null,null,null,null,null,null,null,null,null,null,null,null,null,null,null,null,null,null,null,null,null,null,null,null,null,null,null,null,null,null,null,null,null,null,null,null,null,null,null,null,null,null,null,null,null,null,null,null,null,null,null,null,null,null,null,null,null,null,null,null,null,null,null,null,null,null,null,null,null,null,null,null,null,null,null,null,null,5.1221789883268483E-2,0.1784328358208955,0.15754098360655736]
[11116,23,9,0.5,null,-0.10184,90.918999999999997,121.68,67.304000000000002,90.087000000000003,8,3,2,null,11.51809294110792,null,null,null,null,null,null,null,null,null,null,null,null,null,null,null,null,null,null,null,null,null,null,null,null,null,null,null,null,null,null,null,null,null,null,null,null,null,null,null,null,null,null,null,null,null,null,null,null,null,null,null,null,null,null,null,null,null,null,null,null,null,null,null,null,null,null,null,null,null,null,null,null,null,null,null,null,null,null,null,null,null,null,null,null,null,null,null,null,null,null,null,null,null,null,null,null,null,null,null,null,null,null,null,null,null,null,null,null,null,null,null,null,null,null,null,null,null,null,null,null,null,null,0.35377042801556419,9.1940298507462631E-2,0.26158196721311472]
[11287,23,30,0.875,null,-9.9958000000000005E-2,82.263000000000005,120.26,57.081000000000003,80.027000000000001,7,3,1,null,7.1868856259161413,null,null,null,null,null,null,null,null,null,null,null,null,null,null,null,null,null,null,null,null,null,null,null,null,null,null,null,null,null,null,null,null,null,null,null,null,null,null,null,null,null,null,null,null,null,null,null,null,null,null,null,null,null,null,null,null,null,null,null,null,null,null,null,null,null,null,null,null,null,null,null,null,null,null,null,null,null,null,null,null,null,null,null,null,null,null,null,null,null,null,null,null,null,null,null,null,null,null,null,null,null,null,null,null,null,null,null,null,null,null,null,null,null,null,null,null,null,null,null,null,null,null,0.32008949416342414,0.10253731343283579,0.34404098360655738]
[11312,23,34,0,null,-0.10462,22.875,120.6,12.815,58.332999999999998,7,3,1,null,7.6670000000000016,null,null,null,null,null,null,null,null,null,null,null,null,null,null,null,null,null,null,null,null,null,null,null,null,null,null,null,null,null,null,null,null,null,null,null,null,null,null,null,null,null,null,null,null,null,null,null,null,null,null,null,null,null,null,null,null,null,null,null,null,null,null,null,null,null,null,null,null,null,null,null,null,null,null,null,null,null,null,null,null,null,null,null,null,null,null,null,null,null,null,null,null,null,null,null,null,null,null,null,null,null,null,null,null,null,null,null,null,null,null,null,null,null,null,null,null,null,null,null,null,null,null,8.9007782101167318E-2,0.10000000000000005,0.5218606557377049]
[11483,23,55,0.375,null,-9.6145999999999995E-2,178.34,15.86,128.22,16.173999999999999,3,1,3,null,7.3537346974173543,null,null,null,null,null,null,null,null,null,null,null,null,null,null,null,null,null,null,null,null,null,null,null,null,null,null,null,null,null,null,null,null,null,null,null,null,null,null,null,null,null,null,null,null,null,null,null,null,null,null,null,null,null,null,null,null,null,null,null,null,null,null,null,null,null,null,null,null,null,null,null,null,null,null,null,null,null,null,null,null,null,null,null,null,null,null,null,null,null,null,null,null,null,null,null,null,null,null,null,null,null,null,null,null,null,null,null,null,null,null,null,null,null,null,null,null,null,null,null,null,null,null,0.69392996108949423,0.88164179104477614,0.8674262295081967]
[11540,24,2,0.5,null,-0.10843,135.04,116.62,98.736999999999995,110.92,8,3,2,null,10.973946418677277,null,null,null,null,null,null,null,null,null,null,null,null,null,null,null,null,null,null,null,null,null,null,null,null,null,null,null,null,null,null,null,null,null,null,null,null,null,null,null,null,null,null,null,null,null,null,null,null,null,null,null,null,null,null,null,null,null,null,null,null,null,null,null,null,null,null,null,null,null,null,null,null,null,null,null,null,null,null,null,null,null,null,null,null,null,null,null,null,null,null,null,null,null,null,null,null,null,null,null,null,null,null,null,null,null,null,null,null,null,null,null,null,null,null,null,null,null,null,null,null,null,null,0.52544747081712062,0.12970149253731339,9.0819672131147527E-2]
[11679,24,19,0.875,null,-0.10041,157.86000000000001,97.5,109.29,116.14,8,3,2,null,19.288810227694217,null,null,null,null,null,null,null,null,null,null,null,null,null,null,null,null,null,null,null,null,null,null,null,null,null,null,null,null,null,null,null,null,null,null,null,null,null,null,null,null,null,null,null,null,null,null,null,null,null,null,null,null,null,null,null,null,null,null,null,null,null,null,null,null,null,null,null,null,null,null,null,null,null,null,null,null,null,null,null,null,null,null,null,null,null,null,null,null,null,null,null,null,null,null,null,null,null,null,null,null,null,null,null,null,null,null,null,null,null,null,null,null,null,null,null,null,null,null,null,null,null,null,0.61424124513618683,0.27238805970149255,4.8032786885245898E-2]
[11850,24,41,0.25,null,-0.10392,112.84,122.39,73.820999999999998,96.713999999999999,8,3,2,null,7.1348791160047025,null,null,null,null,null,null,null,null,null,null,null,null,null,null,null,null,null,null,null,null,null,null,null,null,null,null,null,null,null,null,null,null,null,null,null,null,null,null,null,null,null,null,null,null,null,null,null,null,null,null,null,null,null,null,null,null,null,null,null,null,null,null,null,null,null,null,null,null,null,null,null,null,null,null,null,null,null,null,null,null,null,null,null,null,null,null,null,null,null,null,null,null,null,null,null,null,null,null,null,null,null,null,null,null,null,null,null,null,null,null,null,null,null,null,null,null,null,null,null,null,null,null,0.43906614785992221,8.6641791044776109E-2,0.20726229508196722]
[11907,24,48,0.375,null,-0.11148,111.92,110.01,84.879000000000005,110.21,8,3,2,null,14.572212632266934,null,null,null,null,null,null,null,null,null,null,null,null,null,null,null,null,null,null,null,null,null,null,null,null,null,null,null,null,null,null,null,null,null,null,null,null,null,null,null,null,null,null,null,null,null,null,null,null,null,null,null,null,null,null,null,null,null,null,null,null,null,null,null,null,null,null,null,null,null,null,null,null,null,null,null,null,null,null,null,null,null,null,null,null,null,null,null,null,null,null,null,null,null,null,null,null,null,null,null,null,null,null,null,null,null,null,null,null,null,null,null,null,null,null,null,null,null,null,null,null,null,null,0.43548638132295719,0.17902985074626862,9.6639344262295132E-2]
[12046,25,5,0.75,null,null,null,null,null,null,0,1,1,null,0]
[12103,25,12,0.875,null,null,null,null,null,null,0,1,1,null,0]
[12242,25,30,0.25,null,null,null,null,null,null,0,1,1,null,0]
[12413,25,51,0.625,null,null,null,null,null,null,0,1,1,null,0]
[12470,25,58,0.75,null,null,null,null,null,null,0,1,1,null,0]
[12609,26,16,0.125,null,null,null,null,null,null,0,1,1,null,0]
[12666,26,23,0.25,null,null,null,null,null,null,0,1,1,null,0]
[12805,26,40,0.625,null,null,null,null,null,null,0,1,1,null,0]
[12976,27,2,0,null,null,null,null,null,null,0,1,1,null,0]
[13033,27,9,0.125,null,null,null,null,null,null,0,1,1,null,0]
[13172,27,26,0.5,null,null,null,null,null,null,0,1,1,null,0]
[13343,27,47,0.875,null,null,null,null,null,null,0,1,1,null,0]
[13400,27,55,0,null,null,null,null,null,null,0,1,1,null,0]
[13539,28,12,0.375,null,null,null,null,null,null,0,1,1,null,0]
[13596,28,19,0.5,null,null,null,null,null,null,0,1,1,null,0]
[13735,28,36,0.875,null,null,null,null,null,null,0,1,1,null,0]
[13906,28,58,0.25,null,null,null,null,null,null,0,1,1,null,0]
[13963,29,5,0.375,null,null,null,null,null,null,0,1,1,null,0]
[14102,29,22,0.75,null,null,null,null,null,null,0,1,1,null,0]
[14159,29,29,0.875,null,null,null,null,null,null,0,1,1,null,0]
[14330,29,51,0.25,null,null,null,null,null,null,0,1,1,null,0]
[14469,30,8,0.625,null,null,null,null,null,null,0,1,1,null,0]
[14526,30,15,0.75,null,null,null,null,null,null,0,1,1,null,0]
[14665,30,33,0.125,null,null,null,null,null,null,0,1,1,null,0]
[{"$f":"A14730+1","v":14722},30,40,0.25,null,null,null,null,null,null,0,1,1,null,0]
[14893,31,1,0.625,null,null,null,null,null,null,0,1,1,null,0]
[15032,31,19,0,null,null,null,null,null,null,0,1,1,null,0]
[15089,31,26,0.125,null,null,null,null,null,null,0,1,1,null,0]
[15228,31,43,0.5,null,null,null,null,null,null,0,1,1,null,0]
[15399,32,4,0.875,null,null,null,null,null,null,0,1,1,null,0]
[15456,32,12,0,null,null,null,null,null,null,0,1,1,null,0]
[15595,32,29,0.375,null,null,null,null,null,null,0,1,1,null,0]
[15652,32,36,0.5,null,null,null,null,null,null,0,1,1,null,0]
[15823,32,57,0.875,null,null,null,null,null,null,0,1,1,null,0]
[15962,33,15,0.25,null,null,null,null,null,null,0,1,1,null,0]
[16019,33,22,0.375,null,null,null,null,null,null,0,1,1,null,0]
[16158,33,39,0.75,null,null,null,null,null,null,0,1,1,null,0]
[16215,33,46,0.875,null,null,null,null,null,null,0,1,1,null,0]
[{"$f":"A16394+1","v":16386},34,8,0.25,null,null,null,null,null,null,0,1,1,null,0]
[16525,34,25,0.625,null,null,null,null,null,null,0,1,1,null,0]
[16582,34,32,0.75,null,null,null,null,null,null,0,1,1,null,0]
[16721,34,50,0.125,null,null,null,null,null,null,0,1,1,null,0]
[16778,34,57,0.25,null,null,null,null,null,null,0,1,1,null,0]
[16949,35,18,0.625,null,null,null,null,null,null,0,1,1,null,0]
[17088,35,36,0,null,null,null,null,null,null,0,1,1,null,0]
[17145,35,43,0.125,null,null,null,null,null,null,0,1,1,null,0]
[17316,36,4,0.5,null,null,null,null,null,null,0,1,1,null,0]
[17341,36,7,0.625,null,null,null,null,null,null,0,1,1,null,0]
[17512,36,29,0,null,null,null,null,null,null,0,1,1,null,0]
[17651,36,46,0.375,null,null,null,null,null,null,0,1,1,null,0]
[17708,36,53,0.5,null,null,null,null,null,null,0,1,1,null,0]
[17879,37,14,0.875,null,null,null,null,null,null,0,1,1,null,0]
[18018,37,32,0.25,null,null,null,null,null,null,{"$f":"SUMPRODUCT(--($T$1:$T$9=L18027),--($U$1:$U$9=M18027),$V$1:$V$9)*SUMPRODUCT(--((G18027+H18027)>0))","v":0},{"$f":"MATCH(H18027,$R$3:$R$6,1)","v":1},{"$f":"MATCH(G18027,$N$7:$Q$7,1)","v":1},null,0]
[18075,37,39,0.375,null,null,null,null,null,null,0,1,1,null,0]
[18246,38,0,0.75,null,null,null,null,null,null,0,1,1,null,0]
[18271,38,3,0.875,null,null,null,null,null,null,0,1,1,null,0]
[18442,38,25,0.25,null,null,null,null,null,null,0,1,1,null,0]
[18581,38,42,0.625,null,null,null,null,null,null,0,1,1,null,0]
[18638,38,49,0.75,null,null,null,null,null,null,0,1,1,null,0]
[18809,39,11,0.125,null,null,null,null,null,null,0,1,1,null,0]
[18834,39,14,0.25,null,null,null,null,null,null,0,1,1,null,0]
[19005,39,35,0.625,null,null,null,null,null,null,0,1,1,null,0]
[19144,39,53,0,null,null,null,null,null,null,0,1,1,null,0]
[19216,40,2,0,null,null,null,null,null,null,0,1,1,null,0]
[19371,40,21,0.375,null,null,null,null,null,null,0,1,1,null,0]
[19396,40,24,0.5,null,null,null,null,null,null,0,1,1,null,0]
[19567,40,45,0.875,null,null,null,null,null,null,0,1,1,null,0]
[19624,40,53,0,null,null,null,null,null,null,0,1,1,null,0]
[19763,41,10,0.375,null,null,null,null,null,null,0,1,1,null,0]
[19934,41,31,0.75,null,null,null,null,null,null,0,1,1,null,0]
[20073,41,49,0.125,null,null,null,null,null,null,0,1,1,null,0]
[20130,41,56,0.25,null,null,null,null,null,null,{"$f":"SUMPRODUCT(--($T$1:$T$9=L20139),--($U$1:$U$9=M20139),$V$1:$V$9)*SUMPRODUCT(--((G20139+H20139)>0))","v":0},{"$f":"MATCH(H20139,$R$3:$R$6,1)","v":1},{"$f":"MATCH(G20139,$N$7:$Q$7,1)","v":1},null,0]
[20301,42,17,0.625,null,null,null,null,null,null,0,1,1,null,0]
[20326,42,20,0.75,null,null,null,null,null,null,0,1,1,null,0]
[20497,42,42,0.125,null,null,null,null,null,null,0,1,1,null,0]
[20554,42,49,0.25,null,null,null,null,null,null,0,1,1,null,0]
[20693,43,6,0.625,null,null,null,null,null,null,0,1,1,null,0]
[20864,43,28,0,null,null,null,null,null,null,0,1,1,null,0]
[20889,43,31,0.125,null,null,null,null,null,null,0,1,1,null,0]
[21060,43,52,0.5,null,null,null,null,null,null,0,1,1,null,0]
[21117,43,59,0.625,null,null,null,null,null,null,0,1,1,null,0]
[21256,44,17,0,null,null,null,null,null,null,0,1,1,null,0]
[21427,44,38,0.375,null,null,null,null,null,null,0,1,1,null,0]
[21452,44,41,0.5,null,null,null,null,null,null,0,1,1,null,0]
[21623,45,2,0.875,null,null,null,null,null,null,0,1,1,null,0]
[21680,45,10,0,null,null,null,null,null,null,0,1,1,null,0]
[21819,45,27,0.375,null,null,null,null,null,null,0,1,1,null,0]
[21990,45,48,0.75,null,null,null,null,null,null,0,1,1,null,0]
[22047,45,55,0.875,null,null,null,null,null,null,0,1,1,null,0]
[22186,46,13,0.25,null,null,null,null,null,null,0,1,1,null,0]
[22243,46,20,0.375,null,null,null,null,null,null,0,1,1,null,0]
[22382,46,37,0.75,null,null,null,null,null,null,0,1,1,null,0]
[22553,46,59,0.125,null,null,null,null,null,null,0,1,1,null,0]
[22610,47,6,0.25,null,null,null,null,null,null,0,1,1,null,0]
[22749,47,23,0.625,null,null,null,null,null,null,0,1,1,null,0]
[22920,47,45,0,null,null,null,null,null,null,0,1,1,null,0]
[22945,47,48,0.125,null,null,null,null,null,null,0,1,1,null,0]
[23116,48,9,0.5,null,null,null,null,null,null,0,1,1,null,0]
[23173,48,16,0.625,null,null,null,null,null,null,0,1,1,null,0]
[23312,48,34,0,null,null,null,null,null,null,0,1,1,null,0]
[23483,48,55,0.375,null,null,null,null,null,null,0,1,1,null,0]
[23540,49,2,0.5,null,null,null,null,null,null,0,1,1,null,0]
[23679,49,19,0.875,null,null,null,null,null,null,0,1,1,null,0]
[23736,49,27,0,null,null,null,null,null,null,0,1,1,null,0]
[23875,49,44,0.375,null,null,null,null,null,null,0,1,1,null,0]
[24046,50,5,0.75,null,null,null,null,null,null,0,1,1,null,0]
[24103,50,12,0.875,null,null,null,null,null,null,0,1,1,null,0]
[24242,50,30,0.25,null,null,null,null,null,null,0,1,1,null,0]
[24299,50,37,0.375,null,null,null,null,null,null,0,1,1,null,0]
[24470,50,58,0.75,null,null,null,null,null,null,0,1,1,null,0]
[24609,51,16,0.125,null,null,null,null,null,null,0,1,1,null,0]
[24666,51,23,0.25,null,null,null,null,null,null,0,1,1,null,0]
[24805,51,40,0.625,null,null,null,null,null,null,0,1,1,null,0]
[24976,52,2,0,null,null,null,null,null,null,0,1,1,null,0]
[25033,52,9,0.125,null,null,null,null,null,null,0,1,1,null,0]
[25172,52,26,0.5,null,null,null,null,null,null,0,1,1,null,0]
[25229,52,33,0.625,null,null,null,null,null,null,0,1,1,null,0]
[25368,52,51,0,null,null,null,null,null,null,0,1,1,null,0]
[25539,53,12,0.375,null,null,null,null,null,null,0,1,1,null,0]
[25596,53,19,0.5,null,null,null,null,null,null,0,1,1,null,0]
[25735,53,36,0.875,null,null,null,null,null,null,0,1,1,null,0]
[25792,53,44,0,null,null,null,null,null,null,0,1,1,null,0]
[25963,54,5,0.375,null,null,null,null,null,null,0,1,1,null,0]
[26102,54,22,0.75,null,null,null,null,null,null,0,1,1,null,0]
[26159,54,29,0.875,null,null,null,null,null,null,0,1,1,null,0]
[26298,54,47,0.25,null,null,null,null,null,null,0,1,1,null,0]
[26355,54,54,0.375,null,null,null,null,null,null,0,1,1,null,0]
[26526,55,15,0.75,null,null,null,null,null,null,0,1,1,null,0]
[26665,55,33,0.125,null,null,null,null,null,null,0,1,1,null,0]
[26722,55,40,0.25,null,null,null,null,null,null,{"$f":"SUMPRODUCT(--($T$1:$T$9=L26731),--($U$1:$U$9=M26731),$V$1:$V$9)*SUMPRODUCT(--((G26731+H26731)>0))","v":0},{"$f":"MATCH(H26731,$R$3:$R$6,1)","v":1},{"$f":"MATCH(G26731,$N$7:$Q$7,1)","v":1},null,0]
[26893,56,1,0.625,null,null,null,null,null,null,0,1,1,null,0]
[26918,56,4,0.75,null,null,null,null,null,null,0,1,1,null,0]
[27089,56,26,0.125,null,null,null,null,null,null,0,1,1,null,0]
[27228,56,43,0.5,null,null,null,null,null,null,0,1,1,null,0]
[27285,56,50,0.625,null,null,null,null,null,null,0,1,1,null,0]
[27456,57,12,0,null,null,null,null,null,null,0,1,1,null,0]
[27595,57,29,0.375,null,null,null,null,null,null,0,1,1,null,0]
[27652,57,36,0.5,null,null,null,null,null,null,0,1,1,null,0]
[27791,57,53,0.875,null,null,null,null,null,null,0,1,1,null,0]
[27848,58,1,0,null,null,null,null,null,null,0,1,1,null,0]
[28019,58,22,0.375,null,null,null,null,null,null,0,1,1,null,0]
[28158,58,39,0.75,null,null,null,null,null,null,0,1,1,null,0]
[28215,58,46,0.875,null,null,null,null,null,null,0,1,1,null,0]
[28386,59,8,0.25,null,null,null,null,null,null,{"$f":"SUMPRODUCT(--($T$1:$T$9=L28395),--($U$1:$U$9=M28395),$V$1:$V$9)*SUMPRODUCT(--((G28395+H28395)>0))","v":0},{"$f":"MATCH(H28395,$R$3:$R$6,1)","v":1},{"$f":"MATCH(G28395,$N$7:$Q$7,1)","v":1},null,0]
[28411,59,11,0.375,null,null,null,null,null,null,0,1,1,null,0]
[28582,59,32,0.75,null,null,null,null,null,null,0,1,1,null,0]
[28721,59,50,0.125,null,null,null,null,null,null,0,1,1,null,0]
[28739,59,52,0.375,null,null,null,null,null,null,0,1,1,null,0]
[28740,59,52,0.5,null,null,null,null,null,null,0,1,1,null,0]
[28741,59,52,0.625,null,null,null,null,null,null,0,1,1,null,0]
[28742,59,52,0.75,null,null,null,null,null,null,0,1,1,null,0]
[28743,59,52,0.875,null,null,null,null,null,null,0,1,1,null,0]
[28744,59,53,0,null,null,null,null,null,null,0,1,1,null,0]
[28745,59,53,0.125,null,null,null,null,null,null,0,1,1,null,0]
[28746,{"$f":"ROUNDDOWN(A28755/480,0)","v":59},{"$f":"MOD(ROUNDDOWN(A28755/8,0),60)","v":53},{"$f":"MOD(A28755,8)/8","v":0.25},null,null,null,null,null,null,0,1,1,null,0]
[28747,59,53,0.375,null,null,null,null,null,null,0,1,1,null,0]
[28748,59,53,0.5,null,null,null,null,null,null,0,1,1,null,0]
[28749,59,53,0.625,null,null,null,null,null,null,0,1,1,null,0]
[28750,59,53,0.75,null,null,null,null,null,null,0,1,1,null,0]
[28751,59,53,0.875,null,null,null,null,null,null,0,1,1,null,0]
[28752,{"$f":"ROUNDDOWN(A28761/480,0)","v":59},{"$f":"MOD(ROUNDDOWN(A28761/8,0),60)","v":54},{"$f":"MOD(A28761,8)/8","v":0},null,null,null,null,null,null,0,1,1,null,0]
[28753,59,54,0.125,null,null,null,null,null,null,0,1,1,null,0]
[28754,59,54,0.25,null,null,null,null,null,null,0,1,1,null,0]
[28755,59,54,0.375,null,null,null,null,null,null,0,1,1,null,0]
[28756,59,54,0.5,null,null,null,null,null,null,0,1,1,null,0]
[28757,59,54,0.625,null,null,null,null,null,null,0,1,1,null,0]
[28758,59,54,0.75,null,null,null,null,null,null,0,1,1,null,0]
[28759,59,54,0.875,null,null,null,null,null,null,0,1,1,null,0]
[28760,59,55,0,null,null,null,null,null,null,0,1,1,null,0]
[28761,59,55,0.125,null,null,null,null,null,null,0,1,1,null,0]
[28762,59,55,0.25,null,null,null,null,null,null,0,1,1,null,0]
[28763,59,55,0.375,null,null,null,null,null,null,0,1,1,null,0]
[28764,59,55,0.5,null,null,null,null,null,null,0,1,1,null,0]
[28765,{"$f":"ROUNDDOWN(A28774/480,0)","v":59},{"$f":"MOD(ROUNDDOWN(A28774/8,0),60)","v":55},{"$f":"MOD(A28774,8)/8","v":0.625},null,null,null,null,null,null,0,1,1,null,0]
[28766,59,55,0.75,null,null,null,null,null,null,0,1,1,null,0]
[28767,59,55,0.875,null,null,null,null,null,null,0,1,1,null,0]
[28768,59,56,0,null,null,null,null,null,null,0,1,1,null,0]
[28769,59,56,0.125,null,null,null,null,null,null,0,1,1,null,0]
[28770,59,56,0.25,null,null,null,null,null,null,{"$f":"SUMPRODUCT(--($T$1:$T$9=L28779),--($U$1:$U$9=M28779),$V$1:$V$9)*SUMPRODUCT(--((G28779+H28779)>0))","v":0},{"$f":"MATCH(H28779,$R$3:$R$6,1)","v":1},{"$f":"MATCH(G28779,$N$7:$Q$7,1)","v":1},null,0]
[28771,59,56,0.375,null,null,null,null,null,null,0,1,1,null,0]
[28772,59,56,0.5,null,null,null,null,null,null,0,1,1,null,0]
[28773,59,56,0.625,null,null,null,null,null,null,0,1,1,null,0]
[28774,59,56,0.75,null,null,null,null,null,null,0,1,1,null,0]
[28775,59,56,0.875,null,null,null,null,null,null,0,1,1,null,0]
[28776,59,57,0,null,null,null,null,null,null,0,1,1,null,0]
[28777,59,57,0.125,null,null,null,null,null,null,0,1,1,null,0]
[28778,59,57,0.25,null,null,null,null,null,null,0,1,1,null,0]
[28779,59,57,0.375,null,null,null,null,null,null,0,1,1,null,0]
[28780,59,57,0.5,null,null,null,null,null,null,0,1,1,null,0]
[28781,59,57,0.625,null,null,null,null,null,null,0,1,1,null,0]
[28782,59,57,0.75,null,null,null,null,null,null,0,1,1,null,0]
[28783,59,57,0.875,null,null,null,null,null,null,0,1,1,null,0]
[28784,59,58,0,null,null,null,null,null,null,0,1,1,null,0]
[28785,59,58,0.125,null,null,null,null,null,null,0,1,1,null,0]
[28786,59,58,0.25,null,null,null,null,null,null,0,1,1,null,0]
[28787,59,58,0.375,null,null,null,null,null,null,0,1,1,null,0]
[28788,59,58,0.5,null,null,null,null,null,null,0,1,1,null,0]
[28789,59,58,0.625,null,null,null,null,null,null,0,1,1,null,0]
[28790,59,58,0.75,null,null,null,null,null,null,0,1,1,null,0]
[28791,59,58,0.875,null,null,null,null,null,null,0,1,1,null,0]
[28792,59,59,0,null,null,null,null,null,null,0,1,1,null,0]
[28793,59,59,0.125,null,null,null,null,null,null,0,1,1,null,0]
[28794,59,59,0.25,null,null,null,null,null,null,0,1,1,null,0]
[28795,59,59,0.375,null,null,null,null,null,null,0,1,1,null,0]
[28796,59,59,0.5,null,null,null,null,null,null,0,1,1,null,0]
[28797,59,59,0.625,null,null,null,null,null,null,0,1,1,null,0]
[28798,59,59,0.75,null,null,null,null,null,null,0,1,1,null,0]
[28799,59,59,0.875,null,null,null,null,null,null,0,1,1,null,0]
[28800,60,0,0,null,null,null,null,null,null,0,1,1,null,0]

{"sheet":"Inf","index":3,"n_rows":21,"n_cols":10,"rows_kept":21,"cut":false,"hidden":false,"merged":[]}
[]
[]
[]
[]
[null,"C:\\FishMon\\video_data.data"]
[null,null,null,null,null,2]
[null,null,"latest",null,null,"60mins","30 mins","20 mins","10 mins","1 min"]
[null,"Z","DISTANCE","<","hypo",{"$f":"G8*$F$6","v":100000},50000,{"$f":"G8/3*2","v":33333.333333333336},{"$f":"H8/2","v":16666.666666666668},{"$f":"I8/10","v":1666.6666666666667}]
[null,null,null,"<","low",{"$f":"G9*$F$6","v":160000},80000,{"$f":"G9/3*2","v":53333.333333333336},{"$f":"H9/2","v":26666.666666666668},{"$f":"I9/10","v":2666.666666666667}]
[null,null,null,"<","normal",{"$f":"G10*$F$6","v":390000},195000,{"$f":"G10/3*2","v":130000},{"$f":"H10/2","v":65000},6500]
[null,null,null,">=","hyper",{"$f":"G11*$F$6","v":390002},{"$f":"G10+1","v":195001},{"$f":"H10+1","v":130001},{"$f":"I10+1","v":65001},6500.1]
[]
[null,"Y","UTIL","<","hypo"]
[null,null,null,"<","low"]
[null,null,null,"<","normal"]
[null,null,null,">=","hyper"]
[]
[null,"X","ACTIVITY","<","hypo",2,2,2,2,2]
[null,null,null,"<","low",3,3,3,3,3]
[null,null,null,"<","normal",4,4,4,4,4]
[null,null,null,">=","hyper",8.01,8.01,8.01,8.01,8.01]